Workbook

Sheet 2023年1月（按美元）
A2: 2023年1月银行结售汇数据（分地区）
A3: 单位：亿美元
A4: 项目 | C4: 北京 | D4: 天津 | E4: 河北 | F4: 山西 | G4: 内蒙古 | H4: 辽宁 | I4: 吉林 | J4: 黑龙江 | K4: 上海 | L4: 江苏 | M4: 浙江 | N4: 安徽 | O4: 福建 | P4: 江西 | Q4: 山东 | R4: 河南 | S4: 湖北 | T4: 湖南 | U4: 广东 | V4: 广西 | W4: 海南 | X4: 重庆 | Y4: 四川 | Z4: 贵州 | AA4: 云南 | AB4: 西藏 | AC4: 陕西 | AD4: 甘肃 | AE4: 青海 | AF4: 宁夏 | AG4: 新疆 | AH4: 大连 | AI4: 宁波 | AJ4: 厦门 | AK4: 青岛 | AL4: 深圳
A5: 一、结汇 | C5: 101.03 | D5: 26.43 | E5: 23.85 | F5: 2.83 | G5: 3.68 | H5: 9.34 | I5: 2.94 | J5: 2.64 | K5: 345.54 | L5: 220.55 | M5: 228.86 | N5: 25.93 | O5: 49.37 | P5: 16.42 | Q5: 80.19 | R5: 21.06 | S5: 25.73 | T5: 14.76 | U5: 173.11 | V5: 5.40 | W5: 4.18 | X5: 15.19 | Y5: 19.34 | Z5: 2.35 | AA5: 2.23 | AB5: 0.06 | AC5: 14.85 | AD5: 0.91 | AE5: 0.25 | AF5: 0.97 | AG5: 4.59 | AH5: 15.63 | AI5: 87.52 | AJ5: 32.12 | AK5: 36.00 | AL5: 136.72
A6: (一）银行自身 | C6: 8.89 | D6: 0.26 | E6: 0.06 | F6: 0.00 | G6: 0.00 | H6: 0.00 | I6: 0.00 | J6: 0.00 | K6: 70.33 | L6: 0.18 | M6: 1.09 | N6: 0.00 | O6: 0.07 | P6: 0.00 | Q6: 0.27 | R6: 0.00 | S6: 0.01 | T6: 0.00 | U6: 0.16 | V6: 0.12 | W6: 0.00 | X6: 0.01 | Y6: 0.01 | Z6: 0.00 | AA6: 0.00 | AB6: 0.00 | AC6: 0.00 | AD6: 0.00 | AE6: 0.00 | AF6: 0.00 | AG6: 0.00 | AH6: 0.00 | AI6: 17.55 | AJ6: 0.01 | AK6: 0.13 | AL6: 0.33
A7: (二）银行代客 | C7: 92.13 | D7: 26.17 | E7: 23.79 | F7: 2.83 | G7: 3.68 | H7: 9.34 | I7: 2.94 | J7: 2.64 | K7: 275.21 | L7: 220.38 | M7: 227.78 | N7: 25.93 | O7: 49.30 | P7: 16.42 | Q7: 79.92 | R7: 21.05 | S7: 25.73 | T7: 14.76 | U7: 172.95 | V7: 5.28 | W7: 4.18 | X7: 15.19 | Y7: 19.34 | Z7: 2.35 | AA7: 2.23 | AB7: 0.06 | AC7: 14.85 | AD7: 0.91 | AE7: 0.25 | AF7: 0.97 | AG7: 4.59 | AH7: 15.63 | AI7: 69.98 | AJ7: 32.11 | AK7: 35.87 | AL7: 136.39
A8: 1.经常项目 | C8: 56.87 | D8: 24.29 | E8: 22.93 | F8: 2.81 | G8: 3.39 | H8: 8.94 | I8: 2.67 | J8: 2.19 | K8: 157.51 | L8: 205.03 | M8: 221.28 | N8: 24.91 | O8: 48.71 | P8: 14.88 | Q8: 76.22 | R8: 18.65 | S8: 23.99 | T8: 14.19 | U8: 167.73 | V8: 4.50 | W8: 2.96 | X8: 15.04 | Y8: 16.76 | Z8: 1.91 | AA8: 2.01 | AB8: 0.01 | AC8: 13.35 | AD8: 0.84 | AE8: 0.25 | AF8: 0.96 | AG8: 3.22 | AH8: 15.32 | AI8: 67.67 | AJ8: 31.64 | AK8: 34.85 | AL8: 116.18
A9: 1.1货物贸易 | C9: 33.44 | D9: 20.60 | E9: 21.51 | F9: 2.44 | G9: 3.12 | H9: 7.43 | I9: 1.97 | J9: 1.58 | K9: 110.33 | L9: 196.26 | M9: 212.29 | N9: 23.89 | O9: 45.57 | P9: 14.42 | Q9: 71.66 | R9: 16.95 | S9: 21.78 | T9: 12.56 | U9: 155.55 | V9: 3.96 | W9: 2.45 | X9: 14.06 | Y9: 13.05 | Z9: 1.80 | AA9: 1.69 | AB9: 0.01 | AC9: 12.07 | AD9: 0.65 | AE9: 0.22 | AF9: 0.89 | AG9: 2.84 | AH9: 12.81 | AI9: 65.44 | AJ9: 29.63 | AK9: 31.39 | AL9: 101.88
A10: 1.2服务贸易 | C10: 19.47 | D10: 2.51 | E10: 0.72 | F10: 0.21 | G10: 0.16 | H10: 0.45 | I10: 0.19 | J10: 0.24 | K10: 39.09 | L10: 6.49 | M10: 3.57 | N10: 0.67 | O10: 0.91 | P10: 0.18 | Q10: 1.87 | R10: 0.69 | S10: 1.47 | T10: 1.02 | U10: 8.48 | V10: 0.26 | W10: 0.43 | X10: 0.66 | Y10: 3.08 | Z10: 0.06 | AA10: 0.14 | AB10: 0.00 | AC10: 0.93 | AD10: 0.06 | AE10: 0.01 | AF10: 0.02 | AG10: 0.26 | AH10: 1.90 | AI10: 2.00 | AJ10: 1.66 | AK10: 2.47 | AL10: 10.94
A11: 1.3收益和经常转移 | C11: 3.96 | D11: 1.19 | E11: 0.70 | F11: 0.16 | G11: 0.10 | H11: 1.07 | I11: 0.50 | J11: 0.38 | K11: 8.09 | L11: 2.28 | M11: 5.43 | N11: 0.35 | O11: 2.23 | P11: 0.28 | Q11: 2.69 | R11: 1.01 | S11: 0.74 | T11: 0.61 | U11: 3.71 | V11: 0.28 | W11: 0.07 | X11: 0.32 | Y11: 0.63 | Z11: 0.06 | AA11: 0.18 | AB11: 0.00 | AC11: 0.35 | AD11: 0.13 | AE11: 0.02 | AF11: 0.04 | AG11: 0.12 | AH11: 0.62 | AI11: 0.23 | AJ11: 0.34 | AK11: 0.99 | AL11: 3.37
A12: 2.资本与金融项目 | C12: 35.26 | D12: 1.88 | E12: 0.86 | F12: 0.02 | G12: 0.29 | H12: 0.39 | I12: 0.27 | J12: 0.45 | K12: 117.70 | L12: 15.35 | M12: 6.49 | N12: 1.01 | O12: 0.58 | P12: 1.54 | Q12: 3.70 | R12: 2.40 | S12: 1.73 | T12: 0.57 | U12: 5.22 | V12: 0.78 | W12: 1.22 | X12: 0.15 | Y12: 2.58 | Z12: 0.44 | AA12: 0.22 | AB12: 0.05 | AC12: 1.50 | AD12: 0.07 | AE12: 0.00 | AF12: 0.01 | AG12: 1.37 | AH12: 0.31 | AI12: 2.31 | AJ12: 0.47 | AK12: 1.02 | AL12: 20.21
A13: 其中: 直接投资 | C13: 11.12 | D13: 1.58 | E13: 0.60 | F13: 0.02 | G13: 0.19 | H13: 0.06 | I13: 0.27 | J13: 0.38 | K13: 12.32 | L13: 6.20 | M13: 3.32 | N13: 0.53 | O13: 0.49 | P13: 0.54 | Q13: 3.57 | R13: 0.36 | S13: 1.13 | T13: 0.27 | U13: 3.97 | V13: 0.21 | W13: 0.50 | X13: 0.08 | Y13: 1.23 | Z13: 0.02 | AA13: 0.20 | AB13: 0.05 | AC13: 0.50 | AD13: 0.00 | AE13: 0.00 | AF13: 0.01 | AG13: 1.21 | AH13: 0.19 | AI13: 0.88 | AJ13: 0.43 | AK13: 0.64 | AL13: 3.03
A14: 证券投资 | C14: 18.96 | D14: 0.13 | E14: 0.00 | F14: 0.00 | G14: 0.01 | H14: 0.00 | I14: 0.00 | J14: 0.00 | K14: 102.58 | L14: 8.12 | M14: 2.65 | N14: 0.11 | O14: 0.01 | P14: 0.47 | Q14: 0.04 | R14: 0.97 | S14: 0.00 | T14: 0.00 | U14: 0.94 | V14: 0.00 | W14: 0.56 | X14: 0.02 | Y14: 1.15 | Z14: 0.00 | AA14: 0.00 | AB14: 0.00 | AC14: 0.84 | AD14: 0.00 | AE14: 0.00 | AF14: 0.00 | AG14: 0.01 | AH14: 0.12 | AI14: 1.30 | AJ14: 0.00 | AK14: 0.24 | AL14: 17.04
A15: 二、售汇 | C15: 395.29 | D15: 26.66 | E15: 23.17 | F15: 6.50 | G15: 7.17 | H15: 13.64 | I15: 11.07 | J15: 6.40 | K15: 401.86 | L15: 115.70 | M15: 88.43 | N15: 29.81 | O15: 28.08 | P15: 15.52 | Q15: 53.16 | R15: 15.25 | S15: 19.12 | T15: 14.59 | U15: 102.79 | V15: 19.98 | W15: 15.02 | X15: 21.04 | Y15: 20.40 | Z15: 3.23 | AA15: 5.79 | AB15: 0.38 | AC15: 12.08 | AD15: 5.40 | AE15: 1.26 | AF15: 1.10 | AG15: 2.87 | AH15: 11.85 | AI15: 60.71 | AJ15: 53.47 | AK15: 35.07 | AL15: 83.82
A16: (一）银行自身 | C16: 15.51 | D16: 0.01 | E16: 0.00 | F16: 0.00 | G16: 0.00 | H16: 0.00 | I16: 0.00 | J16: 0.01 | K16: 42.44 | L16: 0.26 | M16: 3.00 | N16: 0.00 | O16: 0.09 | P16: 0.00 | Q16: 0.44 | R16: 0.00 | S16: 0.00 | T16: 0.00 | U16: 0.07 | V16: 0.00 | W16: 0.12 | X16: 0.00 | Y16: 0.00 | Z16: 0.00 | AA16: 0.00 | AB16: 0.00 | AC16: 0.00 | AD16: 0.00 | AE16: 0.00 | AF16: 0.00 | AG16: 0.05 | AH16: 0.00 | AI16: 18.04 | AJ16: 0.25 | AK16: 0.12 | AL16: 0.21
A17: (二）银行代客 | C17: 379.78 | D17: 26.65 | E17: 23.17 | F17: 6.50 | G17: 7.17 | H17: 13.64 | I17: 11.07 | J17: 6.39 | K17: 359.41 | L17: 115.44 | M17: 85.43 | N17: 29.80 | O17: 27.99 | P17: 15.52 | Q17: 52.72 | R17: 15.25 | S17: 19.12 | T17: 14.59 | U17: 102.72 | V17: 19.98 | W17: 14.90 | X17: 21.04 | Y17: 20.40 | Z17: 3.23 | AA17: 5.79 | AB17: 0.38 | AC17: 12.08 | AD17: 5.39 | AE17: 1.26 | AF17: 1.10 | AG17: 2.82 | AH17: 11.84 | AI17: 42.67 | AJ17: 53.22 | AK17: 34.95 | AL17: 83.61
A18: 1.经常项目 | C18: 323.99 | D18: 25.05 | E18: 20.47 | F18: 6.12 | G18: 7.12 | H18: 13.37 | I18: 10.88 | J18: 6.26 | K18: 289.72 | L18: 100.43 | M18: 75.32 | N18: 29.17 | O18: 24.87 | P18: 10.55 | Q18: 49.26 | R18: 12.80 | S18: 18.40 | T18: 14.31 | U18: 90.35 | V18: 18.26 | W18: 10.88 | X18: 19.96 | Y18: 19.50 | Z18: 2.33 | AA18: 5.00 | AB18: 0.37 | AC18: 11.25 | AD18: 3.81 | AE18: 0.20 | AF18: 1.07 | AG18: 2.47 | AH18: 11.54 | AI18: 38.99 | AJ18: 50.70 | AK18: 33.52 | AL18: 73.53
A19: 1.1货物贸易 | C19: 254.62 | D19: 18.85 | E19: 17.85 | F19: 4.50 | G19: 6.13 | H19: 10.46 | I19: 7.87 | J19: 4.45 | K19: 214.31 | L19: 83.72 | M19: 64.93 | N19: 26.41 | O19: 21.81 | P19: 9.13 | Q19: 42.56 | R19: 9.66 | S19: 14.38 | T19: 12.21 | U19: 75.15 | V19: 17.20 | W19: 9.11 | X19: 17.41 | Y19: 14.57 | Z19: 1.74 | AA19: 3.78 | AB19: 0.32 | AC19: 8.73 | AD19: 3.22 | AE19: 0.07 | AF19: 0.41 | AG19: 1.72 | AH19: 9.43 | AI19: 35.53 | AJ19: 48.44 | AK19: 30.00 | AL19: 55.09
A20: 1.2服务贸易 | C20: 44.78 | D20: 4.05 | E20: 2.49 | F20: 1.59 | G20: 0.96 | H20: 2.79 | I20: 2.75 | J20: 1.75 | K20: 64.16 | L20: 13.38 | M20: 9.52 | N20: 2.40 | O20: 2.46 | P20: 1.26 | Q20: 5.78 | R20: 2.87 | S20: 3.81 | T20: 2.00 | U20: 13.15 | V20: 0.75 | W20: 1.71 | X20: 2.32 | Y20: 4.47 | Z20: 0.58 | AA20: 1.13 | AB20: 0.06 | AC20: 2.33 | AD20: 0.58 | AE20: 0.08 | AF20: 0.66 | AG20: 0.72 | AH20: 2.03 | AI20: 2.66 | AJ20: 2.06 | AK20: 3.24 | AL20: 17.19
A21: 1.3收益和经常转移 | C21: 24.59 | D21: 2.15 | E21: 0.12 | F21: 0.04 | G21: 0.03 | H21: 0.12 | I21: 0.26 | J21: 0.05 | K21: 11.26 | L21: 3.33 | M21: 0.87 | N21: 0.36 | O21: 0.60 | P21: 0.16 | Q21: 0.93 | R21: 0.26 | S21: 0.22 | T21: 0.10 | U21: 2.05 | V21: 0.31 | W21: 0.06 | X21: 0.23 | Y21: 0.46 | Z21: 0.01 | AA21: 0.09 | AB21: 0.00 | AC21: 0.19 | AD21: 0.01 | AE21: 0.05 | AF21: 0.01 | AG21: 0.03 | AH21: 0.08 | AI21: 0.80 | AJ21: 0.20 | AK21: 0.29 | AL21: 1.25
A22: 2.资本与金融项目 | C22: 55.80 | D22: 1.61 | E22: 2.71 | F22: 0.37 | G22: 0.05 | H22: 0.27 | I22: 0.19 | J22: 0.14 | K22: 69.69 | L22: 15.01 | M22: 10.12 | N22: 0.63 | O22: 3.12 | P22: 4.97 | Q22: 3.46 | R22: 2.45 | S22: 0.72 | T22: 0.28 | U22: 12.37 | V22: 1.72 | W22: 4.02 | X22: 1.08 | Y22: 0.90 | Z22: 0.89 | AA22: 0.79 | AB22: 0.00 | AC22: 0.83 | AD22: 1.59 | AE22: 1.06 | AF22: 0.02 | AG22: 0.34 | AH22: 0.30 | AI22: 3.69 | AJ22: 2.52 | AK22: 1.42 | AL22: 10.08
A23: 其中: 直接投资 | C23: 40.38 | D23: 0.78 | E23: 0.27 | F23: 0.36 | G23: 0.00 | H23: 0.18 | I23: 0.07 | J23: 0.07 | K23: 13.57 | L23: 5.63 | M23: 1.97 | N23: 0.17 | O23: 0.73 | P23: 2.76 | Q23: 0.72 | R23: 0.10 | S23: 0.18 | T23: 0.07 | U23: 1.76 | V23: 0.18 | W23: 3.56 | X23: 0.22 | Y23: 0.52 | Z23: 0.00 | AA23: 0.22 | AB23: 0.00 | AC23: 0.10 | AD23: 0.02 | AE23: 0.01 | AF23: 0.01 | AG23: 0.03 | AH23: 0.07 | AI23: 1.54 | AJ23: 1.37 | AK23: 0.51 | AL23: 2.38
A24: 证券投资 | C24: 2.38 | D24: 0.10 | E24: 0.00 | F24: 0.00 | G24: 0.00 | H24: 0.00 | I24: 0.00 | J24: 0.00 | K24: 49.42 | L24: 2.63 | M24: 0.01 | N24: 0.00 | O24: 0.01 | P24: 1.50 | Q24: 0.30 | R24: 1.03 | S24: 0.00 | T24: 0.00 | U24: 0.59 | V24: 0.00 | W24: 0.42 | X24: 0.00 | Y24: 0.00 | Z24: 0.22 | AA24: 0.37 | AB24: 0.00 | AC24: 0.00 | AD24: 0.99 | AE24: 1.04 | AF24: 0.00 | AG24: 0.00 | AH24: 0.02 | AI24: 0.03 | AJ24: 0.95 | AK24: 0.00 | AL24: 6.12
A25: 三、差额 | C25: =C5-C15 -> -294.27 | D25: =D5-D15 -> -0.23 | E25: 0.67 | F25: -3.67 | G25: -3.49 | H25: -4.30 | I25: -8.13 | J25: -3.76 | K25: -56.32 | L25: 104.85 | M25: 140.43 | N25: -3.88 | O25: 21.29 | P25: 0.90 | Q25: 27.03 | R25: 5.81 | S25: 6.61 | T25: 0.17 | U25: 70.32 | V25: -14.58 | W25: -10.84 | X25: -5.85 | Y25: -1.06 | Z25: -0.87 | AA25: -3.56 | AB25: -0.32 | AC25: 2.77 | AD25: -4.49 | AE25: -1.02 | AF25: -0.13 | AG25: 1.72 | AH25: 3.78 | AI25: 26.81 | AJ25: -21.36 | AK25: 0.93 | AL25: 52.90
A26: (一）银行自身 | C26: -6.62 | D26: 0.25 | E26: 0.06 | F26: -0.00 | G26: 0.00 | H26: -0.00 | I26: -0.00 | J26: -0.01 | K26: 27.89 | L26: -0.08 | M26: -1.91 | N26: -0.00 | O26: -0.02 | P26: 0.00 | Q26: -0.17 | R26: 0.00 | S26: 0.01 | T26: 0.00 | U26: 0.10 | V26: 0.12 | W26: -0.12 | X26: 0.01 | Y26: 0.01 | Z26: 0.00 | AA26: 0.00 | AB26: 0 | AC26: 0.00 | AD26: -0.00 | AE26: 0 | AF26: 0 | AG26: -0.05 | AH26: -0.00 | AI26: -0.49 | AJ26: -0.24 | AK26: 0.01 | AL26: 0.12
A27: (二）银行代客 | C27: -287.65 | D27: -0.48 | E27: 0.62 | F27: -3.67 | G27: -3.49 | H27: -4.30 | I27: -8.13 | J27: -3.75 | K27: -84.21 | L27: 104.93 | M27: 142.34 | N27: -3.88 | O27: 21.31 | P27: 0.90 | Q27: 27.20 | R27: 5.80 | S27: 6.60 | T27: 0.17 | U27: 70.23 | V27: -14.70 | W27: -10.72 | X27: -5.86 | Y27: -1.06 | Z27: -0.87 | AA27: -3.56 | AB27: -0.32 | AC27: 2.77 | AD27: -4.49 | AE27: -1.02 | AF27: -0.13 | AG27: 1.77 | AH27: 3.79 | AI27: 27.30 | AJ27: -21.11 | AK27: 0.92 | AL27: 52.78
A28: 1.经常项目 | C28: -267.11 | D28: -0.76 | E28: 2.46 | F28: -3.32 | G28: -3.73 | H28: -4.43 | I28: -8.21 | J28: -4.06 | K28: -132.21 | L28: 104.60 | M28: 145.97 | N28: -4.26 | O28: 23.84 | P28: 4.34 | Q28: 26.96 | R28: 5.85 | S28: 5.59 | T28: -0.12 | U28: 77.38 | V28: -13.76 | W28: -7.92 | X28: -4.92 | Y28: -2.74 | Z28: -0.42 | AA28: -2.99 | AB28: -0.36 | AC28: 2.10 | AD28: -2.97 | AE28: 0.05 | AF28: -0.12 | AG28: 0.75 | AH28: 3.78 | AI28: 28.68 | AJ28: -19.06 | AK28: 1.32 | AL28: 42.65
A29: 1.1货物贸易 | C29: -221.19 | D29: 1.75 | E29: 3.66 | F29: -2.06 | G29: -3.01 | H29: -3.04 | I29: -5.89 | J29: -2.87 | K29: -103.98 | L29: 112.54 | M29: 147.36 | N29: -2.52 | O29: 23.76 | P29: 5.29 | Q29: 29.10 | R29: 7.28 | S29: 7.41 | T29: 0.35 | U29: 80.39 | V29: -13.24 | W29: -6.66 | X29: -3.35 | Y29: -1.52 | Z29: 0.06 | AA29: -2.09 | AB29: -0.31 | AC29: 3.34 | AD29: -2.56 | AE29: 0.15 | AF29: 0.48 | AG29: 1.11 | AH29: 3.38 | AI29: 29.91 | AJ29: -18.81 | AK29: 1.39 | AL29: 46.79
A30: 1.2服务贸易 | C30: -25.30 | D30: -1.54 | E30: -1.77 | F30: -1.38 | G30: -0.80 | H30: -2.34 | I30: -2.56 | J30: -1.51 | K30: -25.07 | L30: -6.89 | M30: -5.95 | N30: -1.73 | O30: -1.55 | P30: -1.08 | Q30: -3.90 | R30: -2.18 | S30: -2.34 | T30: -0.98 | U30: -4.67 | V30: -0.49 | W30: -1.27 | X30: -1.66 | Y30: -1.39 | Z30: -0.53 | AA30: -0.99 | AB30: -0.06 | AC30: -1.40 | AD30: -0.52 | AE30: -0.07 | AF30: -0.64 | AG30: -0.46 | AH30: -0.13 | AI30: -0.66 | AJ30: -0.40 | AK30: -0.77 | AL30: -6.25
A31: 1.3收益和经常转移 | C31: -20.62 | D31: -0.96 | E31: 0.58 | F31: 0.12 | G31: 0.08 | H31: 0.95 | I31: 0.24 | J31: 0.33 | K31: -3.16 | L31: -1.05 | M31: 4.55 | N31: -0.01 | O31: 1.64 | P31: 0.12 | Q31: 1.76 | R31: 0.75 | S31: 0.53 | T31: 0.51 | U31: 1.66 | V31: -0.03 | W31: 0.01 | X31: 0.09 | Y31: 0.17 | Z31: 0.05 | AA31: 0.08 | AB31: 0.00 | AC31: 0.16 | AD31: 0.11 | AE31: -0.04 | AF31: 0.03 | AG31: 0.09 | AH31: 0.54 | AI31: -0.57 | AJ31: 0.15 | AK31: 0.70 | AL31: 2.11
A32: 2.资本与金融项目 | C32: -20.54 | D32: 0.27 | E32: -1.85 | F32: -0.35 | G32: =G12-G22 -> 0.24 | H32: 0.13 | I32: 0.08 | J32: 0.31 | K32: 48.01 | L32: 0.34 | M32: -3.62 | N32: 0.38 | O32: -2.53 | P32: -3.43 | Q32: 0.24 | R32: -0.05 | S32: 1.01 | T32: 0.29 | U32: -7.15 | V32: -0.94 | W32: -2.80 | X32: -0.94 | Y32: 1.68 | Z32: -0.46 | AA32: -0.57 | AB32: 0.04 | AC32: 0.68 | AD32: -1.52 | AE32: -1.06 | AF32: -0.01 | AG32: 1.03 | AH32: 0.01 | AI32: -1.38 | AJ32: -2.05 | AK32: -0.40 | AL32: 10.13
A33: 其中: 直接投资 | C33: =C13-C23 -> -29.25 | D33: 0.80 | E33: 0.33 | F33: -0.34 | G33: 0.19 | H33: -0.12 | I33: 0.20 | J33: 0.31 | K33: -1.24 | L33: 0.57 | M33: 1.35 | N33: 0.36 | O33: -0.24 | P33: -2.22 | Q33: 2.85 | R33: 0.26 | S33: 0.95 | T33: 0.20 | U33: 2.21 | V33: 0.04 | W33: -3.06 | X33: -0.14 | Y33: 0.71 | Z33: 0.02 | AA33: -0.01 | AB33: 0.05 | AC33: 0.41 | AD33: -0.02 | AE33: -0.01 | AF33: 0.00 | AG33: 1.18 | AH33: 0.11 | AI33: -0.67 | AJ33: -0.95 | AK33: 0.12 | AL33: 0.65
A34: 证券投资 | C34: 16.58 | D34: 0.03 | E34: 0 | F34: 0 | G34: 0.01 | H34: 0.00 | I34: 0 | J34: -0.00 | K34: 53.16 | L34: 5.48 | M34: 2.64 | N34: 0.11 | O34: -0.00 | P34: -1.03 | Q34: -0.26 | R34: -0.06 | S34: 0.00 | T34: 0.00 | U34: 0.36 | V34: 0.00 | W34: 0.14 | X34: 0.02 | Y34: 1.15 | Z34: -0.22 | AA34: -0.37 | AB34: 0 | AC34: 0.84 | AD34: -0.99 | AE34: -1.04 | AF34: 0 | AG34: 0.01 | AH34: 0.10 | AI34: 1.27 | AJ34: -0.95 | AK34: 0.24 | AL34: 10.92
A35: 注： 1.分地区是指办理结售汇业务的银行所在地。其中，本表中辽宁不含大连，浙江不含宁波，福建不含厦门，山东不含青岛，广东不含深圳。

Sheet 2023年2月（按美元）
A2: 2023年2月银行结售汇数据（分地区）
A3: 单位：亿美元
A4: 项目 | C4: 北京 | D4: 天津 | E4: 河北 | F4: 山西 | G4: 内蒙古 | H4: 辽宁 | I4: 吉林 | J4: 黑龙江 | K4: 上海 | L4: 江苏 | M4: 浙江 | N4: 安徽 | O4: 福建 | P4: 江西 | Q4: 山东 | R4: 河南 | S4: 湖北 | T4: 湖南 | U4: 广东 | V4: 广西 | W4: 海南 | X4: 重庆 | Y4: 四川 | Z4: 贵州 | AA4: 云南 | AB4: 西藏 | AC4: 陕西 | AD4: 甘肃 | AE4: 青海 | AF4: 宁夏 | AG4: 新疆 | AH4: 大连 | AI4: 宁波 | AJ4: 厦门 | AK4: 青岛 | AL4: 深圳
A5: 一、结汇 | C5: 94.06 | D5: 29.57 | E5: 25.67 | F5: 3.57 | G5: 4.24 | H5: 9.63 | I5: 3.25 | J5: 2.55 | K5: 316.84 | L5: 230.14 | M5: 226.13 | N5: 32.14 | O5: 50.77 | P5: 16.06 | Q5: 91.06 | R5: 21.28 | S5: 19.49 | T5: 19.18 | U5: 194.22 | V5: 5.87 | W5: 5.10 | X5: 23.95 | Y5: 26.80 | Z5: 1.69 | AA5: 2.83 | AB5: 0.12 | AC5: 16.55 | AD5: 1.41 | AE5: 0.24 | AF5: 1.19 | AG5: 5.03 | AH5: 16.46 | AI5: 91.88 | AJ5: 33.44 | AK5: 39.37 | AL5: 167.43
A6: (一）银行自身 | C6: 1.99 | D6: 0.01 | E6: 0.00 | F6: 0.00 | G6: 0.00 | H6: 0.00 | I6: 0.00 | J6: 0.00 | K6: 24.73 | L6: 0.88 | M6: 2.68 | N6: 0.00 | O6: 0.09 | P6: 0.00 | Q6: 0.01 | R6: 0.00 | S6: 0.00 | T6: 0.00 | U6: 0.02 | V6: 0.00 | W6: 0.00 | X6: 0.01 | Y6: 0.48 | Z6: 0.00 | AA6: 0.00 | AB6: 0.00 | AC6: 0.00 | AD6: 0.00 | AE6: 0.00 | AF6: 0.00 | AG6: 0.00 | AH6: 0.00 | AI6: 20.25 | AJ6: 0.01 | AK6: 0.20 | AL6: 0.04
A7: (二）银行代客 | C7: 92.07 | D7: 29.56 | E7: 25.67 | F7: 3.56 | G7: 4.24 | H7: 9.63 | I7: 3.25 | J7: 2.55 | K7: 292.11 | L7: 229.26 | M7: 223.45 | N7: 32.13 | O7: 50.68 | P7: 16.06 | Q7: 91.05 | R7: 21.28 | S7: 19.49 | T7: 19.18 | U7: 194.20 | V7: 5.87 | W7: 5.10 | X7: 23.95 | Y7: 26.32 | Z7: 1.69 | AA7: 2.83 | AB7: 0.12 | AC7: 16.55 | AD7: 1.41 | AE7: 0.24 | AF7: 1.19 | AG7: 5.03 | AH7: 16.46 | AI7: 71.63 | AJ7: 33.43 | AK7: 39.17 | AL7: 167.38
A8: 1.经常项目 | C8: 69.69 | D8: 27.85 | E8: 24.83 | F8: 3.49 | G8: 4.12 | H8: 9.22 | I8: 3.12 | J8: 2.45 | K8: 227.08 | L8: 221.69 | M8: 216.31 | N8: 30.83 | O8: 49.84 | P8: 15.75 | Q8: 86.14 | R8: 21.17 | S8: 17.19 | T8: 18.84 | U8: 189.25 | V8: 5.43 | W8: 3.50 | X8: 23.37 | Y8: 24.04 | Z8: 1.60 | AA8: 2.78 | AB8: 0.01 | AC8: 16.08 | AD8: 0.95 | AE8: 0.24 | AF8: 1.18 | AG8: 3.08 | AH8: 16.23 | AI8: 69.56 | AJ8: 33.24 | AK8: 38.10 | AL8: 134.41
A9: 1.1货物贸易 | C9: 36.27 | D9: 24.71 | E9: 23.64 | F9: 3.16 | G9: 3.80 | H9: 8.37 | I9: 2.54 | J9: 1.96 | K9: 132.02 | L9: 212.07 | M9: 207.96 | N9: 29.99 | O9: 47.22 | P9: 15.32 | Q9: 83.50 | R9: 19.94 | S9: 15.51 | T9: 17.56 | U9: 178.02 | V9: 4.93 | W9: 2.93 | X9: 22.37 | Y9: 21.56 | Z9: 1.49 | AA9: 2.53 | AB9: 0.01 | AC9: 15.02 | AD9: 0.77 | AE9: 0.18 | AF9: 1.13 | AG9: 2.78 | AH9: 13.94 | AI9: 67.50 | AJ9: 31.47 | AK9: 35.04 | AL9: 121.05
A10: 1.2服务贸易 | C10: 29.34 | D10: 2.26 | E10: 0.66 | F10: 0.23 | G10: 0.20 | H10: 0.34 | I10: 0.19 | J10: 0.20 | K10: 89.93 | L10: 7.88 | M10: 4.84 | N10: 0.60 | O10: 1.05 | P10: 0.21 | Q10: 1.40 | R10: 0.55 | S10: 1.01 | T10: 0.92 | U10: 8.58 | V10: 0.31 | W10: 0.51 | X10: 0.78 | Y10: 1.99 | Z10: 0.07 | AA10: 0.15 | AB10: 0.00 | AC10: 0.84 | AD10: 0.08 | AE10: 0.04 | AF10: 0.03 | AG10: 0.24 | AH10: 1.90 | AI10: 1.86 | AJ10: 1.54 | AK10: 2.45 | AL10: 11.59
A11: 1.3收益和经常转移 | C11: 4.08 | D11: 0.88 | E11: 0.53 | F11: 0.11 | G11: 0.11 | H11: 0.51 | I11: 0.39 | J11: 0.29 | K11: 5.13 | L11: 1.74 | M11: 3.51 | N11: 0.25 | O11: 1.58 | P11: 0.22 | Q11: 1.24 | R11: 0.68 | S11: 0.67 | T11: 0.36 | U11: 2.65 | V11: 0.19 | W11: 0.07 | X11: 0.23 | Y11: 0.49 | Z11: 0.04 | AA11: 0.10 | AB11: 0.00 | AC11: 0.23 | AD11: 0.10 | AE11: 0.01 | AF11: 0.03 | AG11: 0.06 | AH11: 0.39 | AI11: 0.20 | AJ11: 0.23 | AK11: 0.61 | AL11: 1.77
A12: 2.资本与金融项目 | C12: 22.38 | D12: 1.71 | E12: 0.85 | F12: 0.07 | G12: 0.12 | H12: 0.42 | I12: 0.13 | J12: 0.11 | K12: 65.03 | L12: 7.57 | M12: 7.14 | N12: 1.30 | O12: 0.84 | P12: 0.31 | Q12: 4.91 | R12: 0.10 | S12: 2.31 | T12: 0.34 | U12: 4.95 | V12: 0.45 | W12: 1.60 | X12: 0.58 | Y12: 2.28 | Z12: 0.08 | AA12: 0.05 | AB12: 0.11 | AC12: 0.47 | AD12: 0.46 | AE12: 0.00 | AF12: 0.01 | AG12: 1.94 | AH12: 0.22 | AI12: 2.07 | AJ12: 0.19 | AK12: 1.08 | AL12: 32.97
A13: 其中: 直接投资 | C13: 6.67 | D13: 0.80 | E13: 0.57 | F13: 0.07 | G13: 0.07 | H13: 0.06 | I13: 0.12 | J13: 0.10 | K13: 8.78 | L13: 5.57 | M13: 4.07 | N13: 0.64 | O13: 0.80 | P13: 0.25 | Q13: 4.78 | R13: 0.06 | S13: 2.10 | T13: 0.31 | U13: 3.34 | V13: 0.19 | W13: 1.39 | X13: 0.34 | Y13: 1.72 | Z13: 0.05 | AA13: 0.03 | AB13: 0.00 | AC13: 0.31 | AD13: 0.00 | AE13: 0.00 | AF13: 0.01 | AG13: 1.93 | AH13: 0.04 | AI13: 0.80 | AJ13: 0.16 | AK13: 0.86 | AL13: 27.23
A14: 证券投资 | C14: 10.34 | D14: 0.07 | E14: 0.07 | F14: 0.00 | G14: 0.01 | H14: 0.00 | I14: 0.00 | J14: 0.00 | K14: 55.70 | L14: 1.18 | M14: 2.59 | N14: 0.52 | O14: 0.01 | P14: 0.00 | Q14: 0.09 | R14: 0.00 | S14: 0.00 | T14: 0.00 | U14: 1.23 | V14: 0.01 | W14: 0.21 | X14: 0.23 | Y14: 0.53 | Z14: 0.00 | AA14: 0.00 | AB14: 0.00 | AC14: 0.00 | AD14: 0.35 | AE14: 0.00 | AF14: 0.00 | AG14: 0.00 | AH14: 0.07 | AI14: 1.21 | AJ14: 0.00 | AK14: 0.19 | AL14: 5.72
A15: 二、售汇 | C15: 320.82 | D15: 29.93 | E15: 22.91 | F15: 8.93 | G15: 8.63 | H15: 14.13 | I15: 9.00 | J15: 6.59 | K15: 458.99 | L15: 115.31 | M15: 102.45 | N15: 29.95 | O15: 34.04 | P15: 12.61 | Q15: 52.16 | R15: 16.45 | S15: 22.19 | T15: 22.27 | U15: 120.66 | V15: 23.05 | W15: 24.15 | X15: 30.95 | Y15: 30.59 | Z15: 2.54 | AA15: 16.56 | AB15: 0.03 | AC15: 15.24 | AD15: 5.19 | AE15: 0.20 | AF15: 0.93 | AG15: 3.61 | AH15: 9.84 | AI15: 65.34 | AJ15: 63.36 | AK15: 34.62 | AL15: 113.59
A16: (一）银行自身 | C16: 23.22 | D16: 0.00 | E16: 0.00 | F16: 0.00 | G16: 0.00 | H16: 0.00 | I16: 0.00 | J16: 0.00 | K16: 31.23 | L16: 0.50 | M16: 5.75 | N16: 0.00 | O16: 0.01 | P16: 0.00 | Q16: 0.00 | R16: 0.00 | S16: 0.16 | T16: 0.00 | U16: 1.22 | V16: 0.00 | W16: 0.00 | X16: 0.00 | Y16: 0.00 | Z16: 0.00 | AA16: 0.00 | AB16: 0.00 | AC16: 0.00 | AD16: 0.00 | AE16: 0.00 | AF16: 0.00 | AG16: 0.00 | AH16: 0.00 | AI16: 22.50 | AJ16: 0.20 | AK16: 0.00 | AL16: 1.86
A17: (二）银行代客 | C17: 297.60 | D17: 29.93 | E17: 22.91 | F17: 8.93 | G17: 8.63 | H17: 14.13 | I17: 9.00 | J17: 6.59 | K17: 427.76 | L17: 114.81 | M17: 96.70 | N17: 29.95 | O17: 34.03 | P17: 12.61 | Q17: 52.16 | R17: 16.45 | S17: 22.03 | T17: 22.27 | U17: 119.44 | V17: 23.05 | W17: 24.15 | X17: 30.95 | Y17: 30.59 | Z17: 2.54 | AA17: 16.56 | AB17: 0.03 | AC17: 15.24 | AD17: 5.19 | AE17: 0.20 | AF17: 0.93 | AG17: 3.61 | AH17: 9.84 | AI17: 42.84 | AJ17: 63.16 | AK17: 34.62 | AL17: 111.72
A18: 1.经常项目 | C18: 258.67 | D18: 24.43 | E18: 16.73 | F18: 8.59 | G18: 8.04 | H18: 12.82 | I18: 8.77 | J18: 6.55 | K18: 289.36 | L18: 103.31 | M18: 84.07 | N18: 29.30 | O18: 32.56 | P18: 9.94 | Q18: 49.22 | R18: 15.04 | S18: 20.28 | T18: 16.83 | U18: 108.87 | V18: 22.26 | W18: 24.02 | X18: 29.82 | Y18: 28.24 | Z18: 1.51 | AA18: 6.65 | AB18: 0.03 | AC18: 10.36 | AD18: 4.81 | AE18: 0.17 | AF18: 0.84 | AG18: 2.70 | AH18: 9.40 | AI18: 41.17 | AJ18: 62.52 | AK18: 33.14 | AL18: 94.20
A19: 1.1货物贸易 | C19: 221.24 | D19: 20.20 | E19: 14.48 | F19: 7.26 | G19: 7.23 | H19: 10.34 | I19: 6.15 | J19: 5.02 | K19: 219.69 | L19: 87.47 | M19: 71.12 | N19: 26.08 | O19: 29.37 | P19: 8.71 | Q19: 43.16 | R19: 12.59 | S19: 16.43 | T19: 14.89 | U19: 89.97 | V19: 21.35 | W19: 22.51 | X19: 27.14 | Y19: 24.29 | Z19: 1.00 | AA19: 5.40 | AB19: 0.01 | AC19: 8.30 | AD19: 4.35 | AE19: 0.05 | AF19: 0.61 | AG19: 2.05 | AH19: 7.68 | AI19: 38.14 | AJ19: 60.31 | AK19: 29.80 | AL19: 72.14
A20: 1.2服务贸易 | C20: 34.61 | D20: 3.74 | E20: 2.04 | F20: 1.30 | G20: 0.78 | H20: 2.37 | I20: 2.36 | J20: 1.46 | K20: 58.27 | L20: 12.25 | M20: 8.80 | N20: 3.03 | O20: 2.64 | P20: 1.15 | Q20: 5.51 | R20: 2.35 | S20: 3.32 | T20: 1.72 | U20: 15.77 | V20: 0.76 | W20: 1.48 | X20: 2.39 | Y20: 3.46 | Z20: 0.49 | AA20: 1.02 | AB20: 0.02 | AC20: 1.92 | AD20: 0.46 | AE20: 0.07 | AF20: 0.19 | AG20: 0.61 | AH20: 1.65 | AI20: 2.22 | AJ20: 1.80 | AK20: 2.80 | AL20: 19.18
A21: 1.3收益和经常转移 | C21: 2.82 | D21: 0.49 | E21: 0.20 | F21: 0.03 | G21: 0.03 | H21: 0.11 | I21: 0.26 | J21: 0.07 | K21: 11.40 | L21: 3.59 | M21: 4.16 | N21: 0.18 | O21: 0.55 | P21: 0.08 | Q21: 0.56 | R21: 0.10 | S21: 0.53 | T21: 0.22 | U21: 3.13 | V21: 0.15 | W21: 0.03 | X21: 0.29 | Y21: 0.48 | Z21: 0.02 | AA21: 0.22 | AB21: 0.00 | AC21: 0.14 | AD21: 0.01 | AE21: 0.04 | AF21: 0.04 | AG21: 0.04 | AH21: 0.07 | AI21: 0.81 | AJ21: 0.41 | AK21: 0.53 | AL21: 2.88
A22: 2.资本与金融项目 | C22: 38.93 | D22: 5.50 | E22: 6.18 | F22: 0.34 | G22: 0.59 | H22: 1.31 | I22: 0.23 | J22: 0.05 | K22: 138.40 | L22: 11.50 | M22: 12.63 | N22: 0.64 | O22: 1.48 | P22: 2.67 | Q22: 2.93 | R22: 1.42 | S22: 1.75 | T22: 5.44 | U22: 10.57 | V22: 0.80 | W22: 0.13 | X22: 1.13 | Y22: 2.35 | Z22: 1.03 | AA22: 9.92 | AB22: 0.00 | AC22: 4.87 | AD22: 0.38 | AE22: 0.04 | AF22: 0.09 | AG22: 0.91 | AH22: 0.43 | AI22: 1.67 | AJ22: 0.64 | AK22: 1.48 | AL22: 17.52
A23: 其中: 直接投资 | C23: 21.77 | D23: 1.79 | E23: 1.21 | F23: 0.25 | G23: 0.40 | H23: 1.20 | I23: 0.01 | J23: 0.01 | K23: 17.57 | L23: 3.84 | M23: 8.48 | N23: 0.25 | O23: 0.22 | P23: 2.34 | Q23: 0.85 | R23: 0.59 | S23: 0.53 | T23: 0.06 | U23: 4.12 | V23: 0.03 | W23: 0.12 | X23: 0.36 | Y23: 1.38 | Z23: 0.00 | AA23: 2.11 | AB23: 0.00 | AC23: 0.05 | AD23: 0.00 | AE23: 0.00 | AF23: 0.00 | AG23: 0.71 | AH23: 0.03 | AI23: 0.79 | AJ23: 0.36 | AK23: 0.60 | AL23: 11.64
A24: 证券投资 | C24: 13.94 | D24: 1.21 | E24: 2.65 | F24: 0.00 | G24: 0.00 | H24: 0.00 | I24: 0.00 | J24: 0.00 | K24: 113.93 | L24: 0.57 | M24: 1.35 | N24: 0.00 | O24: 0.00 | P24: 0.00 | Q24: 0.04 | R24: 0.00 | S24: 0.22 | T24: 0.00 | U24: 2.65 | V24: 0.19 | W24: 0.00 | X24: 0.13 | Y24: 0.01 | Z24: 0.00 | AA24: 0.00 | AB24: 0.00 | AC24: 0.00 | AD24: 0.00 | AE24: 0.00 | AF24: 0.00 | AG24: 0.00 | AH24: 0.30 | AI24: 0.04 | AJ24: 0.00 | AK24: 0.01 | AL24: 4.39
A25: 三、差额 | C25: =C5-C15 -> -226.77 | D25: =D5-D15 -> -0.36 | E25: 2.76 | F25: -5.36 | G25: -4.39 | H25: -4.49 | I25: -5.75 | J25: -4.04 | K25: -142.16 | L25: 114.84 | M25: 123.68 | N25: 2.19 | O25: 16.73 | P25: 3.45 | Q25: 38.90 | R25: 4.83 | S25: -2.69 | T25: -3.08 | U25: 73.57 | V25: -17.18 | W25: -19.04 | X25: -6.99 | Y25: -3.78 | Z25: -0.85 | AA25: -13.73 | AB25: 0.09 | AC25: 1.32 | AD25: -3.78 | AE25: 0.04 | AF25: 0.25 | AG25: 1.42 | AH25: 6.62 | AI25: 26.54 | AJ25: -29.92 | AK25: 4.75 | AL25: 53.84
A26: (一）银行自身 | C26: -21.24 | D26: 0.01 | E26: -0.00 | F26: 0.00 | G26: 0.00 | H26: -0.00 | I26: -0.00 | J26: 0.00 | K26: -6.51 | L26: 0.38 | M26: -3.07 | N26: -0.00 | O26: 0.08 | P26: 0.00 | Q26: 0.01 | R26: 0.00 | S26: -0.16 | T26: 0.00 | U26: -1.19 | V26: 0.00 | W26: 0 | X26: 0.01 | Y26: 0.48 | Z26: -0.00 | AA26: -0.00 | AB26: 0 | AC26: 0.00 | AD26: 0 | AE26: 0 | AF26: 0 | AG26: 0.00 | AH26: 0.00 | AI26: -2.25 | AJ26: -0.19 | AK26: 0.20 | AL26: -1.82
A27: (二）银行代客 | C27: -205.53 | D27: -0.37 | E27: 2.76 | F27: -5.36 | G27: -4.39 | H27: -4.49 | I27: -5.75 | J27: -4.04 | K27: -135.65 | L27: 114.45 | M27: 126.75 | N27: 2.19 | O27: 16.65 | P27: 3.45 | Q27: 38.90 | R27: 4.82 | S27: -2.54 | T27: -3.08 | U27: 74.76 | V27: -17.18 | W27: -19.04 | X27: -7.00 | Y27: -4.26 | Z27: -0.85 | AA27: -13.73 | AB27: 0.09 | AC27: 1.31 | AD27: -3.78 | AE27: 0.04 | AF27: 0.25 | AG27: 1.42 | AH27: 6.62 | AI27: 28.79 | AJ27: -29.72 | AK27: 4.55 | AL27: 55.66
A28: 1.经常项目 | C28: -188.98 | D28: 3.42 | E28: 8.10 | F28: -5.10 | G28: -3.93 | H28: -3.60 | I28: -5.65 | J28: -4.10 | K28: -62.27 | L28: 118.38 | M28: 132.24 | N28: 1.53 | O28: 17.29 | P28: 5.81 | Q28: 36.92 | R28: 6.14 | S28: -3.09 | T28: 2.01 | U28: 80.38 | V28: -16.83 | W28: -20.51 | X28: -6.45 | Y28: -4.20 | Z28: 0.09 | AA28: -3.86 | AB28: -0.02 | AC28: 5.72 | AD28: -3.87 | AE28: 0.07 | AF28: 0.34 | AG28: 0.38 | AH28: 6.83 | AI28: 28.39 | AJ28: -29.28 | AK28: 4.96 | AL28: 40.20
A29: 1.1货物贸易 | C29: -184.97 | D29: 4.51 | E29: 9.16 | F29: -4.10 | G29: -3.43 | H29: -1.97 | I29: -3.61 | J29: -3.06 | K29: -87.67 | L29: 124.61 | M29: 136.84 | N29: 3.90 | O29: 17.85 | P29: 6.60 | Q29: 40.34 | R29: 7.35 | S29: -0.92 | T29: 2.68 | U29: 88.05 | V29: -16.42 | W29: -19.58 | X29: -4.78 | Y29: -2.74 | Z29: 0.49 | AA29: -2.87 | AB29: -0.00 | AC29: 6.71 | AD29: -3.58 | AE29: 0.13 | AF29: 0.52 | AG29: 0.73 | AH29: 6.26 | AI29: 29.36 | AJ29: -28.84 | AK29: 5.23 | AL29: 48.91
A30: 1.2服务贸易 | C30: -5.27 | D30: -1.49 | E30: -1.39 | F30: -1.08 | G30: -0.58 | H30: -2.03 | I30: -2.17 | J30: -1.26 | K30: 31.66 | L30: -4.37 | M30: -3.96 | N30: -2.43 | O30: -1.59 | P30: -0.93 | Q30: -4.11 | R30: -1.80 | S30: -2.31 | T30: -0.81 | U30: -7.19 | V30: -0.45 | W30: -0.97 | X30: -1.61 | Y30: -1.47 | Z30: -0.42 | AA30: -0.87 | AB30: -0.02 | AC30: -1.09 | AD30: -0.38 | AE30: -0.03 | AF30: -0.17 | AG30: -0.36 | AH30: 0.25 | AI30: -0.36 | AJ30: -0.26 | AK30: -0.35 | AL30: -7.59
A31: 1.3收益和经常转移 | C31: 1.25 | D31: 0.39 | E31: 0.32 | F31: 0.08 | G31: 0.09 | H31: 0.40 | I31: 0.13 | J31: 0.23 | K31: -6.27 | L31: -1.85 | M31: -0.65 | N31: 0.06 | O31: 1.02 | P31: 0.14 | Q31: 0.68 | R31: 0.58 | S31: 0.13 | T31: 0.14 | U31: -0.48 | V31: 0.04 | W31: 0.04 | X31: -0.06 | Y31: 0.01 | Z31: 0.02 | AA31: -0.12 | AB31: 0.00 | AC31: 0.09 | AD31: 0.09 | AE31: -0.03 | AF31: -0.01 | AG31: 0.02 | AH31: 0.32 | AI31: -0.60 | AJ31: -0.18 | AK31: 0.07 | AL31: -1.11
A32: 2.资本与金融项目 | C32: -16.55 | D32: -3.79 | E32: -5.34 | F32: -0.26 | G32: =G12-G22 -> -0.46 | H32: -0.89 | I32: -0.10 | J32: 0.06 | K32: -73.38 | L32: -3.93 | M32: -5.49 | N32: 0.66 | O32: -0.64 | P32: -2.36 | Q32: 1.97 | R32: -1.32 | S32: 0.56 | T32: -5.10 | U32: -5.62 | V32: -0.35 | W32: 1.47 | X32: -0.55 | Y32: -0.07 | Z32: -0.94 | AA32: -9.87 | AB32: 0.11 | AC32: -4.41 | AD32: 0.09 | AE32: -0.03 | AF32: -0.08 | AG32: 1.04 | AH32: -0.21 | AI32: 0.40 | AJ32: -0.45 | AK32: -0.41 | AL32: 15.45
A33: 其中: 直接投资 | C33: =C13-C23 -> -15.10 | D33: -0.99 | E33: -0.64 | F33: -0.18 | G33: -0.33 | H33: -1.14 | I33: 0.11 | J33: 0.09 | K33: -8.79 | L33: 1.73 | M33: -4.41 | N33: 0.39 | O33: 0.58 | P33: -2.08 | Q33: 3.94 | R33: -0.53 | S33: 1.57 | T33: 0.25 | U33: -0.78 | V33: 0.16 | W33: 1.27 | X33: -0.02 | Y33: 0.34 | Z33: 0.05 | AA33: -2.08 | AB33: 0 | AC33: 0.27 | AD33: 0.00 | AE33: 0.00 | AF33: 0.01 | AG33: 1.22 | AH33: 0.01 | AI33: 0.01 | AJ33: -0.19 | AK33: 0.26 | AL33: 15.60
A34: 证券投资 | C34: -3.60 | D34: -1.14 | E34: -2.58 | F34: 0.00 | G34: 0.01 | H34: 0.00 | I34: 0.00 | J34: 0.00 | K34: -58.23 | L34: 0.61 | M34: 1.24 | N34: 0.52 | O34: 0.00 | P34: 0 | Q34: 0.05 | R34: 0 | S34: -0.22 | T34: -0.00 | U34: -1.42 | V34: -0.18 | W34: 0.21 | X34: 0.10 | Y34: 0.53 | Z34: -0.00 | AA34: -0.00 | AB34: 0 | AC34: 0.00 | AD34: 0.34 | AE34: 0 | AF34: 0 | AG34: 0 | AH34: -0.23 | AI34: 1.18 | AJ34: 0.00 | AK34: 0.18 | AL34: 1.33
A35: 注： 1.分地区是指办理结售汇业务的银行所在地。其中，本表中辽宁不含大连，浙江不含宁波，福建不含厦门，山东不含青岛，广东不含深圳。

Sheet 2023年3月（按美元）
A2: 2023年3月银行结售汇数据（分地区）
A3: 单位：亿美元
A4: 项目 | C4: 北京 | D4: 天津 | E4: 河北 | F4: 山西 | G4: 内蒙古 | H4: 辽宁 | I4: 吉林 | J4: 黑龙江 | K4: 上海 | L4: 江苏 | M4: 浙江 | N4: 安徽 | O4: 福建 | P4: 江西 | Q4: 山东 | R4: 河南 | S4: 湖北 | T4: 湖南 | U4: 广东 | V4: 广西 | W4: 海南 | X4: 重庆 | Y4: 四川 | Z4: 贵州 | AA4: 云南 | AB4: 西藏 | AC4: 陕西 | AD4: 甘肃 | AE4: 青海 | AF4: 宁夏 | AG4: 新疆 | AH4: 大连 | AI4: 宁波 | AJ4: 厦门 | AK4: 青岛 | AL4: 深圳
A5: 一、结汇 | C5: 100.82 | D5: 31.64 | E5: 27.06 | F5: 3.53 | G5: 3.48 | H5: 10.23 | I5: 3.77 | J5: 3.18 | K5: 304.94 | L5: 215.39 | M5: 263.06 | N5: 32.12 | O5: 48.89 | P5: 17.11 | Q5: 89.42 | R5: 26.00 | S5: 21.83 | T5: 17.44 | U5: 206.12 | V5: 7.78 | W5: 3.47 | X5: 29.84 | Y5: 25.33 | Z5: 3.23 | AA5: 4.79 | AB5: 0.09 | AC5: 20.51 | AD5: 1.26 | AE5: 0.36 | AF5: 1.26 | AG5: 5.46 | AH5: 18.50 | AI5: 102.28 | AJ5: 34.49 | AK5: 39.32 | AL5: 154.10
A6: (一）银行自身 | C6: 9.44 | D6: 0.01 | E6: 0.00 | F6: 0.00 | G6: 0.00 | H6: 0.00 | I6: 0.00 | J6: 0.00 | K6: 22.08 | L6: 0.07 | M6: 11.61 | N6: 0.00 | O6: 1.44 | P6: 0.00 | Q6: 0.05 | R6: 0.02 | S6: 0.01 | T6: 0.00 | U6: 0.61 | V6: 0.07 | W6: 0.00 | X6: 0.01 | Y6: 0.01 | Z6: 0.00 | AA6: 0.00 | AB6: 0.00 | AC6: 0.00 | AD6: 0.00 | AE6: 0.00 | AF6: 0.00 | AG6: 0.00 | AH6: 0.00 | AI6: 28.90 | AJ6: 0.01 | AK6: 0.01 | AL6: 0.10
A7: (二）银行代客 | C7: 91.38 | D7: 31.63 | E7: 27.06 | F7: 3.53 | G7: 3.48 | H7: 10.23 | I7: 3.77 | J7: 3.18 | K7: 282.86 | L7: 215.31 | M7: 251.45 | N7: 32.12 | O7: 47.44 | P7: 17.11 | Q7: 89.37 | R7: 25.99 | S7: 21.82 | T7: 17.44 | U7: 205.51 | V7: 7.72 | W7: 3.47 | X7: 29.83 | Y7: 25.32 | Z7: 3.23 | AA7: 4.79 | AB7: 0.09 | AC7: 20.51 | AD7: 1.26 | AE7: 0.36 | AF7: 1.26 | AG7: 5.46 | AH7: 18.50 | AI7: 73.38 | AJ7: 34.48 | AK7: 39.31 | AL7: 154.00
A8: 1.经常项目 | C8: 71.57 | D8: 30.65 | E8: 26.33 | F8: 3.29 | G8: 3.37 | H8: 10.07 | I8: 3.50 | J8: 2.83 | K8: 213.04 | L8: 206.79 | M8: 241.55 | N8: 30.49 | O8: 46.88 | P8: 15.54 | Q8: 83.63 | R8: 24.61 | S8: 20.30 | T8: 16.86 | U8: 198.99 | V8: 7.40 | W8: 2.63 | X8: 29.67 | Y8: 23.39 | Z8: 3.17 | AA8: 4.36 | AB8: 0.01 | AC8: 20.09 | AD8: 0.99 | AE8: 0.36 | AF8: 1.20 | AG8: 4.71 | AH8: 18.20 | AI8: 72.27 | AJ8: 33.72 | AK8: 37.23 | AL8: 140.60
A9: 1.1货物贸易 | C9: 40.91 | D9: 27.15 | E9: 24.97 | F9: 2.91 | G9: 3.08 | H9: 8.82 | I9: 2.77 | J9: 2.20 | K9: 141.87 | L9: 198.36 | M9: 231.35 | N9: 29.64 | O9: 43.79 | P9: 15.08 | Q9: 80.74 | R9: 23.16 | S9: 18.40 | T9: 15.78 | U9: 186.79 | V9: 6.80 | W9: 2.19 | X9: 28.42 | Y9: 17.55 | Z9: 3.02 | AA9: 3.79 | AB9: 0.01 | AC9: 18.83 | AD9: 0.82 | AE9: 0.30 | AF9: 1.14 | AG9: 4.26 | AH9: 15.59 | AI9: 70.38 | AJ9: 31.36 | AK9: 33.41 | AL9: 126.70
A10: 1.2服务贸易 | C10: 23.35 | D10: 2.48 | E10: 0.78 | F10: 0.26 | G10: 0.22 | H10: 0.49 | I10: 0.28 | J10: 0.27 | K10: 63.28 | L10: 6.26 | M10: 4.34 | N10: 0.56 | O10: 1.03 | P10: 0.20 | Q10: 1.57 | R10: 0.64 | S10: 1.11 | T10: 0.65 | U10: 9.17 | V10: 0.35 | W10: 0.35 | X10: 1.02 | Y10: 3.51 | Z10: 0.10 | AA10: 0.36 | AB10: 0.00 | AC10: 0.94 | AD10: 0.09 | AE10: 0.05 | AF10: 0.04 | AG10: 0.37 | AH10: 2.08 | AI10: 1.63 | AJ10: 2.08 | AK10: 2.24 | AL10: 11.68
A11: 1.3收益和经常转移 | C11: 7.31 | D11: 1.02 | E11: 0.58 | F11: 0.12 | G11: 0.07 | H11: 0.75 | I11: 0.46 | J11: 0.37 | K11: 7.89 | L11: 2.17 | M11: 5.87 | N11: 0.29 | O11: 2.05 | P11: 0.26 | Q11: 1.32 | R11: 0.81 | S11: 0.79 | T11: 0.43 | U11: 3.03 | V11: 0.25 | W11: 0.08 | X11: 0.23 | Y11: 2.32 | Z11: 0.05 | AA11: 0.20 | AB11: 0.00 | AC11: 0.31 | AD11: 0.09 | AE11: 0.01 | AF11: 0.03 | AG11: 0.07 | AH11: 0.53 | AI11: 0.27 | AJ11: 0.28 | AK11: 1.58 | AL11: 2.22
A12: 2.资本与金融项目 | C12: 19.81 | D12: 0.98 | E12: 0.73 | F12: 0.24 | G12: 0.11 | H12: 0.16 | I12: 0.26 | J12: 0.35 | K12: 69.82 | L12: 8.53 | M12: 9.89 | N12: 1.64 | O12: 0.56 | P12: 1.57 | Q12: 5.73 | R12: 1.38 | S12: 1.52 | T12: 0.58 | U12: 6.53 | V12: 0.32 | W12: 0.84 | X12: 0.16 | Y12: 1.93 | Z12: 0.06 | AA12: 0.44 | AB12: 0.08 | AC12: 0.42 | AD12: 0.26 | AE12: 0.00 | AF12: 0.06 | AG12: 0.75 | AH12: 0.30 | AI12: 1.10 | AJ12: 0.76 | AK12: 2.08 | AL12: 13.40
A13: 其中: 直接投资 | C13: 8.70 | D13: 0.84 | E13: 0.43 | F13: 0.09 | G13: 0.06 | H13: 0.04 | I13: 0.26 | J13: 0.24 | K13: 11.42 | L13: 7.00 | M13: 6.17 | N13: 0.95 | O13: 0.52 | P13: 0.33 | Q13: 5.65 | R13: 0.80 | S13: 1.14 | T13: 0.21 | U13: 4.25 | V13: 0.21 | W13: 0.61 | X13: 0.14 | Y13: 1.37 | Z13: 0.02 | AA13: 0.02 | AB13: 0.08 | AC13: 0.29 | AD13: 0.00 | AE13: 0.00 | AF13: 0.06 | AG13: 0.75 | AH13: 0.17 | AI13: 0.68 | AJ13: 0.72 | AK13: 1.77 | AL13: 7.83
A14: 证券投资 | C14: 8.07 | D14: 0.11 | E14: 0.00 | F14: 0.00 | G14: 0.00 | H14: 0.01 | I14: 0.00 | J14: 0.00 | K14: 57.09 | L14: 0.83 | M14: 2.45 | N14: 0.02 | O14: 0.00 | P14: 0.91 | Q14: 0.04 | R14: 0.00 | S14: 0.01 | T14: 0.01 | U14: 1.56 | V14: 0.02 | W14: 0.22 | X14: 0.01 | Y14: 0.19 | Z14: 0.00 | AA14: 0.11 | AB14: 0.00 | AC14: 0.00 | AD14: 0.18 | AE14: 0.00 | AF14: 0.00 | AG14: 0.00 | AH14: 0.01 | AI14: 0.36 | AJ14: 0.00 | AK14: 0.18 | AL14: 5.18
A15: 二、售汇 | C15: 375.96 | D15: 36.19 | E15: 21.43 | F15: 12.98 | G15: 8.63 | H15: 18.49 | I15: 8.93 | J15: 7.29 | K15: 477.82 | L15: 145.35 | M15: 99.19 | N15: 38.27 | O15: 41.03 | P15: 13.58 | Q15: 58.41 | R15: 18.62 | S15: 28.28 | T15: 20.82 | U15: 122.24 | V15: 30.27 | W15: 19.28 | X15: 26.08 | Y15: 33.24 | Z15: 4.44 | AA15: 8.67 | AB15: 0.30 | AC15: 18.44 | AD15: 7.39 | AE15: 0.22 | AF15: 1.04 | AG15: 4.22 | AH15: 16.31 | AI15: 79.84 | AJ15: 72.98 | AK15: 46.10 | AL15: 114.84
A16: (一）银行自身 | C16: 23.28 | D16: 0.00 | E16: 0.00 | F16: 0.00 | G16: 0.00 | H16: 0.00 | I16: 0.01 | J16: 0.02 | K16: 20.63 | L16: 0.05 | M16: 1.14 | N16: 0.00 | O16: 1.41 | P16: 0.00 | Q16: 0.05 | R16: 0.00 | S16: 0.00 | T16: 0.00 | U16: 1.36 | V16: 0.00 | W16: 0.00 | X16: 0.00 | Y16: 0.00 | Z16: 0.00 | AA16: 0.00 | AB16: 0.00 | AC16: 0.00 | AD16: 0.00 | AE16: 0.00 | AF16: 0.00 | AG16: 0.00 | AH16: 0.00 | AI16: 29.43 | AJ16: 0.25 | AK16: 0.21 | AL16: 0.68
A17: (二）银行代客 | C17: 352.68 | D17: 36.19 | E17: 21.43 | F17: 12.97 | G17: 8.63 | H17: 18.49 | I17: 8.92 | J17: 7.27 | K17: 457.20 | L17: 145.30 | M17: 98.05 | N17: 38.27 | O17: 39.63 | P17: 13.58 | Q17: 58.36 | R17: 18.62 | S17: 28.28 | T17: 20.82 | U17: 120.88 | V17: 30.27 | W17: 19.28 | X17: 26.08 | Y17: 33.24 | Z17: 4.44 | AA17: 8.67 | AB17: 0.30 | AC17: 18.44 | AD17: 7.39 | AE17: 0.22 | AF17: 1.04 | AG17: 4.22 | AH17: 16.31 | AI17: 50.41 | AJ17: 72.73 | AK17: 45.89 | AL17: 114.17
A18: 1.经常项目 | C18: 307.39 | D18: 33.43 | E18: 18.80 | F18: 12.03 | G18: 7.87 | H18: 15.88 | I18: 8.68 | J18: 7.22 | K18: 308.08 | L18: 125.28 | M18: 86.52 | N18: 35.27 | O18: 35.21 | P18: 12.75 | Q18: 52.68 | R18: 15.13 | S18: 24.16 | T18: 17.76 | U18: 108.17 | V18: 25.25 | W18: 13.42 | X18: 25.20 | Y18: 24.11 | Z18: 3.15 | AA18: 7.56 | AB18: 0.30 | AC18: 11.53 | AD18: 5.98 | AE18: 0.17 | AF18: 0.93 | AG18: 3.68 | AH18: 15.95 | AI18: 45.12 | AJ18: 70.58 | AK18: 42.07 | AL18: 95.00
A19: 1.1货物贸易 | C19: 253.15 | D19: 24.35 | E19: 15.45 | F19: 10.14 | G19: 6.53 | H19: 12.25 | I19: 6.29 | J19: 4.97 | K19: 215.79 | L19: 106.03 | M19: 64.59 | N19: 30.21 | O19: 30.96 | P19: 10.88 | Q19: 45.09 | R19: 11.00 | S19: 16.40 | T19: 15.28 | U19: 86.26 | V19: 23.99 | W19: 11.01 | X19: 21.47 | Y19: 17.99 | Z19: 2.38 | AA19: 6.00 | AB19: 0.16 | AC19: 8.17 | AD19: 5.13 | AE19: 0.05 | AF19: 0.59 | AG19: 2.75 | AH19: 13.38 | AI19: 42.01 | AJ19: 67.20 | AK19: 37.92 | AL19: 70.68
A20: 1.2服务贸易 | C20: 47.45 | D20: 5.92 | E20: 2.92 | F20: 1.76 | G20: 1.17 | H20: 3.35 | I20: 1.96 | J20: 2.19 | K20: 75.91 | L20: 15.72 | M20: 17.21 | N20: 4.40 | O20: 3.37 | P20: 1.42 | Q20: 6.93 | R20: 3.49 | S20: 4.76 | T20: 2.15 | U20: 18.35 | V20: 1.06 | W20: 2.36 | X20: 2.62 | Y20: 5.54 | Z20: 0.70 | AA20: 1.33 | AB20: 0.13 | AC20: 2.75 | AD20: 0.67 | AE20: 0.10 | AF20: 0.26 | AG20: 0.88 | AH20: 2.37 | AI20: 2.44 | AJ20: 2.95 | AK20: 3.16 | AL20: 20.55
A21: 1.3收益和经常转移 | C21: 6.79 | D21: 3.16 | E21: 0.43 | F21: 0.14 | G21: 0.17 | H21: 0.27 | I21: 0.43 | J21: 0.06 | K21: 16.38 | L21: 3.52 | M21: 4.72 | N21: 0.66 | O21: 0.87 | P21: 0.45 | Q21: 0.66 | R21: 0.64 | S21: 3.00 | T21: 0.33 | U21: 3.57 | V21: 0.20 | W21: 0.05 | X21: 1.12 | Y21: 0.57 | Z21: 0.06 | AA21: 0.24 | AB21: 0.00 | AC21: 0.61 | AD21: 0.17 | AE21: 0.02 | AF21: 0.08 | AG21: 0.06 | AH21: 0.20 | AI21: 0.67 | AJ21: 0.43 | AK21: 0.99 | AL21: 3.77
A22: 2.资本与金融项目 | C22: 45.29 | D22: 2.76 | E22: 2.63 | F22: 0.94 | G22: 0.75 | H22: 2.61 | I22: 0.25 | J22: 0.05 | K22: 149.12 | L22: 20.02 | M22: 11.53 | N22: 3.00 | O22: 4.42 | P22: 0.83 | Q22: 5.69 | R22: 3.49 | S22: 4.12 | T22: 3.06 | U22: 12.71 | V22: 5.02 | W22: 5.86 | X22: 0.88 | Y22: 9.13 | Z22: 1.29 | AA22: 1.10 | AB22: 0.00 | AC22: 6.91 | AD22: 1.41 | AE22: 0.05 | AF22: 0.11 | AG22: 0.53 | AH22: 0.36 | AI22: 5.29 | AJ22: 2.16 | AK22: 3.82 | AL22: 19.17
A23: 其中: 直接投资 | C23: 27.21 | D23: 0.68 | E23: 0.27 | F23: 0.03 | G23: 0.31 | H23: 1.27 | I23: 0.09 | J23: 0.03 | K23: 17.74 | L23: 9.25 | M23: 6.30 | N23: 0.62 | O23: 0.24 | P23: 0.22 | Q23: 1.72 | R23: 0.44 | S23: 0.78 | T23: 0.18 | U23: 5.03 | V23: 0.03 | W23: 4.30 | X23: 0.51 | Y23: 1.82 | Z23: 0.08 | AA23: 0.09 | AB23: 0.00 | AC23: 0.29 | AD23: 0.00 | AE23: 0.01 | AF23: 0.01 | AG23: 0.09 | AH23: 0.23 | AI23: 3.18 | AJ23: 0.74 | AK23: 2.10 | AL23: 6.95
A24: 证券投资 | C24: 7.12 | D24: 0.08 | E24: 0.01 | F24: 0.00 | G24: 0.21 | H24: 0.00 | I24: 0.00 | J24: 0.00 | K24: 123.89 | L24: 0.94 | M24: 1.71 | N24: 0.34 | O24: 0.07 | P24: 0.00 | Q24: 0.77 | R24: 0.00 | S24: 0.21 | T24: 2.29 | U24: 3.41 | V24: 1.10 | W24: 0.19 | X24: 0.00 | Y24: 4.57 | Z24: 0.08 | AA24: 0.00 | AB24: 0.00 | AC24: 3.91 | AD24: 0.04 | AE24: 0.00 | AF24: 0.00 | AG24: 0.00 | AH24: 0.01 | AI24: 0.02 | AJ24: 1.23 | AK24: 0.60 | AL24: 8.35
A25: 三、差额 | C25: =C5-C15 -> -275.14 | D25: =D5-D15 -> -4.55 | E25: 5.63 | F25: -9.45 | G25: -5.14 | H25: -8.26 | I25: -5.16 | J25: -4.11 | K25: -172.88 | L25: 70.04 | M25: 163.87 | N25: -6.15 | O25: 7.85 | P25: 3.54 | Q25: 31.01 | R25: 7.38 | S25: -6.45 | T25: -3.38 | U25: 83.88 | V25: -22.48 | W25: -15.82 | X25: 3.76 | Y25: -7.91 | Z25: -1.22 | AA25: -3.87 | AB25: -0.20 | AC25: 2.07 | AD25: -6.13 | AE25: 0.14 | AF25: 0.21 | AG25: 1.25 | AH25: 2.19 | AI25: 22.44 | AJ25: -38.49 | AK25: -6.78 | AL25: 39.26
A26: (一）银行自身 | C26: -13.85 | D26: 0.01 | E26: 0.00 | F26: -0.00 | G26: -0.00 | H26: 0.00 | I26: -0.01 | J26: -0.02 | K26: 1.45 | L26: 0.02 | M26: 10.47 | N26: -0.00 | O26: 0.04 | P26: 0.00 | Q26: 0.00 | R26: 0.02 | S26: 0.00 | T26: 0.00 | U26: -0.75 | V26: 0.07 | W26: -0.00 | X26: 0.01 | Y26: 0.01 | Z26: -0.00 | AA26: -0.00 | AB26: 0 | AC26: 0.00 | AD26: 0.00 | AE26: 0 | AF26: 0 | AG26: 0.00 | AH26: 0.00 | AI26: -0.52 | AJ26: -0.24 | AK26: -0.19 | AL26: -0.58
A27: (二）银行代客 | C27: -261.29 | D27: -4.56 | E27: 5.63 | F27: -9.45 | G27: -5.14 | H27: -8.26 | I27: -5.15 | J27: -4.09 | K27: -174.34 | L27: 70.02 | M27: 153.40 | N27: -6.14 | O27: 7.81 | P27: 3.54 | Q27: 31.00 | R27: 7.37 | S27: -6.46 | T27: -3.39 | U27: 84.63 | V27: -22.55 | W27: -15.82 | X27: 3.75 | Y27: -7.92 | Z27: -1.21 | AA27: -3.87 | AB27: -0.20 | AC27: 2.07 | AD27: -6.13 | AE27: 0.14 | AF27: 0.21 | AG27: 1.25 | AH27: 2.19 | AI27: 22.96 | AJ27: -38.26 | AK27: -6.58 | AL27: 39.83
A28: 1.经常项目 | C28: -235.82 | D28: -2.78 | E28: 7.53 | F28: -8.75 | G28: -4.50 | H28: -5.81 | I28: -5.17 | J28: -4.39 | K28: -95.04 | L28: 81.51 | M28: 155.03 | N28: -4.78 | O28: 11.67 | P28: 2.80 | Q28: 30.96 | R28: 9.47 | S28: -3.87 | T28: -0.90 | U28: 90.81 | V28: -17.85 | W28: -10.80 | X28: 4.47 | Y28: -0.72 | Z28: 0.02 | AA28: -3.21 | AB28: -0.28 | AC28: 8.56 | AD28: -4.98 | AE28: 0.19 | AF28: 0.27 | AG28: 1.03 | AH28: 2.25 | AI28: 27.15 | AJ28: -36.86 | AK28: -4.84 | AL28: 45.60
A29: 1.1货物贸易 | C29: -212.24 | D29: 2.79 | E29: 9.52 | F29: -7.23 | G29: -3.45 | H29: -3.43 | I29: -3.52 | J29: -2.78 | K29: -73.92 | L29: 92.33 | M29: 166.76 | N29: -0.57 | O29: 12.83 | P29: 4.21 | Q29: 35.65 | R29: 12.16 | S29: 2.00 | T29: 0.50 | U29: 100.53 | V29: -17.19 | W29: -8.82 | X29: 6.95 | Y29: -0.44 | Z29: 0.63 | AA29: -2.21 | AB29: -0.16 | AC29: 10.66 | AD29: -4.32 | AE29: 0.24 | AF29: 0.55 | AG29: 1.52 | AH29: 2.21 | AI29: 28.37 | AJ29: -35.84 | AK29: -4.51 | AL29: 56.02
A30: 1.2服务贸易 | C30: -24.10 | D30: -3.44 | E30: -2.14 | F30: -1.50 | G30: -0.95 | H30: -2.86 | I30: -1.68 | J30: -1.92 | K30: -12.63 | L30: -9.46 | M30: -12.87 | N30: -3.84 | O30: -2.34 | P30: -1.22 | Q30: -5.36 | R30: -2.85 | S30: -3.66 | T30: -1.50 | U30: -9.18 | V30: -0.71 | W30: -2.01 | X30: -1.60 | Y30: -2.03 | Z30: -0.60 | AA30: -0.96 | AB30: -0.13 | AC30: -1.81 | AD30: -0.59 | AE30: -0.05 | AF30: -0.22 | AG30: -0.51 | AH30: -0.29 | AI30: -0.81 | AJ30: -0.87 | AK30: -0.92 | AL30: -8.87
A31: 1.3收益和经常转移 | C31: 0.53 | D31: -2.14 | E31: 0.15 | F31: -0.02 | G31: -0.11 | H31: 0.48 | I31: 0.03 | J31: 0.31 | K31: -8.48 | L31: -1.35 | M31: 1.15 | N31: -0.37 | O31: 1.19 | P31: -0.19 | Q31: 0.66 | R31: 0.16 | S31: -2.21 | T31: 0.10 | U31: -0.54 | V31: 0.05 | W31: 0.03 | X31: -0.88 | Y31: 1.75 | Z31: -0.02 | AA31: -0.03 | AB31: -0.00 | AC31: -0.30 | AD31: -0.08 | AE31: -0.00 | AF31: -0.05 | AG31: 0.02 | AH31: 0.33 | AI31: -0.41 | AJ31: -0.15 | AK31: 0.59 | AL31: -1.55
A32: 2.资本与金融项目 | C32: -25.48 | D32: -1.78 | E32: -1.90 | F32: -0.70 | G32: =G12-G22 -> -0.64 | H32: -2.45 | I32: 0.02 | J32: 0.30 | K32: -79.30 | L32: -11.49 | M32: -1.63 | N32: -1.36 | O32: -3.86 | P32: 0.74 | Q32: 0.05 | R32: -2.11 | S32: -2.59 | T32: -2.49 | U32: -6.18 | V32: -4.70 | W32: -5.02 | X32: -0.72 | Y32: -7.20 | Z32: -1.23 | AA32: -0.67 | AB32: 0.08 | AC32: -6.49 | AD32: -1.15 | AE32: -0.05 | AF32: -0.06 | AG32: 0.22 | AH32: -0.07 | AI32: -4.19 | AJ32: -1.39 | AK32: -1.74 | AL32: -5.77
A33: 其中: 直接投资 | C33: =C13-C23 -> -18.51 | D33: 0.16 | E33: 0.16 | F33: 0.06 | G33: -0.25 | H33: -1.22 | I33: 0.17 | J33: 0.21 | K33: -6.32 | L33: -2.25 | M33: -0.13 | N33: 0.33 | O33: 0.28 | P33: 0.11 | Q33: 3.93 | R33: 0.37 | S33: 0.36 | T33: 0.04 | U33: -0.79 | V33: 0.18 | W33: -3.69 | X33: -0.37 | Y33: -0.45 | Z33: -0.05 | AA33: -0.07 | AB33: 0.08 | AC33: 0.00 | AD33: -0.00 | AE33: -0.01 | AF33: 0.05 | AG33: 0.66 | AH33: -0.06 | AI33: -2.50 | AJ33: -0.02 | AK33: -0.34 | AL33: 0.88
A34: 证券投资 | C34: 0.95 | D34: 0.04 | E34: -0.01 | F34: 0.00 | G34: -0.21 | H34: 0.01 | I34: 0 | J34: -0.00 | K34: -66.80 | L34: -0.11 | M34: 0.74 | N34: -0.32 | O34: -0.07 | P34: 0.91 | Q34: -0.74 | R34: 0 | S34: -0.21 | T34: -2.29 | U34: -1.84 | V34: -1.07 | W34: 0.03 | X34: 0.01 | Y34: -4.38 | Z34: -0.08 | AA34: 0.11 | AB34: 0 | AC34: -3.91 | AD34: 0.14 | AE34: 0.00 | AF34: 0 | AG34: 0 | AH34: 0.00 | AI34: 0.34 | AJ34: -1.22 | AK34: -0.42 | AL34: -3.17
A35: 注： 1.分地区是指办理结售汇业务的银行所在地。其中，本表中辽宁不含大连，浙江不含宁波，福建不含厦门，山东不含青岛，广东不含深圳。

Sheet 2023年4月（按美元）
A2: 2023年4月银行结售汇数据（分地区）
A3: 单位：亿美元
A4: 项目 | C4: 北京 | D4: 天津 | E4: 河北 | F4: 山西 | G4: 内蒙古 | H4: 辽宁 | I4: 吉林 | J4: 黑龙江 | K4: 上海 | L4: 江苏 | M4: 浙江 | N4: 安徽 | O4: 福建 | P4: 江西 | Q4: 山东 | R4: 河南 | S4: 湖北 | T4: 湖南 | U4: 广东 | V4: 广西 | W4: 海南 | X4: 重庆 | Y4: 四川 | Z4: 贵州 | AA4: 云南 | AB4: 西藏 | AC4: 陕西 | AD4: 甘肃 | AE4: 青海 | AF4: 宁夏 | AG4: 新疆 | AH4: 大连 | AI4: 宁波 | AJ4: 厦门 | AK4: 青岛 | AL4: 深圳
A5: 一、结汇 | C5: 123.07 | D5: 32.74 | E5: 26.69 | F5: 4.25 | G5: 2.91 | H5: 8.61 | I5: 3.31 | J5: 2.98 | K5: 262.25 | L5: 231.73 | M5: 248.37 | N5: 36.56 | O5: 55.94 | P5: 16.85 | Q5: 92.58 | R5: 25.28 | S5: 21.50 | T5: 20.72 | U5: 192.66 | V5: 7.57 | W5: 5.52 | X5: 24.21 | Y5: 25.39 | Z5: 2.16 | AA5: 4.07 | AB5: 0.02 | AC5: 25.18 | AD5: 3.12 | AE5: 0.26 | AF5: 1.46 | AG5: 4.59 | AH5: 16.92 | AI5: 113.80 | AJ5: 38.93 | AK5: 40.06 | AL5: 146.79
A6: (一）银行自身 | C6: 38.35 | D6: 0.07 | E6: 0.00 | F6: 0.00 | G6: 0.00 | H6: 0.03 | I6: 0.00 | J6: 0.00 | K6: 7.80 | L6: 0.08 | M6: 2.30 | N6: 0.01 | O6: 1.84 | P6: 0.00 | Q6: 0.08 | R6: 0.01 | S6: 0.01 | T6: 0.00 | U6: 0.15 | V6: 0.00 | W6: 0.00 | X6: 0.01 | Y6: 0.01 | Z6: 0.00 | AA6: 0.00 | AB6: 0.00 | AC6: 0.08 | AD6: 0.00 | AE6: 0.00 | AF6: 0.00 | AG6: 0.00 | AH6: 0.00 | AI6: 34.43 | AJ6: 0.01 | AK6: 0.01 | AL6: 0.41
A7: (二）银行代客 | C7: 84.72 | D7: 32.67 | E7: 26.68 | F7: 4.25 | G7: 2.91 | H7: 8.59 | I7: 3.31 | J7: 2.98 | K7: 254.44 | L7: 231.65 | M7: 246.07 | N7: 36.55 | O7: 54.10 | P7: 16.85 | Q7: 92.50 | R7: 25.27 | S7: 21.49 | T7: 20.72 | U7: 192.51 | V7: 7.57 | W7: 5.52 | X7: 24.20 | Y7: 25.39 | Z7: 2.16 | AA7: 4.07 | AB7: 0.02 | AC7: 25.10 | AD7: 3.12 | AE7: 0.26 | AF7: 1.46 | AG7: 4.59 | AH7: 16.91 | AI7: 79.37 | AJ7: 38.92 | AK7: 40.06 | AL7: 146.39
A8: 1.经常项目 | C8: 67.13 | D8: 30.68 | E8: 26.22 | F8: 4.12 | G8: 2.71 | H8: 8.42 | I8: 3.08 | J8: 2.83 | K8: 189.78 | L8: 224.20 | M8: 238.98 | N8: 34.98 | O8: 53.42 | P8: 15.21 | Q8: 87.07 | R8: 21.96 | S8: 20.28 | T8: 20.33 | U8: 187.77 | V8: 7.06 | W8: 4.35 | X8: 23.30 | Y8: 23.73 | Z8: 2.15 | AA8: 3.73 | AB8: 0.02 | AC8: 24.23 | AD8: 1.15 | AE8: 0.26 | AF8: 1.44 | AG8: 4.20 | AH8: 16.70 | AI8: 78.61 | AJ8: 37.83 | AK8: 39.19 | AL8: 133.29
A9: 1.1货物贸易 | C9: 39.35 | D9: 27.52 | E9: 24.82 | F9: 3.78 | G9: 2.44 | H9: 7.26 | I9: 2.48 | J9: 2.31 | K9: 135.57 | L9: 216.65 | M9: 231.07 | N9: 33.92 | O9: 50.49 | P9: 14.80 | Q9: 83.43 | R9: 20.64 | S9: 18.45 | T9: 19.39 | U9: 173.80 | V9: 6.49 | W9: 3.86 | X9: 22.24 | Y9: 16.65 | Z9: 1.94 | AA9: 3.42 | AB9: 0.01 | AC9: 22.99 | AD9: 0.97 | AE9: 0.21 | AF9: 1.38 | AG9: 3.78 | AH9: 15.03 | AI9: 76.61 | AJ9: 36.05 | AK9: 35.98 | AL9: 120.77
A10: 1.2服务贸易 | C10: 21.53 | D10: 2.40 | E10: 0.81 | F10: 0.23 | G10: 0.18 | H10: 0.45 | I10: 0.19 | J10: 0.23 | K10: 49.16 | L10: 5.72 | M10: 3.56 | N10: 0.73 | O10: 1.06 | P10: 0.21 | Q10: 2.21 | R10: 0.58 | S10: 1.10 | T10: 0.57 | U10: 11.21 | V10: 0.31 | W10: 0.41 | X10: 0.75 | Y10: 3.77 | Z10: 0.14 | AA10: 0.16 | AB10: 0.00 | AC10: 0.96 | AD10: 0.07 | AE10: 0.04 | AF10: 0.03 | AG10: 0.32 | AH10: 1.26 | AI10: 1.54 | AJ10: 1.49 | AK10: 2.62 | AL10: 10.35
A11: 1.3收益和经常转移 | C11: 6.24 | D11: 0.77 | E11: 0.58 | F11: 0.11 | G11: 0.09 | H11: 0.70 | I11: 0.41 | J11: 0.29 | K11: 5.05 | L11: 1.83 | M11: 4.35 | N11: 0.34 | O11: 1.87 | P11: 0.20 | Q11: 1.43 | R11: 0.74 | S11: 0.72 | T11: 0.38 | U11: 2.75 | V11: 0.27 | W11: 0.07 | X11: 0.30 | Y11: 3.31 | Z11: 0.06 | AA11: 0.15 | AB11: 0.00 | AC11: 0.27 | AD11: 0.11 | AE11: 0.01 | AF11: 0.02 | AG11: 0.10 | AH11: 0.41 | AI11: 0.47 | AJ11: 0.28 | AK11: 0.59 | AL11: 2.17
A12: 2.资本与金融项目 | C12: 17.59 | D12: 1.99 | E12: 0.47 | F12: 0.13 | G12: 0.20 | H12: 0.17 | I12: 0.23 | J12: 0.14 | K12: 64.66 | L12: 7.45 | M12: 7.09 | N12: 1.57 | O12: 0.68 | P12: 1.64 | Q12: 5.43 | R12: 3.31 | S12: 1.21 | T12: 0.39 | U12: 4.74 | V12: 0.51 | W12: 1.18 | X12: 0.90 | Y12: 1.66 | Z12: 0.02 | AA12: 0.34 | AB12: 0.00 | AC12: 0.87 | AD12: 1.97 | AE12: 0.00 | AF12: 0.02 | AG12: 0.39 | AH12: 0.21 | AI12: 0.76 | AJ12: 1.09 | AK12: 0.86 | AL12: 13.10
A13: 其中: 直接投资 | C13: 7.81 | D13: 0.92 | E13: 0.39 | F13: 0.13 | G13: 0.08 | H13: 0.02 | I13: 0.22 | J13: 0.13 | K13: 8.90 | L13: 5.73 | M13: 4.25 | N13: 1.13 | O13: 0.60 | P13: 0.19 | Q13: 5.05 | R13: 0.66 | S13: 1.09 | T13: 0.21 | U13: 3.41 | V13: 0.08 | W13: 0.48 | X13: 0.59 | Y13: 0.98 | Z13: 0.00 | AA13: 0.32 | AB13: 0.00 | AC13: 0.20 | AD13: 0.00 | AE13: 0.00 | AF13: 0.01 | AG13: 0.15 | AH13: 0.10 | AI13: 0.60 | AJ13: 1.06 | AK13: 0.84 | AL13: 3.21
A14: 证券投资 | C14: 7.86 | D14: 0.93 | E14: 0.00 | F14: 0.00 | G14: 0.04 | H14: 0.00 | I14: 0.00 | J14: 0.00 | K14: 53.63 | L14: 0.70 | M14: 2.31 | N14: 0.14 | O14: 0.00 | P14: 1.29 | Q14: 0.14 | R14: 2.33 | S14: 0.02 | T14: 0.01 | U14: 1.13 | V14: 0.00 | W14: 0.64 | X14: 0.28 | Y14: 0.61 | Z14: 0.00 | AA14: 0.00 | AB14: 0.00 | AC14: 0.01 | AD14: 1.89 | AE14: 0.00 | AF14: 0.00 | AG14: 0.09 | AH14: 0.05 | AI14: 0.09 | AJ14: 0.00 | AK14: 0.00 | AL14: 9.65
A15: 二、售汇 | C15: 361.90 | D15: 30.21 | E15: 19.59 | F15: 5.63 | G15: 20.37 | H15: 17.48 | I15: 8.16 | J15: 6.46 | K15: 400.90 | L15: 120.59 | M15: 75.88 | N15: 30.91 | O15: 34.69 | P15: 12.28 | Q15: 62.36 | R15: 15.91 | S15: 23.58 | T15: 16.03 | U15: 106.29 | V15: 22.14 | W15: 16.12 | X15: 22.89 | Y15: 31.83 | Z15: 2.66 | AA15: 5.66 | AB15: 0.30 | AC15: 23.42 | AD15: 5.45 | AE15: 0.23 | AF15: 0.80 | AG15: 4.90 | AH15: 8.52 | AI15: 90.62 | AJ15: 58.96 | AK15: 40.65 | AL15: 110.14
A16: (一）银行自身 | C16: 6.83 | D16: 0.05 | E16: 0.01 | F16: 0.00 | G16: 0.00 | H16: 0.00 | I16: 0.00 | J16: 0.00 | K16: 22.45 | L16: 0.19 | M16: 0.53 | N16: 0.00 | O16: 3.14 | P16: 0.00 | Q16: 0.00 | R16: 0.00 | S16: 0.00 | T16: 0.00 | U16: 0.01 | V16: 0.00 | W16: 0.12 | X16: 0.00 | Y16: 0.00 | Z16: 0.00 | AA16: 0.00 | AB16: 0.00 | AC16: 0.00 | AD16: 0.00 | AE16: 0.00 | AF16: 0.00 | AG16: 0.00 | AH16: 0.00 | AI16: 38.18 | AJ16: 0.17 | AK16: 0.00 | AL16: 6.45
A17: (二）银行代客 | C17: 355.06 | D17: 30.16 | E17: 19.58 | F17: 5.63 | G17: 20.37 | H17: 17.48 | I17: 8.16 | J17: 6.46 | K17: 378.45 | L17: 120.41 | M17: 75.35 | N17: 30.91 | O17: 31.55 | P17: 12.28 | Q17: 62.36 | R17: 15.91 | S17: 23.58 | T17: 16.03 | U17: 106.28 | V17: 22.14 | W17: 16.00 | X17: 22.89 | Y17: 31.83 | Z17: 2.66 | AA17: 5.66 | AB17: 0.30 | AC17: 23.42 | AD17: 5.45 | AE17: 0.23 | AF17: 0.80 | AG17: 4.90 | AH17: 8.52 | AI17: 52.44 | AJ17: 58.78 | AK17: 40.65 | AL17: 103.69
A18: 1.经常项目 | C18: 316.50 | D18: 26.67 | E18: 17.23 | F18: 5.27 | G18: 7.62 | H18: 15.81 | I18: 7.97 | J18: 5.96 | K18: 274.20 | L18: 109.10 | M18: 69.76 | N18: 28.16 | O18: 28.61 | P18: 11.68 | Q18: 55.70 | R18: 14.52 | S18: 21.32 | T18: 14.24 | U18: 96.56 | V18: 21.47 | W18: 12.63 | X18: 21.87 | Y18: 29.88 | Z18: 2.46 | AA18: 4.60 | AB18: 0.30 | AC18: 13.41 | AD18: 4.98 | AE18: 0.17 | AF18: 0.77 | AG18: 3.29 | AH18: 7.95 | AI18: 44.06 | AJ18: 58.01 | AK18: 37.06 | AL18: 83.37
A19: 1.1货物贸易 | C19: 262.81 | D19: 20.15 | E19: 14.89 | F19: 4.22 | G19: 6.74 | H19: 13.04 | I19: 5.57 | J19: 4.49 | K19: 204.91 | L19: 94.99 | M19: 56.20 | N19: 25.75 | O19: 24.94 | P19: 9.55 | Q19: 48.63 | R19: 11.99 | S19: 17.81 | T19: 12.56 | U19: 78.46 | V19: 20.21 | W19: 10.20 | X19: 17.27 | Y19: 24.88 | Z19: 1.88 | AA19: 3.50 | AB19: 0.24 | AC19: 11.34 | AD19: 4.51 | AE19: 0.05 | AF19: 0.58 | AG19: 2.57 | AH19: 6.26 | AI19: 39.81 | AJ19: 55.59 | AK19: 33.91 | AL19: 64.04
A20: 1.2服务贸易 | C20: 36.87 | D20: 3.19 | E20: 1.88 | F20: 1.02 | G20: 0.82 | H20: 2.59 | I20: 1.90 | J20: 1.33 | K20: 59.86 | L20: 10.80 | M20: 7.90 | N20: 2.05 | O20: 2.56 | P20: 1.03 | Q20: 4.59 | R20: 2.08 | S20: 2.96 | T20: 1.51 | U20: 14.80 | V20: 0.96 | W20: 2.38 | X20: 2.20 | Y20: 4.00 | Z20: 0.49 | AA20: 0.91 | AB20: 0.06 | AC20: 1.66 | AD20: 0.41 | AE20: 0.07 | AF20: 0.18 | AG20: 0.60 | AH20: 1.59 | AI20: 2.40 | AJ20: 2.04 | AK20: 2.36 | AL20: 18.11
A21: 1.3收益和经常转移 | C21: 16.82 | D21: 3.34 | E21: 0.47 | F21: 0.03 | G21: 0.06 | H21: 0.18 | I21: 0.50 | J21: 0.15 | K21: 9.44 | L21: 3.31 | M21: 5.67 | N21: 0.36 | O21: 1.11 | P21: 1.10 | Q21: 2.48 | R21: 0.45 | S21: 0.55 | T21: 0.17 | U21: 3.31 | V21: 0.30 | W21: 0.04 | X21: 2.40 | Y21: 1.00 | Z21: 0.09 | AA21: 0.18 | AB21: 0.00 | AC21: 0.41 | AD21: 0.05 | AE21: 0.05 | AF21: 0.02 | AG21: 0.12 | AH21: 0.10 | AI21: 1.84 | AJ21: 0.38 | AK21: 0.79 | AL21: 1.22
A22: 2.资本与金融项目 | C22: 38.56 | D22: 3.49 | E22: 2.35 | F22: 0.36 | G22: 12.75 | H22: 1.66 | I22: 0.19 | J22: 0.50 | K22: 104.24 | L22: 11.31 | M22: 5.59 | N22: 2.75 | O22: 2.94 | P22: 0.60 | Q22: 6.67 | R22: 1.39 | S22: 2.26 | T22: 1.78 | U22: 9.71 | V22: 0.68 | W22: 3.37 | X22: 1.03 | Y22: 1.96 | Z22: 0.20 | AA22: 1.07 | AB22: 0.00 | AC22: 10.01 | AD22: 0.47 | AE22: 0.06 | AF22: 0.03 | AG22: 1.61 | AH22: 0.56 | AI22: 8.39 | AJ22: 0.77 | AK22: 3.59 | AL22: 20.32
A23: 其中: 直接投资 | C23: 21.17 | D23: 1.59 | E23: 0.26 | F23: 0.07 | G23: 4.67 | H23: 0.37 | I23: 0.02 | J23: 0.07 | K23: 16.37 | L23: 4.75 | M23: 3.09 | N23: 1.38 | O23: 0.64 | P23: 0.32 | Q23: 3.51 | R23: 0.94 | S23: 1.03 | T23: 0.75 | U23: 4.13 | V23: 0.04 | W23: 3.14 | X23: 0.18 | Y23: 0.97 | Z23: 0.00 | AA23: 0.14 | AB23: 0.00 | AC23: 0.04 | AD23: 0.01 | AE23: 0.00 | AF23: 0.00 | AG23: 0.11 | AH23: 0.43 | AI23: 5.55 | AJ23: 0.46 | AK23: 1.54 | AL23: 8.18
A24: 证券投资 | C24: 10.69 | D24: 0.10 | E24: 0.03 | F24: 0.00 | G24: 7.39 | H24: 0.00 | I24: 0.00 | J24: 0.00 | K24: 79.28 | L24: 0.34 | M24: 0.94 | N24: 0.00 | O24: 0.00 | P24: 0.00 | Q24: 0.85 | R24: 0.00 | S24: 0.34 | T24: 0.00 | U24: 1.05 | V24: 0.29 | W24: 0.17 | X24: 0.00 | Y24: 0.00 | Z24: 0.00 | AA24: 0.07 | AB24: 0.00 | AC24: 0.00 | AD24: 0.04 | AE24: 0.00 | AF24: 0.00 | AG24: 0.60 | AH24: 0.03 | AI24: 0.04 | AJ24: 0.17 | AK24: 1.05 | AL24: 8.79
A25: 三、差额 | C25: =C5-C15 -> -238.83 | D25: =D5-D15 -> 2.53 | E25: 7.10 | F25: -1.38 | G25: -17.45 | H25: -8.86 | I25: -4.85 | J25: -3.48 | K25: -138.65 | L25: 111.14 | M25: 172.49 | N25: 5.64 | O25: 21.26 | P25: 4.56 | Q25: 30.21 | R25: 9.37 | S25: -2.09 | T25: 4.69 | U25: 86.37 | V25: -14.57 | W25: -10.59 | X25: 1.32 | Y25: -6.44 | Z25: -0.50 | AA25: -1.60 | AB25: -0.28 | AC25: 1.77 | AD25: -2.32 | AE25: 0.04 | AF25: 0.66 | AG25: -0.31 | AH25: 8.40 | AI25: 23.18 | AJ25: -20.03 | AK25: -0.59 | AL25: 36.65
A26: (一）银行自身 | C26: 31.51 | D26: 0.02 | E26: -0.01 | F26: -0.00 | G26: 0.00 | H26: 0.03 | I26: -0.00 | J26: 0.00 | K26: -14.65 | L26: -0.10 | M26: 1.77 | N26: 0.01 | O26: -1.30 | P26: 0.00 | Q26: 0.08 | R26: 0.01 | S26: 0.01 | T26: 0.00 | U26: 0.14 | V26: 0.00 | W26: -0.12 | X26: 0.01 | Y26: 0.01 | Z26: 0 | AA26: 0.00 | AB26: 0 | AC26: 0.08 | AD26: 0.00 | AE26: 0 | AF26: -0.00 | AG26: 0 | AH26: 0.00 | AI26: -3.74 | AJ26: -0.16 | AK26: 0.00 | AL26: -6.04
A27: (二）银行代客 | C27: -270.34 | D27: 2.51 | E27: 7.10 | F27: -1.38 | G27: -17.45 | H27: -8.89 | I27: -4.85 | J27: -3.48 | K27: -124.00 | L27: 111.24 | M27: 170.72 | N27: 5.64 | O27: 22.55 | P27: 4.56 | Q27: 30.14 | R27: 9.36 | S27: -2.10 | T27: 4.69 | U27: 86.23 | V27: -14.57 | W27: -10.48 | X27: 1.31 | Y27: -6.45 | Z27: -0.50 | AA27: -1.60 | AB27: -0.28 | AC27: 1.68 | AD27: -2.32 | AE27: 0.04 | AF27: 0.66 | AG27: -0.31 | AH27: 8.40 | AI27: 26.93 | AJ27: -19.87 | AK27: -0.59 | AL27: 42.69
A28: 1.经常项目 | C28: -249.37 | D28: 4.01 | E28: 8.98 | F28: -1.15 | G28: -4.90 | H28: -7.39 | I28: -4.89 | J28: -3.13 | K28: -84.42 | L28: 115.10 | M28: 169.22 | N28: 6.82 | O28: 24.81 | P28: 3.53 | Q28: 31.37 | R28: 7.44 | S28: -1.04 | T28: 6.09 | U28: 91.20 | V28: -14.41 | W28: -8.28 | X28: 1.43 | Y28: -6.15 | Z28: -0.32 | AA28: -0.87 | AB28: -0.28 | AC28: 10.82 | AD28: -3.83 | AE28: 0.09 | AF28: 0.67 | AG28: 0.91 | AH28: 8.75 | AI28: 34.56 | AJ28: -20.18 | AK28: 2.13 | AL28: 49.92
A29: 1.1货物贸易 | C29: -223.46 | D29: 7.37 | E29: 9.93 | F29: -0.44 | G29: -4.29 | H29: -5.78 | I29: -3.09 | J29: -2.17 | K29: -69.34 | L29: 121.66 | M29: 174.88 | N29: 8.16 | O29: 25.56 | P29: 5.25 | Q29: 34.80 | R29: 8.66 | S29: 0.64 | T29: 6.83 | U29: 95.34 | V29: -13.72 | W29: -6.34 | X29: 4.97 | Y29: -8.23 | Z29: 0.06 | AA29: -0.08 | AB29: -0.23 | AC29: 11.65 | AD29: -3.54 | AE29: 0.16 | AF29: 0.80 | AG29: 1.21 | AH29: 8.78 | AI29: 36.79 | AJ29: -19.53 | AK29: 2.07 | AL29: 56.73
A30: 1.2服务贸易 | C30: -15.34 | D30: -0.79 | E30: -1.07 | F30: -0.79 | G30: -0.64 | H30: -2.14 | I30: -1.71 | J30: -1.10 | K30: -10.70 | L30: -5.08 | M30: -4.33 | N30: -1.32 | O30: -1.50 | P30: -0.82 | Q30: -2.38 | R30: -1.50 | S30: -1.86 | T30: -0.94 | U30: -3.58 | V30: -0.65 | W30: -1.97 | X30: -1.45 | Y30: -0.22 | Z30: -0.35 | AA30: -0.75 | AB30: -0.06 | AC30: -0.69 | AD30: -0.34 | AE30: -0.03 | AF30: -0.14 | AG30: -0.28 | AH30: -0.34 | AI30: -0.87 | AJ30: -0.55 | AK30: 0.26 | AL30: -7.75
A31: 1.3收益和经常转移 | C31: -10.58 | D31: -2.57 | E31: 0.11 | F31: 0.08 | G31: 0.03 | H31: 0.53 | I31: -0.09 | J31: 0.15 | K31: -4.39 | L31: -1.48 | M31: -1.32 | N31: -0.02 | O31: 0.76 | P31: -0.90 | Q31: -1.05 | R31: 0.29 | S31: 0.18 | T31: 0.21 | U31: -0.56 | V31: -0.03 | W31: 0.03 | X31: -2.10 | Y31: 2.30 | Z31: -0.03 | AA31: -0.03 | AB31: 0.00 | AC31: -0.14 | AD31: 0.05 | AE31: -0.04 | AF31: 0.01 | AG31: -0.02 | AH31: 0.31 | AI31: -1.37 | AJ31: -0.10 | AK31: -0.20 | AL31: 0.94
A32: 2.资本与金融项目 | C32: -20.97 | D32: -1.50 | E32: -1.88 | F32: -0.23 | G32: =G12-G22 -> -12.55 | H32: -1.50 | I32: 0.04 | J32: -0.35 | K32: -39.58 | L32: -3.86 | M32: 1.50 | N32: -1.18 | O32: -2.26 | P32: 1.03 | Q32: -1.23 | R32: 1.92 | S32: -1.06 | T32: -1.40 | U32: -4.97 | V32: -0.17 | W32: -2.20 | X32: -0.12 | Y32: -0.30 | Z32: -0.19 | AA32: -0.73 | AB32: -0.00 | AC32: -9.14 | AD32: 1.50 | AE32: -0.05 | AF32: -0.01 | AG32: -1.22 | AH32: -0.35 | AI32: -7.63 | AJ32: 0.32 | AK32: -2.73 | AL32: -7.22
A33: 其中: 直接投资 | C33: =C13-C23 -> -13.36 | D33: -0.67 | E33: 0.13 | F33: 0.06 | G33: -4.60 | H33: -0.35 | I33: 0.20 | J33: 0.05 | K33: -7.47 | L33: 0.98 | M33: 1.16 | N33: -0.26 | O33: -0.04 | P33: -0.13 | Q33: 1.54 | R33: -0.28 | S33: 0.05 | T33: -0.54 | U33: -0.72 | V33: 0.04 | W33: -2.66 | X33: 0.41 | Y33: 0.01 | Z33: 0.00 | AA33: 0.18 | AB33: -0.00 | AC33: 0.16 | AD33: -0.01 | AE33: 0.00 | AF33: 0.01 | AG33: 0.04 | AH33: -0.34 | AI33: -4.95 | AJ33: 0.60 | AK33: -0.70 | AL33: -4.97
A34: 证券投资 | C34: -2.84 | D34: 0.83 | E34: -0.03 | F34: -0.00 | G34: -7.34 | H34: 0.00 | I34: 0 | J34: -0.00 | K34: -25.65 | L34: 0.36 | M34: 1.37 | N34: 0.14 | O34: 0.00 | P34: 1.29 | Q34: -0.70 | R34: 2.33 | S34: -0.32 | T34: 0.01 | U34: 0.07 | V34: -0.29 | W34: 0.46 | X34: 0.28 | Y34: 0.61 | Z34: 0 | AA34: -0.07 | AB34: 0 | AC34: 0.01 | AD34: 1.85 | AE34: 0 | AF34: 0 | AG34: -0.51 | AH34: 0.02 | AI34: 0.05 | AJ34: -0.16 | AK34: -1.05 | AL34: 0.86
A35: 注： 1.分地区是指办理结售汇业务的银行所在地。其中，本表中辽宁不含大连，浙江不含宁波，福建不含厦门，山东不含青岛，广东不含深圳。

Sheet 2023年5月（按美元）
A2: 2023年5月银行结售汇数据（分地区）
A3: 单位：亿美元
A4: 项目 | C4: 北京 | D4: 天津 | E4: 河北 | F4: 山西 | G4: 内蒙古 | H4: 辽宁 | I4: 吉林 | J4: 黑龙江 | K4: 上海 | L4: 江苏 | M4: 浙江 | N4: 安徽 | O4: 福建 | P4: 江西 | Q4: 山东 | R4: 河南 | S4: 湖北 | T4: 湖南 | U4: 广东 | V4: 广西 | W4: 海南 | X4: 重庆 | Y4: 四川 | Z4: 贵州 | AA4: 云南 | AB4: 西藏 | AC4: 陕西 | AD4: 甘肃 | AE4: 青海 | AF4: 宁夏 | AG4: 新疆 | AH4: 大连 | AI4: 宁波 | AJ4: 厦门 | AK4: 青岛 | AL4: 深圳
A5: 一、结汇 | C5: 159.13 | D5: 33.45 | E5: 30.36 | F5: 3.92 | G5: 5.08 | H5: 10.23 | I5: 3.95 | J5: 4.16 | K5: 254.24 | L5: 252.26 | M5: 280.33 | N5: 36.26 | O5: 55.11 | P5: 17.36 | Q5: 101.18 | R5: 25.80 | S5: 20.42 | T5: 19.36 | U5: 205.09 | V5: 7.14 | W5: 4.53 | X5: 24.70 | Y5: 27.67 | Z5: 3.03 | AA5: 3.89 | AB5: 0.02 | AC5: 22.51 | AD5: 1.60 | AE5: 0.28 | AF5: 1.06 | AG5: 5.86 | AH5: 15.20 | AI5: 121.27 | AJ5: 41.32 | AK5: 42.31 | AL5: 153.12
A6: (一）银行自身 | C6: 38.51 | D6: 0.44 | E6: 0.00 | F6: 0.00 | G6: 0.00 | H6: 0.00 | I6: 0.00 | J6: 0.00 | K6: 6.44 | L6: 0.05 | M6: 1.22 | N6: 0.01 | O6: 0.76 | P6: 0.00 | Q6: 0.11 | R6: 0.00 | S6: 0.00 | T6: 0.00 | U6: 0.09 | V6: 0.00 | W6: 0.00 | X6: 0.01 | Y6: 0.01 | Z6: 0.00 | AA6: 0.00 | AB6: 0.00 | AC6: 0.00 | AD6: 0.00 | AE6: 0.00 | AF6: 0.00 | AG6: 0.00 | AH6: 0.00 | AI6: 33.84 | AJ6: 0.01 | AK6: 0.01 | AL6: 0.05
A7: (二）银行代客 | C7: 120.62 | D7: 33.01 | E7: 30.36 | F7: 3.92 | G7: 5.08 | H7: 10.23 | I7: 3.95 | J7: 4.15 | K7: 247.80 | L7: 252.21 | M7: 279.11 | N7: 36.26 | O7: 54.36 | P7: 17.35 | Q7: 101.07 | R7: 25.80 | S7: 20.42 | T7: 19.35 | U7: 205.00 | V7: 7.14 | W7: 4.53 | X7: 24.68 | Y7: 27.67 | Z7: 3.03 | AA7: 3.89 | AB7: 0.02 | AC7: 22.51 | AD7: 1.60 | AE7: 0.28 | AF7: 1.06 | AG7: 5.86 | AH7: 15.20 | AI7: 87.44 | AJ7: 41.31 | AK7: 42.31 | AL7: 153.08
A8: 1.经常项目 | C8: 75.74 | D8: 31.57 | E8: 29.55 | F8: 3.81 | G8: 4.08 | H8: 10.02 | I8: 3.74 | J8: 3.93 | K8: 194.44 | L8: 243.61 | M8: 267.21 | N8: 35.60 | O8: 53.94 | P8: 15.33 | Q8: 97.39 | R8: 25.48 | S8: 19.72 | T8: 18.85 | U8: 201.21 | V8: 6.52 | W8: 4.15 | X8: 24.06 | Y8: 24.13 | Z8: 2.97 | AA8: 3.61 | AB8: 0.02 | AC8: 22.06 | AD8: 1.57 | AE8: 0.25 | AF8: 1.06 | AG8: 5.10 | AH8: 14.65 | AI8: 86.78 | AJ8: 40.74 | AK8: 41.39 | AL8: 145.98
A9: 1.1货物贸易 | C9: 43.97 | D9: 28.46 | E9: 27.87 | F9: 3.34 | G9: 3.68 | H9: 8.66 | I9: 2.99 | J9: 3.26 | K9: 140.83 | L9: 233.33 | M9: 259.41 | N9: 34.37 | O9: 49.88 | P9: 14.84 | Q9: 93.81 | R9: 23.70 | S9: 17.65 | T9: 17.49 | U9: 187.91 | V9: 5.94 | W9: 3.67 | X9: 22.86 | Y9: 20.06 | Z9: 2.59 | AA9: 3.23 | AB9: 0.01 | AC9: 20.71 | AD9: 1.30 | AE9: 0.22 | AF9: 0.99 | AG9: 4.54 | AH9: 11.89 | AI9: 84.42 | AJ9: 38.26 | AK9: 37.39 | AL9: 124.66
A10: 1.2服务贸易 | C10: 23.74 | D10: 2.24 | E10: 0.89 | F10: 0.30 | G10: 0.26 | H10: 0.53 | I10: 0.19 | J10: 0.27 | K10: 46.44 | L10: 7.40 | M10: 4.61 | N10: 0.90 | O10: 1.99 | P10: 0.22 | Q10: 2.07 | R10: 0.77 | S10: 1.24 | T10: 0.85 | U10: 9.92 | V10: 0.28 | W10: 0.39 | X10: 0.95 | Y10: 3.29 | Z10: 0.29 | AA10: 0.23 | AB10: 0.00 | AC10: 0.99 | AD10: 0.09 | AE10: 0.02 | AF10: 0.04 | AG10: 0.43 | AH10: 2.24 | AI10: 2.13 | AJ10: 2.15 | AK10: 2.82 | AL10: 16.28
A11: 1.3收益和经常转移 | C11: 8.04 | D11: 0.87 | E11: 0.79 | F11: 0.16 | G11: 0.13 | H11: 0.84 | I11: 0.56 | J11: 0.40 | K11: 7.17 | L11: 2.88 | M11: 3.19 | N11: 0.33 | O11: 2.08 | P11: 0.27 | Q11: 1.52 | R11: 1.01 | S11: 0.83 | T11: 0.51 | U11: 3.37 | V11: 0.30 | W11: 0.09 | X11: 0.25 | Y11: 0.77 | Z11: 0.08 | AA11: 0.16 | AB11: 0.01 | AC11: 0.36 | AD11: 0.18 | AE11: 0.01 | AF11: 0.03 | AG11: 0.13 | AH11: 0.52 | AI11: 0.24 | AJ11: 0.33 | AK11: 1.18 | AL11: 5.04
A12: 2.资本与金融项目 | C12: 44.88 | D12: 1.44 | E12: 0.81 | F12: 0.11 | G12: 1.00 | H12: 0.21 | I12: 0.22 | J12: 0.23 | K12: 53.36 | L12: 8.60 | M12: 11.90 | N12: 0.65 | O12: 0.41 | P12: 2.02 | Q12: 3.68 | R12: 0.31 | S12: 0.70 | T12: 0.51 | U12: 3.80 | V12: 0.62 | W12: 0.38 | X12: 0.62 | Y12: 3.54 | Z12: 0.07 | AA12: 0.28 | AB12: 0.00 | AC12: 0.45 | AD12: 0.03 | AE12: 0.02 | AF12: 0.00 | AG12: 0.76 | AH12: 0.55 | AI12: 0.65 | AJ12: 0.58 | AK12: 0.92 | AL12: 7.09
A13: 其中: 直接投资 | C13: 12.42 | D13: 1.18 | E13: 0.68 | F13: 0.07 | G13: 0.99 | H13: 0.11 | I13: 0.21 | J13: 0.13 | K13: 8.09 | L13: 6.92 | M13: 5.60 | N13: 0.18 | O13: 0.22 | P13: 1.32 | Q13: 3.53 | R13: 0.16 | S13: 0.64 | T13: 0.21 | U13: 2.87 | V13: 0.40 | W13: 0.26 | X13: 0.03 | Y13: 0.92 | Z13: 0.04 | AA13: 0.05 | AB13: 0.00 | AC13: 0.15 | AD13: 0.00 | AE13: 0.00 | AF13: 0.00 | AG13: 0.18 | AH13: 0.52 | AI13: 0.52 | AJ13: 0.55 | AK13: 0.74 | AL13: 3.13
A14: 证券投资 | C14: 8.36 | D14: 0.18 | E14: 0.00 | F14: 0.00 | G14: 0.01 | H14: 0.03 | I14: 0.00 | J14: 0.00 | K14: 43.89 | L14: 0.75 | M14: 5.59 | N14: 0.27 | O14: 0.01 | P14: 0.58 | Q14: 0.09 | R14: 0.00 | S14: 0.00 | T14: 0.13 | U14: 0.48 | V14: 0.01 | W14: 0.06 | X14: 0.56 | Y14: 2.57 | Z14: 0.00 | AA14: 0.04 | AB14: 0.00 | AC14: 0.00 | AD14: 0.00 | AE14: 0.00 | AF14: 0.00 | AG14: 0.43 | AH14: 0.01 | AI14: 0.03 | AJ14: 0.00 | AK14: 0.01 | AL14: 3.69
A15: 二、售汇 | C15: 380.71 | D15: 38.42 | E15: 22.70 | F15: 8.63 | G15: 6.58 | H15: 13.29 | I15: 7.58 | J15: 6.09 | K15: 462.50 | L15: 140.25 | M15: 101.59 | N15: 26.55 | O15: 34.03 | P15: 13.16 | Q15: 63.78 | R15: 16.87 | S15: 20.85 | T15: 18.20 | U15: 121.67 | V15: 20.33 | W15: 10.79 | X15: 42.17 | Y15: 36.05 | Z15: 3.26 | AA15: 8.08 | AB15: 0.85 | AC15: 13.90 | AD15: 6.29 | AE15: 0.20 | AF15: 0.70 | AG15: 3.67 | AH15: 9.81 | AI15: 83.48 | AJ15: 58.80 | AK15: 35.51 | AL15: 122.51
A16: (一）银行自身 | C16: 13.24 | D16: 0.00 | E16: 0.00 | F16: 0.00 | G16: 0.00 | H16: 0.00 | I16: 0.00 | J16: 0.00 | K16: 32.79 | L16: 0.13 | M16: 4.82 | N16: 0.00 | O16: 0.72 | P16: 0.00 | Q16: 0.00 | R16: 0.00 | S16: 0.00 | T16: 0.00 | U16: 1.84 | V16: 0.00 | W16: 0.00 | X16: 0.00 | Y16: 0.00 | Z16: 0.00 | AA16: 0.00 | AB16: 0.00 | AC16: 0.00 | AD16: 0.00 | AE16: 0.00 | AF16: 0.00 | AG16: 0.10 | AH16: 0.03 | AI16: 36.18 | AJ16: 0.00 | AK16: 0.00 | AL16: 0.01
A17: (二）银行代客 | C17: 367.48 | D17: 38.42 | E17: 22.70 | F17: 8.63 | G17: 6.58 | H17: 13.29 | I17: 7.58 | J17: 6.09 | K17: 429.71 | L17: 140.12 | M17: 96.77 | N17: 26.55 | O17: 33.31 | P17: 13.16 | Q17: 63.78 | R17: 16.87 | S17: 20.85 | T17: 18.20 | U17: 119.83 | V17: 20.33 | W17: 10.79 | X17: 42.17 | Y17: 36.05 | Z17: 3.26 | AA17: 8.08 | AB17: 0.85 | AC17: 13.90 | AD17: 6.29 | AE17: 0.20 | AF17: 0.70 | AG17: 3.57 | AH17: 9.78 | AI17: 47.29 | AJ17: 58.80 | AK17: 35.51 | AL17: 122.50
A18: 1.经常项目 | C18: 339.79 | D18: 33.61 | E18: 19.23 | F18: 8.45 | G18: 6.22 | H18: 11.76 | I18: 7.38 | J18: 5.58 | K18: 324.99 | L18: 124.81 | M18: 87.02 | N18: 25.58 | O18: 31.63 | P18: 12.56 | Q18: 56.71 | R18: 14.12 | S18: 19.32 | T18: 15.33 | U18: 112.14 | V18: 19.52 | W18: 10.51 | X18: 41.53 | Y18: 32.21 | Z18: 2.20 | AA18: 4.94 | AB18: 0.85 | AC18: 8.71 | AD18: 5.89 | AE18: 0.18 | AF18: 0.62 | AG18: 3.22 | AH18: 9.63 | AI18: 43.45 | AJ18: 58.23 | AK18: 33.92 | AL18: 99.39
A19: 1.1货物贸易 | C19: 275.08 | D19: 23.72 | E19: 17.18 | F19: 7.45 | G19: 5.25 | H19: 9.13 | I19: 5.50 | J19: 4.17 | K19: 231.89 | L19: 100.19 | M19: 70.71 | N19: 22.99 | O19: 26.93 | P19: 11.39 | Q19: 51.33 | R19: 11.00 | S19: 16.33 | T19: 13.48 | U19: 81.02 | V19: 18.49 | W19: 8.17 | X19: 37.82 | Y19: 28.12 | Z19: 1.72 | AA19: 3.75 | AB19: 0.83 | AC19: 6.49 | AD19: 5.38 | AE19: 0.09 | AF19: 0.43 | AG19: 2.46 | AH19: 7.71 | AI19: 40.69 | AJ19: 55.35 | AK19: 31.58 | AL19: 67.91
A20: 1.2服务贸易 | C20: 35.48 | D20: 3.12 | E20: 1.74 | F20: 0.96 | G20: 0.65 | H20: 2.27 | I20: 1.40 | J20: 1.20 | K20: 66.22 | L20: 12.63 | M20: 8.06 | N20: 2.39 | O20: 2.22 | P20: 1.00 | Q20: 4.40 | R20: 2.01 | S20: 2.64 | T20: 1.60 | U20: 14.70 | V20: 0.64 | W20: 2.28 | X20: 1.67 | Y20: 3.70 | Z20: 0.39 | AA20: 0.78 | AB20: 0.02 | AC20: 1.65 | AD20: 0.43 | AE20: 0.08 | AF20: 0.17 | AG20: 0.53 | AH20: 1.72 | AI20: 2.38 | AJ20: 2.05 | AK20: 2.10 | AL20: 19.89
A21: 1.3收益和经常转移 | C21: 29.23 | D21: 6.77 | E21: 0.31 | F21: 0.03 | G21: 0.32 | H21: 0.36 | I21: 0.47 | J21: 0.21 | K21: 26.87 | L21: 11.99 | M21: 8.25 | N21: 0.20 | O21: 2.49 | P21: 0.18 | Q21: 0.97 | R21: 1.10 | S21: 0.35 | T21: 0.25 | U21: 16.42 | V21: 0.38 | W21: 0.06 | X21: 2.04 | Y21: 0.39 | Z21: 0.09 | AA21: 0.40 | AB21: 0.00 | AC21: 0.57 | AD21: 0.08 | AE21: 0.02 | AF21: 0.02 | AG21: 0.24 | AH21: 0.20 | AI21: 0.37 | AJ21: 0.83 | AK21: 0.24 | AL21: 11.59
A22: 2.资本与金融项目 | C22: 27.68 | D22: 4.81 | E22: 3.47 | F22: 0.19 | G22: 0.36 | H22: 1.53 | I22: 0.21 | J22: 0.51 | K22: 104.72 | L22: 15.31 | M22: 9.75 | N22: 0.97 | O22: 1.68 | P22: 0.60 | Q22: 7.07 | R22: 2.75 | S22: 1.53 | T22: 2.88 | U22: 7.69 | V22: 0.82 | W22: 0.28 | X22: 0.64 | Y22: 3.84 | Z22: 1.06 | AA22: 3.14 | AB22: 0.00 | AC22: 5.18 | AD22: 0.40 | AE22: 0.02 | AF22: 0.08 | AG22: 0.34 | AH22: 0.15 | AI22: 3.85 | AJ22: 0.57 | AK22: 1.59 | AL22: 23.11
A23: 其中: 直接投资 | C23: 9.40 | D23: 1.21 | E23: 0.47 | F23: 0.01 | G23: 0.15 | H23: 0.09 | I23: 0.00 | J23: 0.02 | K23: 16.30 | L23: 8.69 | M23: 4.08 | N23: 0.60 | O23: 0.36 | P23: 0.42 | Q23: 2.55 | R23: 0.73 | S23: 0.57 | T23: 0.31 | U23: 4.84 | V23: 0.14 | W23: 0.00 | X23: 0.36 | Y23: 1.51 | Z23: 0.00 | AA23: 0.15 | AB23: 0.00 | AC23: 0.01 | AD23: 0.02 | AE23: 0.01 | AF23: 0.01 | AG23: 0.02 | AH23: 0.06 | AI23: 1.00 | AJ23: 0.37 | AK23: 0.86 | AL23: 10.65
A24: 证券投资 | C24: 6.16 | D24: 0.79 | E24: 0.00 | F24: 0.00 | G24: 0.12 | H24: 1.05 | I24: 0.00 | J24: 0.00 | K24: 82.24 | L24: 2.17 | M24: 0.81 | N24: 0.03 | O24: 0.00 | P24: 0.00 | Q24: 2.81 | R24: 0.00 | S24: 0.17 | T24: 1.07 | U24: 0.44 | V24: 0.00 | W24: 0.26 | X24: 0.00 | Y24: 0.43 | Z24: 0.00 | AA24: 1.71 | AB24: 0.00 | AC24: 1.95 | AD24: 0.00 | AE24: 0.00 | AF24: 0.00 | AG24: 0.00 | AH24: 0.00 | AI24: 0.24 | AJ24: 0.04 | AK24: 0.04 | AL24: 8.64
A25: 三、差额 | C25: =C5-C15 -> -221.59 | D25: =D5-D15 -> -4.97 | E25: 7.66 | F25: -4.71 | G25: -1.50 | H25: -3.06 | I25: -3.63 | J25: -1.94 | K25: -208.26 | L25: 112.01 | M25: 178.74 | N25: 9.71 | O25: 21.08 | P25: 4.19 | Q25: 37.40 | R25: 8.93 | S25: -0.43 | T25: 1.15 | U25: 83.42 | V25: -13.19 | W25: -6.26 | X25: -17.47 | Y25: -8.37 | Z25: -0.23 | AA25: -4.19 | AB25: -0.83 | AC25: 8.61 | AD25: -4.69 | AE25: 0.08 | AF25: 0.36 | AG25: 2.19 | AH25: 5.39 | AI25: 37.80 | AJ25: -17.48 | AK25: 6.80 | AL25: 30.61
A26: (一）银行自身 | C26: 25.27 | D26: 0.44 | E26: 0.00 | F26: 0.00 | G26: 0.00 | H26: 0.00 | I26: -0.00 | J26: 0 | K26: -26.35 | L26: -0.08 | M26: -3.60 | N26: 0.01 | O26: 0.04 | P26: 0.00 | Q26: 0.11 | R26: 0.00 | S26: -0.00 | T26: 0.00 | U26: -1.75 | V26: 0.00 | W26: 0.00 | X26: 0.01 | Y26: 0.01 | Z26: 0 | AA26: 0.00 | AB26: 0 | AC26: 0.00 | AD26: 0 | AE26: 0 | AF26: 0.00 | AG26: -0.10 | AH26: -0.03 | AI26: -2.35 | AJ26: 0.01 | AK26: 0.00 | AL26: 0.04
A27: (二）银行代客 | C27: -246.85 | D27: -5.41 | E27: 7.66 | F27: -4.71 | G27: -1.50 | H27: -3.06 | I27: -3.63 | J27: -1.94 | K27: -181.91 | L27: 112.09 | M27: 182.34 | N27: 9.70 | O27: 21.04 | P27: 4.19 | Q27: 37.29 | R27: 8.93 | S27: -0.43 | T27: 1.15 | U27: 85.17 | V27: -13.19 | W27: -6.26 | X27: -17.49 | Y27: -8.38 | Z27: -0.23 | AA27: -4.19 | AB27: -0.83 | AC27: 8.61 | AD27: -4.69 | AE27: 0.08 | AF27: 0.36 | AG27: 2.29 | AH27: 5.42 | AI27: 40.14 | AJ27: -17.48 | AK27: 6.80 | AL27: 30.57
A28: 1.经常项目 | C28: -264.05 | D28: -2.04 | E28: 10.32 | F28: -4.64 | G28: -2.14 | H28: -1.74 | I28: -3.64 | J28: -1.65 | K28: -130.54 | L28: 118.79 | M28: 180.18 | N28: 10.02 | O28: 22.31 | P28: 2.77 | Q28: 40.69 | R28: 11.36 | S28: 0.40 | T28: 3.52 | U28: 89.07 | V28: -12.99 | W28: -6.36 | X28: -17.47 | Y28: -8.08 | Z28: 0.76 | AA28: -1.32 | AB28: -0.83 | AC28: 13.34 | AD28: -4.33 | AE28: 0.07 | AF28: 0.44 | AG28: 1.87 | AH28: 5.02 | AI28: 43.34 | AJ28: -17.49 | AK28: 7.47 | AL28: 46.59
A29: 1.1货物贸易 | C29: -231.11 | D29: 4.74 | E29: 10.69 | F29: -4.11 | G29: -1.56 | H29: -0.47 | I29: -2.51 | J29: -0.92 | K29: -91.06 | L29: 133.14 | M29: 188.69 | N29: 11.38 | O29: 22.95 | P29: 3.45 | Q29: 42.48 | R29: 12.70 | S29: 1.32 | T29: 4.00 | U29: 106.89 | V29: -12.56 | W29: -4.50 | X29: -14.96 | Y29: -8.06 | Z29: 0.87 | AA29: -0.52 | AB29: -0.83 | AC29: 14.22 | AD29: -4.08 | AE29: 0.14 | AF29: 0.57 | AG29: 2.08 | AH29: 4.18 | AI29: 43.73 | AJ29: -17.08 | AK29: 5.81 | AL29: 56.74
A30: 1.2服务贸易 | C30: -11.74 | D30: -0.88 | E30: -0.85 | F30: -0.65 | G30: -0.39 | H30: -1.75 | I30: -1.21 | J30: -0.92 | K30: -19.78 | L30: -5.23 | M30: -3.45 | N30: -1.49 | O30: -0.24 | P30: -0.77 | Q30: -2.33 | R30: -1.24 | S30: -1.39 | T30: -0.74 | U30: -4.78 | V30: -0.36 | W30: -1.89 | X30: -0.71 | Y30: -0.41 | Z30: -0.10 | AA30: -0.55 | AB30: -0.01 | AC30: -0.67 | AD30: -0.34 | AE30: -0.06 | AF30: -0.13 | AG30: -0.10 | AH30: 0.52 | AI30: -0.26 | AJ30: 0.10 | AK30: 0.72 | AL30: -3.61
A31: 1.3收益和经常转移 | C31: -21.19 | D31: -5.90 | E31: 0.48 | F31: 0.13 | G31: -0.19 | H31: 0.48 | I31: 0.09 | J31: 0.19 | K31: -19.70 | L31: -9.11 | M31: -5.06 | N31: 0.13 | O31: -0.41 | P31: 0.09 | Q31: 0.55 | R31: -0.09 | S31: 0.48 | T31: 0.26 | U31: -13.05 | V31: -0.08 | W31: 0.03 | X31: -1.79 | Y31: 0.39 | Z31: -0.01 | AA31: -0.25 | AB31: 0.00 | AC31: -0.21 | AD31: 0.10 | AE31: -0.00 | AF31: 0.00 | AG31: -0.11 | AH31: 0.32 | AI31: -0.14 | AJ31: -0.51 | AK31: 0.94 | AL31: -6.55
A32: 2.资本与金融项目 | C32: 17.20 | D32: -3.37 | E32: -2.66 | F32: -0.07 | G32: =G12-G22 -> 0.64 | H32: -1.33 | I32: 0.01 | J32: -0.29 | K32: -51.37 | L32: -6.71 | M32: 2.16 | N32: -0.32 | O32: -1.27 | P32: 1.42 | Q32: -3.40 | R32: -2.44 | S32: -0.83 | T32: -2.37 | U32: -3.90 | V32: -0.20 | W32: 0.10 | X32: -0.02 | Y32: -0.30 | Z32: -0.99 | AA32: -2.86 | AB32: 0.00 | AC32: -4.73 | AD32: -0.37 | AE32: 0.01 | AF32: -0.08 | AG32: 0.42 | AH32: 0.40 | AI32: -3.19 | AJ32: 0.01 | AK32: -0.68 | AL32: -16.02
A33: 其中: 直接投资 | C33: =C13-C23 -> 3.02 | D33: -0.03 | E33: 0.21 | F33: 0.06 | G33: 0.83 | H33: 0.03 | I33: 0.21 | J33: 0.11 | K33: -8.21 | L33: -1.77 | M33: 1.52 | N33: -0.42 | O33: -0.14 | P33: 0.90 | Q33: 0.98 | R33: -0.57 | S33: 0.07 | T33: -0.11 | U33: -1.97 | V33: 0.25 | W33: 0.25 | X33: -0.33 | Y33: -0.59 | Z33: 0.03 | AA33: -0.11 | AB33: 0.00 | AC33: 0.14 | AD33: -0.02 | AE33: -0.01 | AF33: -0.00 | AG33: 0.16 | AH33: 0.46 | AI33: -0.48 | AJ33: 0.19 | AK33: -0.12 | AL33: -7.52
A34: 证券投资 | C34: 2.20 | D34: -0.61 | E34: 0.00 | F34: 0 | G34: -0.11 | H34: -1.01 | I34: 0.00 | J34: -0.00 | K34: -38.35 | L34: -1.42 | M34: 4.78 | N34: 0.24 | O34: 0.01 | P34: 0.58 | Q34: -2.72 | R34: -0.00 | S34: -0.16 | T34: -0.95 | U34: 0.04 | V34: 0.01 | W34: -0.20 | X34: 0.56 | Y34: 2.13 | Z34: -0.00 | AA34: -1.67 | AB34: 0 | AC34: -1.95 | AD34: 0 | AE34: 0 | AF34: -0.00 | AG34: 0.43 | AH34: 0.01 | AI34: -0.21 | AJ34: -0.04 | AK34: -0.03 | AL34: -4.95
A35: 注： 1.分地区是指办理结售汇业务的银行所在地。其中，本表中辽宁不含大连，浙江不含宁波，福建不含厦门，山东不含青岛，广东不含深圳。

Sheet 2023年6月（按美元）
A2: 2023年6月银行结售汇数据（分地区）
A3: 单位：亿美元
A4: 项目 | C4: 北京 | D4: 天津 | E4: 河北 | F4: 山西 | G4: 内蒙古 | H4: 辽宁 | I4: 吉林 | J4: 黑龙江 | K4: 上海 | L4: 江苏 | M4: 浙江 | N4: 安徽 | O4: 福建 | P4: 江西 | Q4: 山东 | R4: 河南 | S4: 湖北 | T4: 湖南 | U4: 广东 | V4: 广西 | W4: 海南 | X4: 重庆 | Y4: 四川 | Z4: 贵州 | AA4: 云南 | AB4: 西藏 | AC4: 陕西 | AD4: 甘肃 | AE4: 青海 | AF4: 宁夏 | AG4: 新疆 | AH4: 大连 | AI4: 宁波 | AJ4: 厦门 | AK4: 青岛 | AL4: 深圳
A5: 一、结汇 | C5: 113.07 | D5: 35.81 | E5: 30.65 | F5: 4.09 | G5: 5.95 | H5: 11.79 | I5: 4.40 | J5: 4.48 | K5: 306.26 | L5: 247.84 | M5: 272.10 | N5: 35.79 | O5: 58.17 | P5: 17.75 | Q5: 92.79 | R5: 24.91 | S5: 21.18 | T5: 16.41 | U5: 206.73 | V5: 7.45 | W5: 4.64 | X5: 25.67 | Y5: 24.68 | Z5: 4.23 | AA5: 5.57 | AB5: 0.02 | AC5: 20.18 | AD5: 1.60 | AE5: 0.21 | AF5: 1.15 | AG5: 5.93 | AH5: 17.43 | AI5: 133.83 | AJ5: 37.66 | AK5: 42.23 | AL5: 159.85
A6: (一）银行自身 | C6: 17.93 | D6: 0.02 | E6: 0.01 | F6: 0.00 | G6: 0.00 | H6: 1.15 | I6: 0.00 | J6: 0.00 | K6: 11.99 | L6: 0.09 | M6: 2.43 | N6: 0.03 | O6: 0.04 | P6: 0.00 | Q6: 0.02 | R6: 0.01 | S6: 0.01 | T6: 0.00 | U6: 0.04 | V6: 0.00 | W6: 0.02 | X6: 0.01 | Y6: 0.01 | Z6: 0.00 | AA6: 0.01 | AB6: 0.00 | AC6: 0.00 | AD6: 0.00 | AE6: 0.00 | AF6: 0.00 | AG6: 0.00 | AH6: 0.01 | AI6: 43.90 | AJ6: 0.01 | AK6: 0.02 | AL6: 0.04
A7: (二）银行代客 | C7: 95.14 | D7: 35.80 | E7: 30.64 | F7: 4.09 | G7: 5.95 | H7: 10.64 | I7: 4.40 | J7: 4.47 | K7: 294.27 | L7: 247.75 | M7: 269.67 | N7: 35.76 | O7: 58.13 | P7: 17.75 | Q7: 92.77 | R7: 24.91 | S7: 21.17 | T7: 16.40 | U7: 206.69 | V7: 7.45 | W7: 4.62 | X7: 25.66 | Y7: 24.66 | Z7: 4.23 | AA7: 5.57 | AB7: 0.02 | AC7: 20.18 | AD7: 1.60 | AE7: 0.21 | AF7: 1.15 | AG7: 5.93 | AH7: 17.42 | AI7: 89.93 | AJ7: 37.65 | AK7: 42.21 | AL7: 159.81
A8: 1.经常项目 | C8: 73.61 | D8: 30.53 | E8: 29.58 | F8: 3.87 | G8: 5.10 | H8: 9.97 | I8: 3.77 | J8: 4.30 | K8: 188.55 | L8: 233.04 | M8: 257.02 | N8: 34.54 | O8: 57.64 | P8: 16.54 | Q8: 87.37 | R8: 24.11 | S8: 19.92 | T8: 15.14 | U8: 199.66 | V8: 7.11 | W8: 2.98 | X8: 25.52 | Y8: 23.49 | Z8: 4.17 | AA8: 5.19 | AB8: 0.02 | AC8: 19.89 | AD8: 1.50 | AE8: 0.21 | AF8: 1.14 | AG8: 5.04 | AH8: 17.18 | AI8: 87.45 | AJ8: 36.86 | AK8: 39.87 | AL8: 136.67
A9: 1.1货物贸易 | C9: 41.18 | D9: 26.79 | E9: 27.63 | F9: 3.39 | G9: 4.72 | H9: 8.40 | I9: 2.78 | J9: 3.51 | K9: 142.57 | L9: 224.33 | M9: 245.95 | N9: 33.37 | O9: 53.56 | P9: 16.02 | Q9: 83.92 | R9: 22.12 | S9: 17.79 | T9: 13.92 | U9: 186.29 | V9: 6.48 | W9: 2.53 | X9: 24.50 | Y9: 18.31 | Z9: 3.70 | AA9: 4.28 | AB9: 0.01 | AC9: 18.54 | AD9: 1.26 | AE9: 0.17 | AF9: 1.08 | AG9: 4.55 | AH9: 14.96 | AI9: 85.33 | AJ9: 35.06 | AK9: 35.00 | AL9: 122.86
A10: 1.2服务贸易 | C10: 25.47 | D10: 2.78 | E10: 0.90 | F10: 0.30 | G10: 0.25 | H10: 0.58 | I10: 0.23 | J10: 0.34 | K10: 38.26 | L10: 6.32 | M10: 5.19 | N10: 0.75 | O10: 1.66 | P10: 0.25 | Q10: 1.79 | R10: 1.05 | S10: 1.38 | T10: 0.67 | U10: 9.56 | V10: 0.31 | W10: 0.35 | X10: 0.69 | Y10: 3.06 | Z10: 0.32 | AA10: 0.26 | AB10: 0.01 | AC10: 0.98 | AD10: 0.10 | AE10: 0.02 | AF10: 0.03 | AG10: 0.38 | AH10: 1.64 | AI10: 1.75 | AJ10: 1.44 | AK10: 2.45 | AL10: 9.85
A11: 1.3收益和经常转移 | C11: 6.96 | D11: 0.96 | E11: 1.05 | F11: 0.18 | G11: 0.13 | H11: 0.99 | I11: 0.77 | J11: 0.46 | K11: 7.72 | L11: 2.39 | M11: 5.88 | N11: 0.42 | O11: 2.42 | P11: 0.28 | Q11: 1.66 | R11: 0.94 | S11: 0.76 | T11: 0.56 | U11: 3.81 | V11: 0.33 | W11: 0.10 | X11: 0.33 | Y11: 2.13 | Z11: 0.16 | AA11: 0.65 | AB11: 0.01 | AC11: 0.37 | AD11: 0.15 | AE11: 0.02 | AF11: 0.03 | AG11: 0.11 | AH11: 0.59 | AI11: 0.37 | AJ11: 0.35 | AK11: 2.41 | AL11: 3.97
A12: 2.资本与金融项目 | C12: 21.53 | D12: 5.27 | E12: 1.06 | F12: 0.22 | G12: 0.85 | H12: 0.67 | I12: 0.62 | J12: 0.17 | K12: 105.72 | L12: 14.71 | M12: 12.65 | N12: 1.22 | O12: 0.49 | P12: 1.21 | Q12: 5.40 | R12: 0.79 | S12: 1.25 | T12: 1.26 | U12: 7.03 | V12: 0.33 | W12: 1.64 | X12: 0.14 | Y12: 1.18 | Z12: 0.06 | AA12: 0.37 | AB12: 0.00 | AC12: 0.29 | AD12: 0.10 | AE12: 0.00 | AF12: 0.01 | AG12: 0.89 | AH12: 0.24 | AI12: 2.48 | AJ12: 0.79 | AK12: 2.35 | AL12: 23.14
A13: 其中: 直接投资 | C13: 9.58 | D13: 1.74 | E13: 0.60 | F13: 0.15 | G13: 0.76 | H13: 0.26 | I13: 0.62 | J13: 0.06 | K13: 9.04 | L13: 11.63 | M13: 6.11 | N13: 0.63 | O13: 0.40 | P13: 0.48 | Q13: 4.66 | R13: 0.36 | S13: 0.99 | T13: 0.32 | U13: 2.69 | V13: 0.19 | W13: 1.41 | X13: 0.12 | Y13: 0.93 | Z13: 0.01 | AA13: 0.09 | AB13: 0.00 | AC13: 0.18 | AD13: 0.00 | AE13: 0.00 | AF13: 0.01 | AG13: 0.48 | AH13: 0.07 | AI13: 0.46 | AJ13: 0.63 | AK13: 2.26 | AL13: 3.44
A14: 证券投资 | C14: 7.66 | D14: 0.05 | E14: 0.00 | F14: 0.00 | G14: 0.01 | H14: 0.04 | I14: 0.00 | J14: 0.00 | K14: 95.65 | L14: 2.11 | M14: 5.49 | N14: 0.08 | O14: 0.04 | P14: 0.35 | Q14: 0.50 | R14: 0.00 | S14: 0.00 | T14: 0.58 | U14: 3.66 | V14: 0.00 | W14: 0.07 | X14: 0.02 | Y14: 0.02 | Z14: 0.00 | AA14: 0.04 | AB14: 0.00 | AC14: 0.00 | AD14: 0.00 | AE14: 0.00 | AF14: 0.00 | AG14: 0.09 | AH14: 0.11 | AI14: 1.76 | AJ14: 0.12 | AK14: 0.04 | AL14: 17.54
A15: 二、售汇 | C15: 392.10 | D15: 31.60 | E15: 23.19 | F15: 9.72 | G15: 6.08 | H15: 10.37 | I15: 7.40 | J15: 6.18 | K15: 452.80 | L15: 141.16 | M15: 113.92 | N15: 26.04 | O15: 28.28 | P15: 13.68 | Q15: 57.53 | R15: 14.45 | S15: 22.56 | T15: 15.43 | U15: 109.86 | V15: 21.48 | W15: 11.42 | X15: 16.98 | Y15: 19.08 | Z15: 3.14 | AA15: 6.52 | AB15: 0.13 | AC15: 10.72 | AD15: 5.26 | AE15: 0.33 | AF15: 3.53 | AG15: 3.82 | AH15: 11.21 | AI15: 92.98 | AJ15: 59.79 | AK15: 40.22 | AL15: 131.05
A16: (一）银行自身 | C16: 36.94 | D16: 0.01 | E16: 0.00 | F16: 0.00 | G16: 0.00 | H16: 0.00 | I16: 0.00 | J16: 0.02 | K16: 32.64 | L16: 0.04 | M16: 3.00 | N16: 0.00 | O16: 0.02 | P16: 0.00 | Q16: 0.02 | R16: 0.08 | S16: 0.00 | T16: 0.00 | U16: 2.34 | V16: 0.00 | W16: 0.00 | X16: 0.57 | Y16: -0.00 | Z16: 0.00 | AA16: 0.00 | AB16: 0.00 | AC16: 0.00 | AD16: 0.00 | AE16: 0.00 | AF16: 0.00 | AG16: 0.00 | AH16: 0.02 | AI16: 42.31 | AJ16: 0.00 | AK16: 0.51 | AL16: 2.03
A17: (二）银行代客 | C17: 355.15 | D17: 31.59 | E17: 23.19 | F17: 9.72 | G17: 6.08 | H17: 10.37 | I17: 7.40 | J17: 6.16 | K17: 420.17 | L17: 141.11 | M17: 110.92 | N17: 26.04 | O17: 28.26 | P17: 13.68 | Q17: 57.51 | R17: 14.37 | S17: 22.56 | T17: 15.43 | U17: 107.52 | V17: 21.48 | W17: 11.42 | X17: 16.42 | Y17: 19.09 | Z17: 3.14 | AA17: 6.52 | AB17: 0.13 | AC17: 10.72 | AD17: 5.26 | AE17: 0.33 | AF17: 3.53 | AG17: 3.82 | AH17: 11.19 | AI17: 50.67 | AJ17: 59.79 | AK17: 39.71 | AL17: 129.01
A18: 1.经常项目 | C18: 313.08 | D18: 29.03 | E18: 18.17 | F18: 6.75 | G18: 5.01 | H18: 9.90 | I18: 6.77 | J18: 6.06 | K18: 314.13 | L18: 119.80 | M18: 98.09 | N18: 24.87 | O18: 25.28 | P18: 11.65 | Q18: 50.17 | R18: 11.23 | S18: 19.79 | T18: 13.65 | U18: 97.43 | V18: 19.23 | W18: 9.98 | X18: 15.94 | Y18: 14.59 | Z18: 2.40 | AA18: 4.46 | AB18: 0.13 | AC18: 8.37 | AD18: 4.10 | AE18: 0.22 | AF18: 0.52 | AG18: 3.34 | AH18: 10.47 | AI18: 38.68 | AJ18: 58.01 | AK18: 37.61 | AL18: 108.65
A19: 1.1货物贸易 | C19: 238.07 | D19: 23.06 | E19: 15.48 | F19: 5.66 | G19: 3.89 | H19: 8.00 | I19: 4.16 | J19: 4.79 | K19: 217.73 | L19: 101.27 | M19: 79.17 | N19: 20.32 | O19: 22.38 | P19: 10.12 | Q19: 42.83 | R19: 8.93 | S19: 16.59 | T19: 11.80 | U19: 78.02 | V19: 17.75 | W19: 7.69 | X19: 13.72 | Y19: 9.15 | Z19: 1.62 | AA19: 3.11 | AB19: 0.04 | AC19: 5.99 | AD19: 3.73 | AE19: 0.16 | AF19: 0.31 | AG19: 2.72 | AH19: 8.04 | AI19: 34.27 | AJ19: 55.02 | AK19: 34.51 | AL19: 70.42
A20: 1.2服务贸易 | C20: 43.46 | D20: 3.23 | E20: 1.65 | F20: 0.98 | G20: 0.70 | H20: 1.76 | I20: 2.23 | J20: 1.17 | K20: 61.40 | L20: 9.24 | M20: 9.75 | N20: 1.82 | O20: 1.96 | P20: 1.01 | Q20: 3.97 | R20: 1.95 | S20: 2.55 | T20: 1.51 | U20: 13.33 | V20: 0.76 | W20: 1.87 | X20: 1.75 | Y20: 4.45 | Z20: 0.47 | AA20: 0.95 | AB20: 0.09 | AC20: 1.82 | AD20: 0.33 | AE20: 0.05 | AF20: 0.13 | AG20: 0.57 | AH20: 1.41 | AI20: 2.22 | AJ20: 2.23 | AK20: 2.26 | AL20: 19.71
A21: 1.3收益和经常转移 | C21: 31.55 | D21: 2.74 | E21: 1.04 | F21: 0.10 | G21: 0.42 | H21: 0.14 | I21: 0.38 | J21: 0.10 | K21: 35.01 | L21: 9.29 | M21: 9.17 | N21: 2.73 | O21: 0.94 | P21: 0.52 | Q21: 3.37 | R21: 0.34 | S21: 0.66 | T21: 0.34 | U21: 6.09 | V21: 0.72 | W21: 0.42 | X21: 0.47 | Y21: 0.99 | Z21: 0.31 | AA21: 0.41 | AB21: 0.00 | AC21: 0.56 | AD21: 0.04 | AE21: 0.01 | AF21: 0.07 | AG21: 0.05 | AH21: 1.02 | AI21: 2.19 | AJ21: 0.75 | AK21: 0.84 | AL21: 18.52
A22: 2.资本与金融项目 | C22: 42.07 | D22: 2.57 | E22: 5.02 | F22: 2.97 | G22: 1.07 | H22: 0.47 | I22: 0.62 | J22: 0.10 | K22: 106.04 | L22: 21.31 | M22: 12.83 | N22: 1.18 | O22: 2.98 | P22: 2.03 | Q22: 7.34 | R22: 3.14 | S22: 2.77 | T22: 1.78 | U22: 10.08 | V22: 2.25 | W22: 1.44 | X22: 0.48 | Y22: 4.50 | Z22: 0.73 | AA22: 2.06 | AB22: 0.01 | AC22: 2.36 | AD22: 1.17 | AE22: 0.11 | AF22: 3.02 | AG22: 0.48 | AH22: 0.72 | AI22: 11.99 | AJ22: 1.78 | AK22: 2.10 | AL22: 20.36
A23: 其中: 直接投资 | C23: 10.35 | D23: 0.62 | E23: 2.06 | F23: 0.03 | G23: 0.93 | H23: 0.24 | I23: 0.01 | J23: 0.02 | K23: 15.29 | L23: 6.48 | M23: 5.95 | N23: 0.35 | O23: 1.12 | P23: 0.67 | Q23: 1.98 | R23: 0.30 | S23: 0.52 | T23: 0.42 | U23: 2.34 | V23: 0.04 | W23: 0.94 | X23: 0.34 | Y23: 1.00 | Z23: 0.00 | AA23: 0.50 | AB23: 0.00 | AC23: 0.04 | AD23: 0.00 | AE23: 0.01 | AF23: 0.01 | AG23: 0.01 | AH23: 0.42 | AI23: 7.49 | AJ23: 0.82 | AK23: 1.04 | AL23: 5.20
A24: 证券投资 | C24: 17.06 | D24: 0.11 | E24: 0.00 | F24: 2.60 | G24: 0.00 | H24: 0.00 | I24: 0.02 | J24: 0.00 | K24: 79.92 | L24: 3.21 | M24: 1.71 | N24: 0.55 | O24: 0.00 | P24: 0.67 | Q24: 1.07 | R24: 1.47 | S24: 0.01 | T24: 0.00 | U24: 0.49 | V24: 0.00 | W24: 0.00 | X24: 0.04 | Y24: 0.81 | Z24: 0.00 | AA24: 1.10 | AB24: 0.00 | AC24: 0.00 | AD24: 0.06 | AE24: 0.00 | AF24: 3.00 | AG24: 0.00 | AH24: 0.01 | AI24: 0.64 | AJ24: 0.05 | AK24: 0.14 | AL24: 10.18
A25: 三、差额 | C25: =C5-C15 -> -279.02 | D25: =D5-D15 -> 4.21 | E25: 7.46 | F25: -5.63 | G25: -0.13 | H25: 1.42 | I25: -3.00 | J25: -1.70 | K25: -146.54 | L25: 106.68 | M25: 158.18 | N25: 9.75 | O25: 29.89 | P25: 4.07 | Q25: 35.26 | R25: 10.46 | S25: -1.38 | T25: 0.98 | U25: 96.87 | V25: -14.03 | W25: -6.78 | X25: 8.69 | Y25: 5.59 | Z25: 1.10 | AA25: -0.95 | AB25: -0.11 | AC25: 9.46 | AD25: -3.66 | AE25: -0.12 | AF25: -2.39 | AG25: 2.12 | AH25: 6.21 | AI25: 40.85 | AJ25: -22.13 | AK25: 2.01 | AL25: 28.80
A26: (一）银行自身 | C26: -19.01 | D26: 0.01 | E26: 0.00 | F26: 0.00 | G26: -0.00 | H26: 1.15 | I26: -0.00 | J26: -0.02 | K26: -20.64 | L26: 0.05 | M26: -0.58 | N26: 0.03 | O26: 0.02 | P26: 0.00 | Q26: -0.00 | R26: -0.08 | S26: 0.01 | T26: 0.00 | U26: -2.30 | V26: 0.00 | W26: 0.02 | X26: -0.56 | Y26: 0.02 | Z26: 0 | AA26: 0.01 | AB26: 0 | AC26: 0.00 | AD26: 0.00 | AE26: 0 | AF26: 0 | AG26: 0 | AH26: -0.01 | AI26: 1.59 | AJ26: 0.01 | AK26: -0.49 | AL26: -2.00
A27: (二）银行代客 | C27: -260.01 | D27: 4.20 | E27: 7.45 | F27: -5.63 | G27: -0.13 | H27: 0.27 | I27: -3.00 | J27: -1.68 | K27: -125.90 | L27: 106.63 | M27: 158.75 | N27: 9.72 | O27: 29.87 | P27: 4.07 | Q27: 35.26 | R27: 10.54 | S27: -1.39 | T27: 0.98 | U27: 99.18 | V27: -14.03 | W27: -6.80 | X27: 9.24 | Y27: 5.58 | Z27: 1.10 | AA27: -0.95 | AB27: -0.11 | AC27: 9.46 | AD27: -3.66 | AE27: -0.12 | AF27: -2.39 | AG27: 2.12 | AH27: 6.23 | AI27: 39.26 | AJ27: -22.14 | AK27: 2.50 | AL27: 30.80
A28: 1.经常项目 | C28: -239.47 | D28: 1.50 | E28: 11.41 | F28: -2.88 | G28: 0.09 | H28: 0.07 | I28: -3.00 | J28: -1.75 | K28: -125.59 | L28: 113.24 | M28: 158.93 | N28: 9.67 | O28: 32.36 | P28: 4.89 | Q28: 37.20 | R28: 12.89 | S28: 0.13 | T28: 1.49 | U28: 102.23 | V28: -12.12 | W28: -7.00 | X28: 9.58 | Y28: 8.90 | Z28: 1.77 | AA28: 0.73 | AB28: -0.11 | AC28: 11.52 | AD28: -2.60 | AE28: -0.01 | AF28: 0.62 | AG28: 1.70 | AH28: 6.71 | AI28: 48.78 | AJ28: -21.15 | AK28: 2.26 | AL28: 28.02
A29: 1.1货物贸易 | C29: -196.89 | D29: 3.73 | E29: 12.15 | F29: -2.27 | G29: 0.82 | H29: 0.40 | I29: -1.38 | J29: -1.28 | K29: -75.16 | L29: 123.05 | M29: 166.78 | N29: 13.05 | O29: 31.18 | P29: 5.90 | Q29: 41.09 | R29: 13.19 | S29: 1.20 | T29: 2.12 | U29: 108.27 | V29: -11.28 | W29: -5.15 | X29: 10.78 | Y29: 9.16 | Z29: 2.08 | AA29: 1.17 | AB29: -0.03 | AC29: 12.55 | AD29: -2.47 | AE29: 0.02 | AF29: 0.76 | AG29: 1.83 | AH29: 6.92 | AI29: 51.06 | AJ29: -19.95 | AK29: 0.49 | AL29: 52.44
A30: 1.2服务贸易 | C30: -17.99 | D30: -0.45 | E30: -0.75 | F30: -0.68 | G30: -0.45 | H30: -1.18 | I30: -2.01 | J30: -0.83 | K30: -23.14 | L30: -2.92 | M30: -4.55 | N30: -1.07 | O30: -0.30 | P30: -0.77 | Q30: -2.18 | R30: -0.90 | S30: -1.17 | T30: -0.84 | U30: -3.77 | V30: -0.45 | W30: -1.53 | X30: -1.06 | Y30: -1.40 | Z30: -0.15 | AA30: -0.68 | AB30: -0.08 | AC30: -0.84 | AD30: -0.23 | AE30: -0.03 | AF30: -0.10 | AG30: -0.19 | AH30: 0.23 | AI30: -0.47 | AJ30: -0.79 | AK30: 0.19 | AL30: -9.87
A31: 1.3收益和经常转移 | C31: -24.59 | D31: -1.78 | E31: 0.01 | F31: 0.07 | G31: -0.29 | H31: 0.85 | I31: 0.39 | J31: 0.36 | K31: -27.29 | L31: -6.89 | M31: -3.29 | N31: -2.31 | O31: 1.48 | P31: -0.24 | Q31: -1.71 | R31: 0.60 | S31: 0.10 | T31: 0.22 | U31: -2.28 | V31: -0.39 | W31: -0.32 | X31: -0.15 | Y31: 1.14 | Z31: -0.15 | AA31: 0.24 | AB31: 0.01 | AC31: -0.19 | AD31: 0.11 | AE31: 0.00 | AF31: -0.04 | AG31: 0.06 | AH31: -0.44 | AI31: -1.81 | AJ31: -0.40 | AK31: 1.57 | AL31: -14.55
A32: 2.资本与金融项目 | C32: -20.55 | D32: 2.70 | E32: -3.96 | F32: -2.75 | G32: =G12-G22 -> -0.22 | H32: 0.20 | I32: -0.00 | J32: 0.07 | K32: -0.31 | L32: -6.60 | M32: -0.18 | N32: 0.05 | O32: -2.49 | P32: -0.82 | Q32: -1.94 | R32: -2.35 | S32: -1.52 | T32: -0.52 | U32: -3.05 | V32: -1.92 | W32: 0.20 | X32: -0.34 | Y32: -3.32 | Z32: -0.68 | AA32: -1.69 | AB32: -0.00 | AC32: -2.06 | AD32: -1.06 | AE32: -0.11 | AF32: -3.01 | AG32: 0.42 | AH32: -0.49 | AI32: -9.51 | AJ32: -0.99 | AK32: 0.24 | AL32: 2.78
A33: 其中: 直接投资 | C33: =C13-C23 -> -0.77 | D33: 1.12 | E33: -1.46 | F33: 0.12 | G33: -0.18 | H33: 0.02 | I33: 0.61 | J33: 0.05 | K33: -6.25 | L33: 5.15 | M33: 0.16 | N33: 0.28 | O33: -0.72 | P33: -0.19 | Q33: 2.68 | R33: 0.06 | S33: 0.47 | T33: -0.11 | U33: 0.35 | V33: 0.15 | W33: 0.47 | X33: -0.22 | Y33: -0.07 | Z33: 0.01 | AA33: -0.40 | AB33: -0.00 | AC33: 0.15 | AD33: 0.00 | AE33: -0.01 | AF33: 0.01 | AG33: 0.47 | AH33: -0.35 | AI33: -7.02 | AJ33: -0.19 | AK33: 1.22 | AL33: -1.76
A34: 证券投资 | C34: -9.41 | D34: -0.06 | E34: -0.00 | F34: -2.60 | G34: 0.01 | H34: 0.04 | I34: -0.02 | J34: -0.00 | K34: 15.73 | L34: -1.11 | M34: 3.78 | N34: -0.47 | O34: 0.04 | P34: -0.32 | Q34: -0.57 | R34: -1.47 | S34: -0.01 | T34: 0.58 | U34: 3.16 | V34: -0.00 | W34: 0.07 | X34: -0.03 | Y34: -0.79 | Z34: 0.00 | AA34: -1.06 | AB34: 0 | AC34: 0 | AD34: -0.06 | AE34: 0.00 | AF34: -3.00 | AG34: 0.09 | AH34: 0.09 | AI34: 1.12 | AJ34: 0.07 | AK34: -0.10 | AL34: 7.37
A35: 注： 1.分地区是指办理结售汇业务的银行所在地。其中，本表中辽宁不含大连，浙江不含宁波，福建不含厦门，山东不含青岛，广东不含深圳。

Sheet 2023年7月（按美元）
A2: 2023年7月银行结售汇数据（分地区）
A3: 单位：亿美元
A4: 项目 | C4: 北京 | D4: 天津 | E4: 河北 | F4: 山西 | G4: 内蒙古 | H4: 辽宁 | I4: 吉林 | J4: 黑龙江 | K4: 上海 | L4: 江苏 | M4: 浙江 | N4: 安徽 | O4: 福建 | P4: 江西 | Q4: 山东 | R4: 河南 | S4: 湖北 | T4: 湖南 | U4: 广东 | V4: 广西 | W4: 海南 | X4: 重庆 | Y4: 四川 | Z4: 贵州 | AA4: 云南 | AB4: 西藏 | AC4: 陕西 | AD4: 甘肃 | AE4: 青海 | AF4: 宁夏 | AG4: 新疆 | AH4: 大连 | AI4: 宁波 | AJ4: 厦门 | AK4: 青岛 | AL4: 深圳
A5: 一、结汇 | C5: 91.63 | D5: 30.61 | E5: 24.66 | F5: 3.28 | G5: 3.85 | H5: 8.83 | I5: 3.66 | J5: 3.46 | K5: 271.80 | L5: 211.09 | M5: 231.12 | N5: 26.03 | O5: 45.00 | P5: 15.89 | Q5: 81.37 | R5: 23.12 | S5: 21.63 | T5: 14.54 | U5: 180.66 | V5: 5.71 | W5: 2.81 | X5: 21.47 | Y5: 19.66 | Z5: 3.25 | AA5: 3.36 | AB5: 0.92 | AC5: 15.50 | AD5: 0.87 | AE5: 0.23 | AF5: 1.02 | AG5: 6.47 | AH5: 16.02 | AI5: 104.27 | AJ5: 33.47 | AK5: 37.25 | AL5: 112.19
A6: (一）银行自身 | C6: 4.60 | D6: 0.07 | E6: 0.00 | F6: 0.00 | G6: 0.00 | H6: 0.00 | I6: 0.00 | J6: 0.00 | K6: 10.57 | L6: 0.12 | M6: 1.15 | N6: 0.00 | O6: 0.03 | P6: 0.00 | Q6: 0.23 | R6: 0.00 | S6: 0.01 | T6: 0.00 | U6: 0.09 | V6: 0.00 | W6: 0.02 | X6: 0.01 | Y6: 0.01 | Z6: 0.00 | AA6: 0.00 | AB6: 0.00 | AC6: 0.00 | AD6: 0.00 | AE6: 0.00 | AF6: 0.00 | AG6: 0.11 | AH6: 0.00 | AI6: 32.24 | AJ6: 0.01 | AK6: 0.01 | AL6: 0.26
A7: (二）银行代客 | C7: 87.03 | D7: 30.54 | E7: 24.66 | F7: 3.28 | G7: 3.85 | H7: 8.83 | I7: 3.66 | J7: 3.46 | K7: 261.23 | L7: 210.97 | M7: 229.98 | N7: 26.03 | O7: 44.97 | P7: 15.88 | Q7: 81.14 | R7: 23.12 | S7: 21.62 | T7: 14.53 | U7: 180.57 | V7: 5.71 | W7: 2.79 | X7: 21.46 | Y7: 19.65 | Z7: 3.25 | AA7: 3.36 | AB7: 0.92 | AC7: 15.50 | AD7: 0.87 | AE7: 0.23 | AF7: 1.02 | AG7: 6.36 | AH7: 16.01 | AI7: 72.03 | AJ7: 33.45 | AK7: 37.24 | AL7: 111.93
A8: 1.经常项目 | C8: 66.28 | D8: 28.01 | E8: 23.74 | F8: 3.16 | G8: 3.39 | H8: 8.64 | I8: 3.32 | J8: 3.15 | K8: 169.15 | L8: 199.33 | M8: 224.70 | N8: 25.37 | O8: 44.61 | P8: 14.97 | Q8: 75.77 | R8: 22.49 | S8: 17.80 | T8: 13.84 | U8: 173.10 | V8: 5.35 | W8: 2.23 | X8: 20.94 | Y8: 17.84 | Z8: 2.76 | AA8: 3.25 | AB8: 0.92 | AC8: 15.35 | AD8: 0.77 | AE8: 0.23 | AF8: 1.01 | AG8: 5.06 | AH8: 15.89 | AI8: 70.82 | AJ8: 30.50 | AK8: 34.54 | AL8: 101.77
A9: 1.1货物贸易 | C9: 41.19 | D9: 25.28 | E9: 22.23 | F9: 2.79 | G9: 3.08 | H9: 7.33 | I9: 2.33 | J9: 2.38 | K9: 128.12 | L9: 192.45 | M9: 213.69 | N9: 24.59 | O9: 41.78 | P9: 14.50 | Q9: 72.09 | R9: 20.91 | S9: 15.91 | T9: 12.71 | U9: 162.10 | V9: 4.80 | W9: 1.90 | X9: 19.67 | Y9: 13.70 | Z9: 2.46 | AA9: 2.81 | AB9: 0.90 | AC9: 14.04 | AD9: 0.59 | AE9: 0.20 | AF9: 0.95 | AG9: 4.54 | AH9: 13.55 | AI9: 68.77 | AJ9: 28.83 | AK9: 32.11 | AL9: 91.20
A10: 1.2服务贸易 | C10: 21.09 | D10: 1.85 | E10: 0.77 | F10: 0.25 | G10: 0.17 | H10: 0.47 | I10: 0.30 | J10: 0.29 | K10: 34.44 | L10: 4.61 | M10: 5.31 | N10: 0.46 | O10: 0.96 | P10: 0.22 | Q10: 1.84 | R10: 0.74 | S10: 1.01 | T10: 0.73 | U10: 8.10 | V10: 0.23 | W10: 0.25 | X10: 0.95 | Y10: 2.42 | Z10: 0.20 | AA10: 0.33 | AB10: 0.01 | AC10: 1.01 | AD10: 0.08 | AE10: 0.02 | AF10: 0.03 | AG10: 0.42 | AH10: 1.89 | AI10: 1.60 | AJ10: 1.16 | AK10: 1.81 | AL10: 8.56
A11: 1.3收益和经常转移 | C11: 4.00 | D11: 0.88 | E11: 0.73 | F11: 0.12 | G11: 0.14 | H11: 0.84 | I11: 0.69 | J11: 0.48 | K11: 6.59 | L11: 2.28 | M11: 5.70 | N11: 0.33 | O11: 1.87 | P11: 0.24 | Q11: 1.84 | R11: 0.84 | S11: 0.88 | T11: 0.40 | U11: 2.90 | V11: 0.31 | W11: 0.08 | X11: 0.33 | Y11: 1.73 | Z11: 0.10 | AA11: 0.11 | AB11: 0.01 | AC11: 0.29 | AD11: 0.10 | AE11: 0.01 | AF11: 0.03 | AG11: 0.09 | AH11: 0.45 | AI11: 0.46 | AJ11: 0.51 | AK11: 0.61 | AL11: 2.00
A12: 2.资本与金融项目 | C12: 20.75 | D12: 2.54 | E12: 0.92 | F12: 0.12 | G12: 0.46 | H12: 0.19 | I12: 0.33 | J12: 0.30 | K12: 92.08 | L12: 11.64 | M12: 5.27 | N12: 0.65 | O12: 0.36 | P12: 0.92 | Q12: 5.37 | R12: 0.63 | S12: 3.82 | T12: 0.70 | U12: 7.47 | V12: 0.36 | W12: 0.56 | X12: 0.52 | Y12: 1.81 | Z12: 0.50 | AA12: 0.11 | AB12: 0.00 | AC12: 0.15 | AD12: 0.10 | AE12: 0.00 | AF12: 0.00 | AG12: 1.30 | AH12: 0.12 | AI12: 1.20 | AJ12: 2.95 | AK12: 2.71 | AL12: 10.16
A13: 其中: 直接投资 | C13: 5.91 | D13: 2.35 | E13: 0.86 | F13: 0.07 | G13: 0.38 | H13: 0.06 | I13: 0.19 | J13: 0.29 | K13: 10.46 | L13: 8.49 | M13: 3.24 | N13: 0.26 | O13: 0.33 | P13: 0.31 | Q13: 5.12 | R13: 0.28 | S13: 1.64 | T13: 0.68 | U13: 2.25 | V13: 0.15 | W13: 0.30 | X13: 0.46 | Y13: 1.64 | Z13: 0.02 | AA13: 0.07 | AB13: 0.00 | AC13: 0.13 | AD13: 0.00 | AE13: 0.00 | AF13: 0.00 | AG13: 1.16 | AH13: 0.09 | AI13: 1.02 | AJ13: 2.90 | AK13: 2.65 | AL13: 3.77
A14: 证券投资 | C14: 10.99 | D14: 0.13 | E14: 0.02 | F14: 0.00 | G14: 0.00 | H14: 0.03 | I14: 0.00 | J14: 0.00 | K14: 77.87 | L14: 0.81 | M14: 1.31 | N14: 0.07 | O14: 0.00 | P14: 0.49 | Q14: 0.00 | R14: 0.02 | S14: 2.05 | T14: 0.00 | U14: 5.05 | V14: 0.00 | W14: 0.23 | X14: 0.02 | Y14: 0.01 | Z14: 0.38 | AA14: 0.01 | AB14: 0.00 | AC14: 0.00 | AD14: 0.07 | AE14: 0.00 | AF14: 0.00 | AG14: 0.04 | AH14: 0.00 | AI14: 0.02 | AJ14: 0.05 | AK14: 0.00 | AL14: 6.33
A15: 二、售汇 | C15: 381.72 | D15: 30.15 | E15: 17.02 | F15: 7.71 | G15: 7.10 | H15: 13.06 | I15: 11.93 | J15: 5.50 | K15: 441.53 | L15: 114.82 | M15: 105.82 | N15: 32.13 | O15: 32.04 | P15: 11.42 | Q15: 48.92 | R15: 13.31 | S15: 23.06 | T15: 15.55 | U15: 102.21 | V15: 18.08 | W15: 12.49 | X15: 18.90 | Y15: 18.22 | Z15: 2.09 | AA15: 8.37 | AB15: 0.06 | AC15: 10.80 | AD15: 5.43 | AE15: 0.26 | AF15: 0.96 | AG15: 4.43 | AH15: 12.20 | AI15: 74.38 | AJ15: 47.09 | AK15: 35.88 | AL15: 140.22
A16: (一）银行自身 | C16: 61.28 | D16: 0.00 | E16: 0.00 | F16: 0.00 | G16: 0.00 | H16: 0.00 | I16: 0.00 | J16: 0.00 | K16: 30.32 | L16: 0.15 | M16: 3.67 | N16: 0.00 | O16: 0.04 | P16: 0.00 | Q16: 0.17 | R16: 0.00 | S16: 0.00 | T16: 0.00 | U16: 2.18 | V16: 0.00 | W16: 0.14 | X16: 0.73 | Y16: 0.00 | Z16: 0.00 | AA16: 0.00 | AB16: 0.00 | AC16: 0.17 | AD16: 0.00 | AE16: 0.00 | AF16: 0.00 | AG16: 0.23 | AH16: 0.00 | AI16: 34.64 | AJ16: 0.00 | AK16: 0.00 | AL16: 5.67
A17: (二）银行代客 | C17: 320.44 | D17: 30.15 | E17: 17.02 | F17: 7.71 | G17: 7.10 | H17: 13.06 | I17: 11.93 | J17: 5.50 | K17: 411.21 | L17: 114.67 | M17: 102.15 | N17: 32.13 | O17: 32.00 | P17: 11.42 | Q17: 48.75 | R17: 13.31 | S17: 23.06 | T17: 15.55 | U17: 100.03 | V17: 18.08 | W17: 12.35 | X17: 18.17 | Y17: 18.22 | Z17: 2.09 | AA17: 8.37 | AB17: 0.06 | AC17: 10.63 | AD17: 5.43 | AE17: 0.26 | AF17: 0.96 | AG17: 4.21 | AH17: 12.20 | AI17: 39.74 | AJ17: 47.09 | AK17: 35.88 | AL17: 134.55
A18: 1.经常项目 | C18: 292.90 | D18: 28.93 | E18: 14.79 | F18: 7.34 | G18: 6.95 | H18: 12.30 | I18: 11.56 | J18: 5.39 | K18: 301.66 | L18: 100.90 | M18: 92.21 | N18: 31.17 | O18: 29.86 | P18: 10.40 | Q18: 47.06 | R18: 12.91 | S18: 20.42 | T18: 15.35 | U18: 89.87 | V18: 17.20 | W18: 11.65 | X18: 17.91 | Y18: 15.10 | Z18: 1.85 | AA18: 5.49 | AB18: 0.06 | AC18: 9.01 | AD18: 3.33 | AE18: 0.22 | AF18: 0.79 | AG18: 3.85 | AH18: 11.83 | AI18: 35.87 | AJ18: 46.69 | AK18: 34.06 | AL18: 98.49
A19: 1.1货物贸易 | C19: 227.70 | D19: 23.65 | E19: 11.97 | F19: 6.17 | G19: 5.39 | H19: 9.95 | I19: 9.34 | J19: 4.00 | K19: 207.01 | L19: 82.63 | M19: 75.42 | N19: 27.52 | O19: 26.06 | P19: 8.18 | Q19: 40.89 | R19: 9.85 | S19: 16.28 | T19: 12.58 | U19: 65.55 | V19: 15.60 | W19: 8.97 | X19: 14.77 | Y19: 10.29 | Z19: 1.22 | AA19: 4.35 | AB19: 0.04 | AC19: 6.60 | AD19: 2.78 | AE19: 0.16 | AF19: 0.59 | AG19: 2.99 | AH19: 10.21 | AI19: 32.82 | AJ19: 44.21 | AK19: 30.87 | AL19: 73.11
A20: 1.2服务贸易 | C20: 42.89 | D20: 3.40 | E20: 1.89 | F20: 1.13 | G20: 0.94 | H20: 2.23 | I20: 1.43 | J20: 1.35 | K20: 60.58 | L20: 12.14 | M20: 9.94 | N20: 2.39 | O20: 2.33 | P20: 1.01 | Q20: 4.78 | R20: 2.35 | S20: 3.15 | T20: 1.84 | U20: 13.44 | V20: 0.78 | W20: 2.50 | X20: 1.94 | Y20: 3.97 | Z20: 0.61 | AA20: 1.08 | AB20: 0.01 | AC20: 2.05 | AD20: 0.55 | AE20: 0.06 | AF20: 0.18 | AG20: 0.66 | AH20: 1.48 | AI20: 2.32 | AJ20: 2.05 | AK20: 2.49 | AL20: 20.44
A21: 1.3收益和经常转移 | C21: 22.31 | D21: 1.87 | E21: 0.93 | F21: 0.03 | G21: 0.63 | H21: 0.12 | I21: 0.79 | J21: 0.05 | K21: 34.08 | L21: 6.13 | M21: 6.84 | N21: 1.26 | O21: 1.47 | P21: 1.20 | Q21: 1.39 | R21: 0.72 | S21: 0.99 | T21: 0.92 | U21: 10.87 | V21: 0.83 | W21: 0.18 | X21: 1.20 | Y21: 0.84 | Z21: 0.02 | AA21: 0.07 | AB21: 0.00 | AC21: 0.36 | AD21: 0.00 | AE21: 0.00 | AF21: 0.01 | AG21: 0.20 | AH21: 0.14 | AI21: 0.73 | AJ21: 0.44 | AK21: 0.70 | AL21: 4.94
A22: 2.资本与金融项目 | C22: 27.55 | D22: 1.22 | E22: 2.23 | F22: 0.38 | G22: 0.15 | H22: 0.76 | I22: 0.37 | J22: 0.10 | K22: 109.55 | L22: 13.77 | M22: 9.95 | N22: 0.96 | O22: 2.14 | P22: 1.03 | Q22: 1.69 | R22: 0.40 | S22: 2.64 | T22: 0.21 | U22: 10.16 | V22: 0.87 | W22: 0.70 | X22: 0.25 | Y22: 3.12 | Z22: 0.24 | AA22: 2.87 | AB22: 0.00 | AC22: 1.62 | AD22: 2.10 | AE22: 0.04 | AF22: 0.17 | AG22: 0.36 | AH22: 0.37 | AI22: 3.88 | AJ22: 0.40 | AK22: 1.82 | AL22: 36.06
A23: 其中: 直接投资 | C23: 10.55 | D23: 0.50 | E23: 1.06 | F23: 0.02 | G23: 0.11 | H23: 0.53 | I23: 0.13 | J23: 0.09 | K23: 15.45 | L23: 7.67 | M23: 3.35 | N23: 0.52 | O23: 1.51 | P23: 0.30 | Q23: 1.22 | R23: 0.04 | S23: 0.77 | T23: 0.04 | U23: 2.96 | V23: 0.01 | W23: 0.44 | X23: 0.06 | Y23: 2.61 | Z23: 0.20 | AA23: 2.79 | AB23: 0.00 | AC23: 0.06 | AD23: 1.70 | AE23: 0.02 | AF23: 0.00 | AG23: 0.01 | AH23: 0.08 | AI23: 1.61 | AJ23: 0.24 | AK23: 0.61 | AL23: 24.55
A24: 证券投资 | C24: 10.78 | D24: 0.19 | E24: 0.00 | F24: 0.00 | G24: 0.00 | H24: 0.00 | I24: 0.00 | J24: 0.00 | K24: 89.29 | L24: 0.62 | M24: 0.58 | N24: 0.01 | O24: 0.00 | P24: 0.01 | Q24: 0.00 | R24: 0.00 | S24: 1.58 | T24: 0.00 | U24: 1.69 | V24: 0.00 | W24: 0.21 | X24: 0.00 | Y24: 0.09 | Z24: 0.00 | AA24: 0.00 | AB24: 0.00 | AC24: 0.19 | AD24: 0.00 | AE24: 0.00 | AF24: 0.00 | AG24: 0.00 | AH24: 0.05 | AI24: 0.11 | AJ24: 0.06 | AK24: 0.90 | AL24: 9.99
A25: 三、差额 | C25: =C5-C15 -> -290.09 | D25: =D5-D15 -> 0.46 | E25: 7.64 | F25: -4.43 | G25: -3.25 | H25: -4.23 | I25: -8.27 | J25: -2.04 | K25: -169.72 | L25: 96.27 | M25: 125.30 | N25: -6.10 | O25: 12.96 | P25: 4.46 | Q25: 32.45 | R25: 9.81 | S25: -1.43 | T25: -1.02 | U25: 78.46 | V25: -12.37 | W25: -9.68 | X25: 2.57 | Y25: 1.44 | Z25: 1.17 | AA25: -5.00 | AB25: 0.86 | AC25: 4.70 | AD25: -4.56 | AE25: -0.03 | AF25: 0.05 | AG25: 2.04 | AH25: 3.82 | AI25: 29.90 | AJ25: -13.63 | AK25: 1.37 | AL25: -28.04
A26: (一）银行自身 | C26: -56.68 | D26: 0.06 | E26: 0.00 | F26: 0.00 | G26: 0.00 | H26: -0.00 | I26: -0.00 | J26: 0.00 | K26: -19.74 | L26: -0.03 | M26: -2.52 | N26: 0.00 | O26: -0.01 | P26: 0.00 | Q26: 0.05 | R26: 0.00 | S26: 0.01 | T26: 0.00 | U26: -2.09 | V26: 0.00 | W26: -0.11 | X26: -0.73 | Y26: 0.01 | Z26: 0 | AA26: 0.00 | AB26: 0 | AC26: -0.16 | AD26: 0.00 | AE26: 0 | AF26: 0 | AG26: -0.12 | AH26: 0.00 | AI26: -2.39 | AJ26: 0.01 | AK26: 0.01 | AL26: -5.42
A27: (二）银行代客 | C27: -233.41 | D27: 0.39 | E27: 7.64 | F27: -4.43 | G27: -3.25 | H27: -4.23 | I27: -8.27 | J27: -2.04 | K27: -149.98 | L27: 96.30 | M27: 127.82 | N27: -6.11 | O27: 12.97 | P27: 4.46 | Q27: 32.39 | R27: 9.80 | S27: -1.44 | T27: -1.02 | U27: 80.54 | V27: -12.37 | W27: -9.56 | X27: 3.30 | Y27: 1.43 | Z27: 1.17 | AA27: -5.00 | AB27: 0.86 | AC27: 4.86 | AD27: -4.56 | AE27: -0.03 | AF27: 0.05 | AG27: 2.16 | AH27: 3.81 | AI27: 32.29 | AJ27: -13.64 | AK27: 1.36 | AL27: -22.62
A28: 1.经常项目 | C28: -226.61 | D28: -0.92 | E28: 8.95 | F28: -4.18 | G28: -3.56 | H28: -3.66 | I28: -8.23 | J28: -2.24 | K28: -132.51 | L28: 98.43 | M28: 132.50 | N28: -5.80 | O28: 14.75 | P28: 4.57 | Q28: 28.71 | R28: 9.58 | S28: -2.62 | T28: -1.51 | U28: 83.23 | V28: -11.85 | W28: -9.43 | X28: 3.03 | Y28: 2.74 | Z28: 0.91 | AA28: -2.24 | AB28: 0.86 | AC28: 6.33 | AD28: -2.56 | AE28: 0.01 | AF28: 0.22 | AG28: 1.21 | AH28: 4.06 | AI28: 34.96 | AJ28: -16.19 | AK28: 0.48 | AL28: 3.27
A29: 1.1货物贸易 | C29: -186.51 | D29: 1.63 | E29: 10.26 | F29: -3.38 | G29: -2.31 | H29: -2.62 | I29: -7.01 | J29: -1.61 | K29: -78.89 | L29: 109.81 | M29: 138.27 | N29: -2.93 | O29: 15.72 | P29: 6.32 | Q29: 31.19 | R29: 11.06 | S29: -0.37 | T29: 0.12 | U29: 96.55 | V29: -10.79 | W29: -7.07 | X29: 4.90 | Y29: 3.41 | Z29: 1.24 | AA29: -1.53 | AB29: 0.86 | AC29: 7.44 | AD29: -2.20 | AE29: 0.04 | AF29: 0.36 | AG29: 1.56 | AH29: 3.34 | AI29: 35.95 | AJ29: -15.38 | AK29: 1.25 | AL29: 18.09
A30: 1.2服务贸易 | C30: -21.80 | D30: -1.55 | E30: -1.12 | F30: -0.88 | G30: -0.76 | H30: -1.76 | I30: -1.13 | J30: -1.06 | K30: -26.14 | L30: -7.54 | M30: -4.64 | N30: -1.93 | O30: -1.37 | P30: -0.79 | Q30: -2.93 | R30: -1.61 | S30: -2.14 | T30: -1.11 | U30: -5.34 | V30: -0.55 | W30: -2.25 | X30: -0.99 | Y30: -1.55 | Z30: -0.41 | AA30: -0.75 | AB30: 0.00 | AC30: -1.04 | AD30: -0.46 | AE30: -0.04 | AF30: -0.15 | AG30: -0.24 | AH30: 0.41 | AI30: -0.72 | AJ30: -0.89 | AK30: -0.68 | AL30: -11.88
A31: 1.3收益和经常转移 | C31: -18.30 | D31: -1.00 | E31: -0.20 | F31: 0.08 | G31: -0.48 | H31: 0.72 | I31: -0.10 | J31: 0.43 | K31: -27.49 | L31: -3.85 | M31: -1.14 | N31: -0.94 | O31: 0.41 | P31: -0.96 | Q31: 0.45 | R31: 0.13 | S31: -0.11 | T31: -0.53 | U31: -7.97 | V31: -0.51 | W31: -0.11 | X31: -0.87 | Y31: 0.88 | Z31: 0.08 | AA31: 0.04 | AB31: 0.01 | AC31: -0.07 | AD31: 0.10 | AE31: 0.01 | AF31: 0.01 | AG31: -0.11 | AH31: 0.31 | AI31: -0.27 | AJ31: 0.07 | AK31: -0.08 | AL31: -2.94
A32: 2.资本与金融项目 | C32: -6.80 | D32: 1.31 | E32: -1.30 | F32: -0.25 | G32: =G12-G22 -> 0.31 | H32: -0.57 | I32: -0.04 | J32: 0.20 | K32: -17.47 | L32: -2.13 | M32: -4.67 | N32: -0.31 | O32: -1.78 | P32: -0.11 | Q32: 3.68 | R32: 0.22 | S32: 1.18 | T32: 0.49 | U32: -2.69 | V32: -0.51 | W32: -0.14 | X32: 0.27 | Y32: -1.31 | Z32: 0.26 | AA32: -2.76 | AB32: 0.00 | AC32: -1.47 | AD32: -2.00 | AE32: -0.04 | AF32: -0.17 | AG32: 0.94 | AH32: -0.25 | AI32: -2.67 | AJ32: 2.56 | AK32: 0.88 | AL32: -25.89
A33: 其中: 直接投资 | C33: =C13-C23 -> -4.64 | D33: 1.85 | E33: -0.21 | F33: 0.06 | G33: 0.28 | H33: -0.47 | I33: 0.05 | J33: 0.20 | K33: -4.99 | L33: 0.82 | M33: -0.11 | N33: -0.26 | O33: -1.18 | P33: 0.01 | Q33: 3.90 | R33: 0.24 | S33: 0.87 | T33: 0.64 | U33: -0.70 | V33: 0.13 | W33: -0.15 | X33: 0.40 | Y33: -0.97 | Z33: -0.18 | AA33: -2.72 | AB33: 0.00 | AC33: 0.07 | AD33: -1.70 | AE33: -0.02 | AF33: -0.00 | AG33: 1.15 | AH33: 0.01 | AI33: -0.59 | AJ33: 2.66 | AK33: 2.04 | AL33: -20.77
A34: 证券投资 | C34: 0.22 | D34: -0.06 | E34: 0.02 | F34: 0 | G34: 0.00 | H34: 0.03 | I34: 0 | J34: -0.00 | K34: -11.42 | L34: 0.19 | M34: 0.74 | N34: 0.06 | O34: 0.00 | P34: 0.48 | Q34: -0.00 | R34: 0.02 | S34: 0.46 | T34: 0.00 | U34: 3.36 | V34: -0.00 | W34: 0.02 | X34: 0.02 | Y34: -0.08 | Z34: 0.38 | AA34: 0.01 | AB34: 0 | AC34: -0.19 | AD34: 0.07 | AE34: 0 | AF34: 0 | AG34: 0.04 | AH34: -0.05 | AI34: -0.09 | AJ34: -0.01 | AK34: -0.89 | AL34: -3.65
A35: 注： 1.分地区是指办理结售汇业务的银行所在地。其中，本表中辽宁不含大连，浙江不含宁波，福建不含厦门，山东不含青岛，广东不含深圳。

Sheet 2023年8月（按美元）
A2: 2023年8月银行结售汇数据（分地区）
A3: 单位：亿美元
A4: 项目 | C4: 北京 | D4: 天津 | E4: 河北 | F4: 山西 | G4: 内蒙古 | H4: 辽宁 | I4: 吉林 | J4: 黑龙江 | K4: 上海 | L4: 江苏 | M4: 浙江 | N4: 安徽 | O4: 福建 | P4: 江西 | Q4: 山东 | R4: 河南 | S4: 湖北 | T4: 湖南 | U4: 广东 | V4: 广西 | W4: 海南 | X4: 重庆 | Y4: 四川 | Z4: 贵州 | AA4: 云南 | AB4: 西藏 | AC4: 陕西 | AD4: 甘肃 | AE4: 青海 | AF4: 宁夏 | AG4: 新疆 | AH4: 大连 | AI4: 宁波 | AJ4: 厦门 | AK4: 青岛 | AL4: 深圳
A5: 一、结汇 | C5: 110.88 | D5: 27.89 | E5: 32.52 | F5: 3.58 | G5: 6.32 | H5: 9.72 | I5: 4.09 | J5: 3.81 | K5: 267.74 | L5: 250.41 | M5: 292.74 | N5: 36.56 | O5: 52.38 | P5: 18.93 | Q5: 98.91 | R5: 25.41 | S5: 21.83 | T5: 19.58 | U5: 203.74 | V5: 9.74 | W5: 3.88 | X5: 21.55 | Y5: 27.19 | Z5: 3.88 | AA5: 5.47 | AB5: 0.34 | AC5: 18.84 | AD5: 1.19 | AE5: 0.22 | AF5: 1.08 | AG5: 5.04 | AH5: 15.00 | AI5: 109.83 | AJ5: 40.45 | AK5: 43.66 | AL5: 138.49
A6: (一）银行自身 | C6: 1.96 | D6: 0.01 | E6: 0.00 | F6: 0.00 | G6: 0.00 | H6: 0.00 | I6: 0.00 | J6: 0.00 | K6: 3.88 | L6: 0.15 | M6: 5.04 | N6: 0.01 | O6: 0.05 | P6: 0.00 | Q6: 0.01 | R6: 0.00 | S6: 0.00 | T6: 0.00 | U6: 0.04 | V6: 0.00 | W6: 0.00 | X6: 0.01 | Y6: 0.01 | Z6: 0.00 | AA6: 0.00 | AB6: 0.00 | AC6: 0.00 | AD6: 0.00 | AE6: 0.00 | AF6: 0.00 | AG6: 0.00 | AH6: 0.00 | AI6: 23.98 | AJ6: 0.01 | AK6: 0.01 | AL6: 0.06
A7: (二）银行代客 | C7: 108.92 | D7: 27.88 | E7: 32.52 | F7: 3.58 | G7: 6.32 | H7: 9.72 | I7: 4.09 | J7: 3.81 | K7: 263.86 | L7: 250.27 | M7: 287.70 | N7: 36.55 | O7: 52.33 | P7: 18.93 | Q7: 98.90 | R7: 25.40 | S7: 21.83 | T7: 19.58 | U7: 203.70 | V7: 9.74 | W7: 3.88 | X7: 21.55 | Y7: 27.18 | Z7: 3.88 | AA7: 5.47 | AB7: 0.34 | AC7: 18.84 | AD7: 1.19 | AE7: 0.22 | AF7: 1.08 | AG7: 5.04 | AH7: 15.00 | AI7: 85.85 | AJ7: 40.44 | AK7: 43.65 | AL7: 138.43
A8: 1.经常项目 | C8: 78.09 | D8: 26.04 | E8: 31.96 | F8: 3.49 | G8: 6.16 | H8: 9.40 | I8: 3.94 | J8: 3.58 | K8: 183.46 | L8: 243.99 | M8: 280.23 | N8: 34.89 | O8: 51.64 | P8: 18.12 | Q8: 94.05 | R8: 24.87 | S8: 21.10 | T8: 19.08 | U8: 199.17 | V8: 8.56 | W8: 3.09 | X8: 20.58 | Y8: 25.22 | Z8: 2.32 | AA8: 5.29 | AB8: 0.03 | AC8: 18.00 | AD8: 1.05 | AE8: 0.22 | AF8: 1.07 | AG8: 4.79 | AH8: 14.86 | AI8: 84.95 | AJ8: 39.61 | AK8: 41.57 | AL8: 132.13
A9: 1.1货物贸易 | C9: 46.74 | D9: 23.32 | E9: 30.59 | F9: 3.11 | G9: 5.67 | H9: 8.17 | I9: 3.22 | J9: 2.92 | K9: 137.01 | L9: 236.35 | M9: 270.50 | N9: 33.78 | O9: 48.88 | P9: 17.47 | Q9: 90.97 | R9: 22.83 | S9: 18.72 | T9: 17.87 | U9: 187.33 | V9: 7.91 | W9: 2.78 | X9: 19.59 | Y9: 21.11 | Z9: 2.08 | AA9: 4.98 | AB9: 0.01 | AC9: 16.83 | AD9: 0.84 | AE9: 0.20 | AF9: 1.02 | AG9: 4.35 | AH9: 12.95 | AI9: 83.11 | AJ9: 37.78 | AK9: 38.14 | AL9: 118.39
A10: 1.2服务贸易 | C10: 21.07 | D10: 1.90 | E10: 0.75 | F10: 0.24 | G10: 0.26 | H10: 0.50 | I10: 0.19 | J10: 0.27 | K10: 37.84 | L10: 5.60 | M10: 5.03 | N10: 0.76 | O10: 1.06 | P10: 0.22 | Q10: 1.40 | R10: 1.14 | S10: 1.41 | T10: 0.77 | U10: 8.87 | V10: 0.31 | W10: 0.22 | X10: 0.67 | Y10: 2.05 | Z10: 0.13 | AA10: 0.19 | AB10: 0.02 | AC10: 0.87 | AD10: 0.09 | AE10: 0.02 | AF10: 0.03 | AG10: 0.35 | AH10: 1.39 | AI10: 1.38 | AJ10: 1.49 | AK10: 2.40 | AL10: 11.22
A11: 1.3收益和经常转移 | C11: 10.29 | D11: 0.82 | E11: 0.63 | F11: 0.13 | G11: 0.23 | H11: 0.73 | I11: 0.53 | J11: 0.39 | K11: 8.61 | L11: 2.04 | M11: 4.70 | N11: 0.34 | O11: 1.70 | P11: 0.43 | Q11: 1.68 | R11: 0.90 | S11: 0.97 | T11: 0.44 | U11: 2.97 | V11: 0.34 | W11: 0.09 | X11: 0.32 | Y11: 2.07 | Z11: 0.11 | AA11: 0.12 | AB11: 0.00 | AC11: 0.29 | AD11: 0.13 | AE11: 0.01 | AF11: 0.03 | AG11: 0.09 | AH11: 0.52 | AI11: 0.45 | AJ11: 0.35 | AK11: 1.02 | AL11: 2.52
A12: 2.资本与金融项目 | C12: 30.83 | D12: 1.84 | E12: 0.56 | F12: 0.09 | G12: 0.16 | H12: 0.32 | I12: 0.15 | J12: 0.23 | K12: 80.40 | L12: 6.28 | M12: 7.47 | N12: 1.66 | O12: 0.69 | P12: 0.81 | Q12: 4.86 | R12: 0.53 | S12: 0.73 | T12: 0.50 | U12: 4.53 | V12: 1.19 | W12: 0.79 | X12: 0.97 | Y12: 1.96 | Z12: 1.56 | AA12: 0.18 | AB12: 0.30 | AC12: 0.85 | AD12: 0.14 | AE12: 0.00 | AF12: 0.01 | AG12: 0.25 | AH12: 0.14 | AI12: 0.90 | AJ12: 0.82 | AK12: 2.08 | AL12: 6.30
A13: 其中: 直接投资 | C13: 8.55 | D13: 1.82 | E13: 0.43 | F13: 0.07 | G13: 0.04 | H13: 0.10 | I13: 0.13 | J13: 0.21 | K13: 9.47 | L13: 5.37 | M13: 2.90 | N13: 0.36 | O13: 0.15 | P13: 0.40 | Q13: 4.15 | R13: 0.45 | S13: 0.60 | T13: 0.35 | U13: 2.53 | V13: 0.13 | W13: 0.55 | X13: 0.73 | Y13: 1.14 | Z13: 0.12 | AA13: 0.05 | AB13: 0.30 | AC13: 0.22 | AD13: 0.00 | AE13: 0.00 | AF13: 0.01 | AG13: 0.19 | AH13: 0.06 | AI13: 0.40 | AJ13: 0.77 | AK13: 1.68 | AL13: 1.37
A14: 证券投资 | C14: 15.15 | D14: 0.01 | E14: 0.00 | F14: 0.00 | G14: 0.11 | H14: 0.08 | I14: 0.00 | J14: 0.00 | K14: 69.94 | L14: 0.29 | M14: 3.54 | N14: 1.12 | O14: 0.02 | P14: 0.34 | Q14: 0.45 | R14: 0.00 | S14: 0.00 | T14: 0.14 | U14: 1.18 | V14: 0.00 | W14: 0.24 | X14: 0.11 | Y14: 0.38 | Z14: 1.24 | AA14: 0.00 | AB14: 0.00 | AC14: 0.00 | AD14: 0.04 | AE14: 0.00 | AF14: 0.00 | AG14: 0.00 | AH14: 0.00 | AI14: 0.26 | AJ14: 0.03 | AK14: 0.34 | AL14: 4.87
A15: 二、售汇 | C15: 381.87 | D15: 28.86 | E15: 19.85 | F15: 7.72 | G15: 7.31 | H15: 16.46 | I15: 9.41 | J15: 7.46 | K15: 504.00 | L15: 164.23 | M15: 112.71 | N15: 30.45 | O15: 32.34 | P15: 14.70 | Q15: 61.08 | R15: 19.05 | S15: 23.00 | T15: 16.54 | U15: 111.54 | V15: 16.93 | W15: 14.97 | X15: 39.12 | Y15: 29.38 | Z15: 2.95 | AA15: 12.55 | AB15: 0.30 | AC15: 8.72 | AD15: 9.18 | AE15: 0.27 | AF15: 0.65 | AG15: 5.56 | AH15: 10.04 | AI15: 67.94 | AJ15: 58.32 | AK15: 47.61 | AL15: 143.09
A16: (一）银行自身 | C16: 6.04 | D16: 0.01 | E16: 0.00 | F16: 0.00 | G16: 0.00 | H16: 0.00 | I16: 0.00 | J16: 0.00 | K16: 36.19 | L16: 0.22 | M16: 6.73 | N16: 0.55 | O16: 0.15 | P16: 0.00 | Q16: 0.17 | R16: 0.00 | S16: 0.00 | T16: 0.00 | U16: 0.01 | V16: 0.00 | W16: 0.00 | X16: 0.00 | Y16: 0.00 | Z16: 0.00 | AA16: 0.01 | AB16: 0.00 | AC16: 0.00 | AD16: 0.00 | AE16: 0.00 | AF16: 0.00 | AG16: 0.00 | AH16: 0.00 | AI16: 24.07 | AJ16: 0.00 | AK16: 0.00 | AL16: 3.17
A17: (二）银行代客 | C17: 375.83 | D17: 28.85 | E17: 19.85 | F17: 7.71 | G17: 7.31 | H17: 16.46 | I17: 9.41 | J17: 7.46 | K17: 467.81 | L17: 164.01 | M17: 105.98 | N17: 29.90 | O17: 32.19 | P17: 14.70 | Q17: 60.91 | R17: 19.05 | S17: 23.00 | T17: 16.54 | U17: 111.53 | V17: 16.93 | W17: 14.97 | X17: 39.12 | Y17: 29.37 | Z17: 2.95 | AA17: 12.54 | AB17: 0.30 | AC17: 8.72 | AD17: 9.18 | AE17: 0.27 | AF17: 0.65 | AG17: 5.56 | AH17: 10.04 | AI17: 43.88 | AJ17: 58.32 | AK17: 47.61 | AL17: 139.92
A18: 1.经常项目 | C18: 327.76 | D18: 27.65 | E18: 18.14 | F18: 6.93 | G18: 6.90 | H18: 15.09 | I18: 9.16 | J18: 7.35 | K18: 328.27 | L18: 150.97 | M18: 93.44 | N18: 27.37 | O18: 30.56 | P18: 13.93 | Q18: 58.53 | R18: 11.48 | S18: 21.20 | T18: 15.40 | U18: 101.14 | V18: 16.49 | W18: 12.22 | X18: 38.68 | Y18: 26.71 | Z18: 2.78 | AA18: 6.02 | AB18: 0.30 | AC18: 8.10 | AD18: 4.99 | AE18: 0.19 | AF18: 0.56 | AG18: 4.48 | AH18: 9.69 | AI18: 41.80 | AJ18: 57.05 | AK18: 45.97 | AL18: 118.87
A19: 1.1货物贸易 | C19: 253.90 | D19: 22.29 | E19: 15.14 | F19: 5.21 | G19: 5.55 | H19: 11.68 | I19: 7.01 | J19: 5.44 | K19: 228.97 | L19: 131.98 | M19: 78.84 | N19: 24.57 | O19: 27.23 | P19: 12.32 | Q19: 50.35 | R19: 8.01 | S19: 15.90 | T19: 12.98 | U19: 78.10 | V19: 15.37 | W19: 10.47 | X19: 35.59 | Y19: 20.64 | Z19: 2.05 | AA19: 4.45 | AB19: 0.18 | AC19: 5.27 | AD19: 4.38 | AE19: 0.03 | AF19: 0.29 | AG19: 3.53 | AH19: 7.05 | AI19: 39.10 | AJ19: 54.36 | AK19: 39.43 | AL19: 83.46
A20: 1.2服务贸易 | C20: 42.73 | D20: 3.87 | E20: 2.69 | F20: 1.66 | G20: 1.08 | H20: 3.10 | I20: 1.82 | J20: 1.84 | K20: 74.41 | L20: 13.68 | M20: 13.19 | N20: 2.43 | O20: 2.83 | P20: 1.45 | Q20: 5.93 | R20: 3.28 | S20: 4.02 | T20: 2.22 | U20: 16.67 | V20: 0.99 | W20: 1.63 | X20: 2.78 | Y20: 5.14 | Z20: 0.66 | AA20: 1.47 | AB20: 0.12 | AC20: 2.52 | AD20: 0.59 | AE20: 0.04 | AF20: 0.23 | AG20: 0.83 | AH20: 2.13 | AI20: 2.42 | AJ20: 2.35 | AK20: 2.92 | AL20: 22.43
A21: 1.3收益和经常转移 | C21: 31.13 | D21: 1.49 | E21: 0.31 | F21: 0.06 | G21: 0.27 | H21: 0.31 | I21: 0.32 | J21: 0.07 | K21: 24.89 | L21: 5.30 | M21: 1.41 | N21: 0.37 | O21: 0.50 | P21: 0.16 | Q21: 2.25 | R21: 0.20 | S21: 1.28 | T21: 0.20 | U21: 6.37 | V21: 0.12 | W21: 0.11 | X21: 0.30 | Y21: 0.93 | Z21: 0.07 | AA21: 0.09 | AB21: 0.00 | AC21: 0.31 | AD21: 0.01 | AE21: 0.12 | AF21: 0.04 | AG21: 0.11 | AH21: 0.51 | AI21: 0.28 | AJ21: 0.34 | AK21: 3.63 | AL21: 12.98
A22: 2.资本与金融项目 | C22: 48.07 | D22: 1.20 | E22: 1.71 | F22: 0.78 | G22: 0.41 | H22: 1.36 | I22: 0.26 | J22: 0.11 | K22: 139.54 | L22: 13.04 | M22: 12.54 | N22: 2.54 | O22: 1.63 | P22: 0.77 | Q22: 2.38 | R22: 7.57 | S22: 1.80 | T22: 1.13 | U22: 10.39 | V22: 0.44 | W22: 2.75 | X22: 0.44 | Y22: 2.67 | Z22: 0.17 | AA22: 6.53 | AB22: 0.00 | AC22: 0.62 | AD22: 4.19 | AE22: 0.08 | AF22: 0.10 | AG22: 1.09 | AH22: 0.35 | AI22: 2.08 | AJ22: 1.27 | AK22: 1.64 | AL22: 21.05
A23: 其中: 直接投资 | C23: 18.35 | D23: 0.39 | E23: 0.88 | F23: 0.00 | G23: 0.14 | H23: 1.01 | I23: 0.03 | J23: 0.07 | K23: 17.43 | L23: 6.03 | M23: 4.81 | N23: 1.77 | O23: 1.24 | P23: 0.11 | Q23: 1.58 | R23: 6.50 | S23: 0.47 | T23: 0.36 | U23: 3.70 | V23: 0.15 | W23: 2.15 | X23: 0.20 | Y23: 0.95 | Z23: 0.00 | AA23: 5.73 | AB23: 0.00 | AC23: 0.01 | AD23: 3.97 | AE23: 0.01 | AF23: 0.01 | AG23: 1.00 | AH23: 0.15 | AI23: 1.15 | AJ23: 0.87 | AK23: 0.25 | AL23: 3.32
A24: 证券投资 | C24: 20.48 | D24: 0.15 | E24: 0.00 | F24: 0.00 | G24: 0.00 | H24: 0.00 | I24: 0.00 | J24: 0.00 | K24: 115.69 | L24: 1.27 | M24: 0.14 | N24: 0.15 | O24: 0.00 | P24: 0.00 | Q24: 0.25 | R24: 0.00 | S24: 0.13 | T24: 0.00 | U24: 2.53 | V24: 0.00 | W24: 0.35 | X24: 0.04 | Y24: 0.00 | Z24: 0.00 | AA24: 0.00 | AB24: 0.00 | AC24: 0.00 | AD24: 0.00 | AE24: 0.00 | AF24: 0.00 | AG24: 0.00 | AH24: 0.11 | AI24: 0.04 | AJ24: 0.30 | AK24: 0.30 | AL24: 16.62
A25: 三、差额 | C25: -270.99 | D25: -0.97 | E25: 12.67 | F25: -4.14 | G25: -0.99 | H25: -6.74 | I25: -5.32 | J25: -3.65 | K25: -236.26 | L25: 86.19 | M25: 180.03 | N25: 6.11 | O25: 20.05 | P25: 4.23 | Q25: 37.84 | R25: 6.36 | S25: -1.17 | T25: 3.05 | U25: 92.20 | V25: -7.18 | W25: -11.09 | X25: -17.57 | Y25: -2.19 | Z25: 0.93 | AA25: -7.08 | AB25: 0.03 | AC25: 10.12 | AD25: -7.99 | AE25: -0.05 | AF25: 0.43 | AG25: -0.52 | AH25: 4.96 | AI25: 41.88 | AJ25: -17.87 | AK25: -3.95 | AL25: -4.60
A26: (一）银行自身 | C26: -4.08 | D26: -0.00 | E26: -0.00 | F26: -0.00 | G26: 0.00 | H26: 0 | I26: -0.00 | J26: 0.00 | K26: -32.32 | L26: -0.07 | M26: -1.70 | N26: -0.54 | O26: -0.09 | P26: 0.00 | Q26: -0.16 | R26: 0.00 | S26: 0.00 | T26: 0.00 | U26: 0.03 | V26: 0.00 | W26: 0.00 | X26: 0.01 | Y26: 0.01 | Z26: -0.00 | AA26: -0.01 | AB26: 0 | AC26: 0.00 | AD26: -0.00 | AE26: 0 | AF26: 0 | AG26: 0.00 | AH26: 0.00 | AI26: -0.09 | AJ26: 0.01 | AK26: 0.00 | AL26: -3.11
A27: (二）银行代客 | C27: -266.91 | D27: -0.97 | E27: 12.67 | F27: -4.14 | G27: -0.99 | H27: -6.74 | I27: -5.32 | J27: -3.65 | K27: -203.95 | L27: 86.26 | M27: 181.73 | N27: 6.65 | O27: 20.14 | P27: 4.23 | Q27: 38.00 | R27: 6.36 | S27: -1.17 | T27: 3.05 | U27: 92.16 | V27: -7.18 | W27: -11.09 | X27: -17.58 | Y27: -2.19 | Z27: 0.93 | AA27: -7.07 | AB27: 0.03 | AC27: 10.12 | AD27: -7.99 | AE27: -0.05 | AF27: 0.43 | AG27: -0.52 | AH27: 4.96 | AI27: 41.97 | AJ27: -17.88 | AK27: -3.95 | AL27: -1.49
A28: 1.经常项目 | C28: -249.67 | D28: -1.61 | E28: 13.82 | F28: -3.44 | G28: -0.74 | H28: -5.70 | I28: -5.22 | J28: -3.77 | K28: -144.81 | L28: 93.02 | M28: 186.79 | N28: 7.52 | O28: 21.08 | P28: 4.20 | Q28: 35.52 | R28: 13.39 | S28: -0.10 | T28: 3.67 | U28: 98.03 | V28: -7.93 | W28: -9.13 | X28: -18.10 | Y28: -1.48 | Z28: -0.46 | AA28: -0.73 | AB28: -0.27 | AC28: 9.90 | AD28: -3.94 | AE28: 0.03 | AF28: 0.52 | AG28: 0.31 | AH28: 5.17 | AI28: 43.15 | AJ28: -17.43 | AK28: -4.40 | AL28: 13.25
A29: 1.1货物贸易 | C29: -207.17 | D29: 1.03 | E29: 15.44 | F29: -2.10 | G29: 0.11 | H29: -3.52 | I29: -3.79 | J29: -2.52 | K29: -91.95 | L29: 104.36 | M29: 191.66 | N29: 9.22 | O29: 21.66 | P29: 5.15 | Q29: 40.62 | R29: 14.83 | S29: 2.83 | T29: 4.89 | U29: 109.23 | V29: -7.47 | W29: -7.69 | X29: -16.00 | Y29: 0.46 | Z29: 0.03 | AA29: 0.53 | AB29: -0.17 | AC29: 11.56 | AD29: -3.55 | AE29: 0.16 | AF29: 0.73 | AG29: 0.82 | AH29: 5.89 | AI29: 44.01 | AJ29: -16.58 | AK29: -1.28 | AL29: 34.93
A30: 1.2服务贸易 | C30: -21.66 | D30: -1.97 | E30: -1.94 | F30: -1.42 | G30: -0.82 | H30: -2.60 | I30: -1.63 | J30: -1.57 | K30: -36.57 | L30: -8.08 | M30: -8.16 | N30: -1.67 | O30: -1.77 | P30: -1.23 | Q30: -4.53 | R30: -2.13 | S30: -2.61 | T30: -1.45 | U30: -7.80 | V30: -0.69 | W30: -1.42 | X30: -2.11 | Y30: -3.09 | Z30: -0.53 | AA30: -1.28 | AB30: -0.10 | AC30: -1.64 | AD30: -0.51 | AE30: -0.02 | AF30: -0.19 | AG30: -0.48 | AH30: -0.74 | AI30: -1.03 | AJ30: -0.87 | AK30: -0.51 | AL30: -11.21
A31: 1.3收益和经常转移 | C31: -20.84 | D31: -0.67 | E31: 0.32 | F31: 0.07 | G31: -0.04 | H31: 0.42 | I31: 0.21 | J31: 0.32 | K31: -16.28 | L31: -3.26 | M31: 3.29 | N31: -0.03 | O31: 1.20 | P31: 0.27 | Q31: -0.57 | R31: 0.70 | S31: -0.31 | T31: 0.23 | U31: -3.40 | V31: 0.22 | W31: -0.02 | X31: 0.01 | Y31: 1.14 | Z31: 0.05 | AA31: 0.02 | AB31: -0.00 | AC31: -0.01 | AD31: 0.12 | AE31: -0.11 | AF31: -0.02 | AG31: -0.02 | AH31: 0.01 | AI31: 0.17 | AJ31: 0.01 | AK31: -2.60 | AL31: -10.47
A32: 2.资本与金融项目 | C32: -17.24 | D32: 0.64 | E32: -1.15 | F32: -0.70 | G32: -0.25 | H32: -1.04 | I32: -0.10 | J32: 0.12 | K32: -59.14 | L32: -6.76 | M32: -5.07 | N32: -0.87 | O32: -0.94 | P32: 0.04 | Q32: 2.47 | R32: -7.04 | S32: -1.07 | T32: -0.63 | U32: -5.86 | V32: 0.75 | W32: -1.96 | X32: 0.53 | Y32: -0.71 | Z32: 1.39 | AA32: -6.35 | AB32: 0.30 | AC32: 0.22 | AD32: -4.05 | AE32: -0.08 | AF32: -0.09 | AG32: -0.83 | AH32: -0.21 | AI32: -1.18 | AJ32: -0.45 | AK32: 0.45 | AL32: -14.74
A33: 其中: 直接投资 | C33: -9.79 | D33: 1.43 | E33: -0.44 | F33: 0.06 | G33: -0.10 | H33: -0.91 | I33: 0.10 | J33: 0.14 | K33: -7.97 | L33: -0.65 | M33: -1.92 | N33: -1.41 | O33: -1.09 | P33: 0.29 | Q33: 2.57 | R33: -6.06 | S33: 0.13 | T33: -0.01 | U33: -1.17 | V33: -0.02 | W33: -1.60 | X33: 0.52 | Y33: 0.19 | Z33: 0.12 | AA33: -5.67 | AB33: 0.30 | AC33: 0.20 | AD33: -3.97 | AE33: -0.01 | AF33: 0.00 | AG33: -0.81 | AH33: -0.09 | AI33: -0.75 | AJ33: -0.10 | AK33: 1.42 | AL33: -1.95
A34: 证券投资 | C34: -5.33 | D34: -0.14 | E34: -0.00 | F34: 0 | G34: 0.11 | H34: 0.08 | I34: 0.00 | J34: -0.00 | K34: -45.75 | L34: -0.98 | M34: 3.39 | N34: 0.97 | O34: 0.02 | P34: 0.34 | Q34: 0.20 | R34: -0.00 | S34: -0.13 | T34: 0.14 | U34: -1.36 | V34: -0.00 | W34: -0.11 | X34: 0.06 | Y34: 0.38 | Z34: 1.24 | AA34: 0.00 | AB34: 0 | AC34: 0 | AD34: 0.04 | AE34: 0 | AF34: 0 | AG34: 0.00 | AH34: -0.11 | AI34: 0.22 | AJ34: -0.27 | AK34: 0.03 | AL34: -11.75
A35: 注： 1.分地区是指办理结售汇业务的银行所在地。其中，本表中辽宁不含大连，浙江不含宁波，福建不含厦门，山东不含青岛，广东不含深圳。

Sheet 2023年9月（按美元）
A2: 2023年9月银行结售汇数据（分地区）
A3: 单位：亿美元
A4: 项目 | C4: 北京 | D4: 天津 | E4: 河北 | F4: 山西 | G4: 内蒙古 | H4: 辽宁 | I4: 吉林 | J4: 黑龙江 | K4: 上海 | L4: 江苏 | M4: 浙江 | N4: 安徽 | O4: 福建 | P4: 江西 | Q4: 山东 | R4: 河南 | S4: 湖北 | T4: 湖南 | U4: 广东 | V4: 广西 | W4: 海南 | X4: 重庆 | Y4: 四川 | Z4: 贵州 | AA4: 云南 | AB4: 西藏 | AC4: 陕西 | AD4: 甘肃 | AE4: 青海 | AF4: 宁夏 | AG4: 新疆 | AH4: 大连 | AI4: 宁波 | AJ4: 厦门 | AK4: 青岛 | AL4: 深圳
A5: 一、结汇 | C5: 101.87 | D5: 27.57 | E5: 26.63 | F5: 5.08 | G5: 3.60 | H5: 8.23 | I5: 4.71 | J5: 3.78 | K5: 343.95 | L5: 220.29 | M5: 236.83 | N5: 28.19 | O5: 39.47 | P5: 15.47 | Q5: 84.47 | R5: 25.31 | S5: 20.35 | T5: 14.25 | U5: 177.97 | V5: 5.92 | W5: 3.17 | X5: 21.37 | Y5: 21.54 | Z5: 2.53 | AA5: 4.58 | AB5: 0.63 | AC5: 12.33 | AD5: 1.22 | AE5: 0.23 | AF5: 0.92 | AG5: 4.32 | AH5: 17.94 | AI5: 82.52 | AJ5: 36.90 | AK5: 36.76 | AL5: 127.68
A6: (一）银行自身 | C6: 20.43 | D6: 0.01 | E6: 0.00 | F6: 0.00 | G6: 0.00 | H6: 0.00 | I6: 0.00 | J6: 0.00 | K6: 77.46 | L6: 0.08 | M6: 0.81 | N6: 0.00 | O6: 0.08 | P6: 0.01 | Q6: 0.01 | R6: 0.00 | S6: 0.01 | T6: 0.00 | U6: 0.05 | V6: 0.00 | W6: 0.00 | X6: 0.01 | Y6: 0.01 | Z6: 0.00 | AA6: 0.00 | AB6: 0.00 | AC6: 0.00 | AD6: 0.00 | AE6: 0.00 | AF6: 0.00 | AG6: 0.00 | AH6: 0.00 | AI6: 9.46 | AJ6: 0.02 | AK6: 0.01 | AL6: 0.04
A7: (二）银行代客 | C7: 81.45 | D7: 27.55 | E7: 26.63 | F7: 5.08 | G7: 3.60 | H7: 8.23 | I7: 4.71 | J7: 3.78 | K7: 266.49 | L7: 220.21 | M7: 236.02 | N7: 28.19 | O7: 39.39 | P7: 15.47 | Q7: 84.47 | R7: 25.30 | S7: 20.35 | T7: 14.25 | U7: 177.92 | V7: 5.92 | W7: 3.17 | X7: 21.37 | Y7: 21.53 | Z7: 2.53 | AA7: 4.58 | AB7: 0.63 | AC7: 12.33 | AD7: 1.22 | AE7: 0.23 | AF7: 0.92 | AG7: 4.32 | AH7: 17.94 | AI7: 73.05 | AJ7: 36.88 | AK7: 36.74 | AL7: 127.63
A8: 1.经常项目 | C8: 64.53 | D8: 25.93 | E8: 26.29 | F8: 4.76 | G8: 3.08 | H8: 7.98 | I8: 3.45 | J8: 3.65 | K8: 160.93 | L8: 213.77 | M8: 231.42 | N8: 27.55 | O8: 38.82 | P8: 15.02 | Q8: 80.06 | R8: 24.60 | S8: 18.97 | T8: 13.97 | U8: 175.13 | V8: 5.80 | W8: 2.73 | X8: 20.96 | Y8: 20.47 | Z8: 2.43 | AA8: 4.11 | AB8: 0.63 | AC8: 11.97 | AD8: 1.03 | AE8: 0.23 | AF8: 0.91 | AG8: 4.24 | AH8: 17.53 | AI8: 72.07 | AJ8: 34.05 | AK8: 36.03 | AL8: 119.86
A9: 1.1货物贸易 | C9: 37.64 | D9: 23.19 | E9: 25.08 | F9: 4.48 | G9: 2.71 | H9: 6.88 | I9: 2.82 | J9: 3.15 | K9: 123.30 | L9: 206.95 | M9: 224.70 | N9: 26.60 | O9: 36.81 | P9: 14.61 | Q9: 77.40 | R9: 23.33 | S9: 17.11 | T9: 12.64 | U9: 165.02 | V9: 5.17 | W9: 2.37 | X9: 20.06 | Y9: 18.20 | Z9: 2.18 | AA9: 3.52 | AB9: 0.60 | AC9: 10.95 | AD9: 0.79 | AE9: 0.21 | AF9: 0.86 | AG9: 3.74 | AH9: 15.67 | AI9: 70.53 | AJ9: 32.64 | AK9: 33.49 | AL9: 109.70
A10: 1.2服务贸易 | C10: 19.98 | D10: 1.98 | E10: 0.77 | F10: 0.20 | G10: 0.18 | H10: 0.54 | I10: 0.22 | J10: 0.22 | K10: 31.17 | L10: 4.96 | M10: 4.44 | N10: 0.57 | O10: 0.80 | P10: 0.20 | Q10: 1.49 | R10: 0.61 | S10: 1.16 | T10: 1.01 | U10: 7.78 | V10: 0.41 | W10: 0.28 | X10: 0.59 | Y10: 1.83 | Z10: 0.10 | AA10: 0.19 | AB10: 0.02 | AC10: 0.78 | AD10: 0.14 | AE10: 0.01 | AF10: 0.03 | AG10: 0.44 | AH10: 1.47 | AI10: 1.40 | AJ10: 1.19 | AK10: 1.89 | AL10: 8.80
A11: 1.3收益和经常转移 | C11: 6.92 | D11: 0.76 | E11: 0.45 | F11: 0.09 | G11: 0.18 | H11: 0.56 | I11: 0.41 | J11: 0.29 | K11: 6.45 | L11: 1.86 | M11: 2.28 | N11: 0.39 | O11: 1.21 | P11: 0.20 | Q11: 1.17 | R11: 0.66 | S11: 0.71 | T11: 0.33 | U11: 2.33 | V11: 0.22 | W11: 0.07 | X11: 0.31 | Y11: 0.44 | Z11: 0.15 | AA11: 0.39 | AB11: 0.00 | AC11: 0.24 | AD11: 0.10 | AE11: 0.01 | AF11: 0.02 | AG11: 0.06 | AH11: 0.39 | AI11: 0.15 | AJ11: 0.23 | AK11: 0.66 | AL11: 1.37
A12: 2.资本与金融项目 | C12: 16.92 | D12: 1.63 | E12: 0.34 | F12: 0.31 | G12: 0.52 | H12: 0.25 | I12: 1.25 | J12: 0.12 | K12: 105.57 | L12: 6.44 | M12: 4.61 | N12: 0.64 | O12: 0.57 | P12: 0.45 | Q12: 4.40 | R12: 0.70 | S12: 1.38 | T12: 0.28 | U12: 2.79 | V12: 0.12 | W12: 0.44 | X12: 0.40 | Y12: 1.06 | Z12: 0.10 | AA12: 0.48 | AB12: 0.00 | AC12: 0.35 | AD12: 0.19 | AE12: 0.00 | AF12: 0.01 | AG12: 0.07 | AH12: 0.40 | AI12: 0.98 | AJ12: 2.82 | AK12: 0.71 | AL12: 7.78
A13: 其中: 直接投资 | C13: 9.60 | D13: 1.15 | E13: 0.29 | F13: 0.25 | G13: 0.37 | H13: 0.09 | I13: 1.22 | J13: 0.03 | K13: 7.31 | L13: 4.65 | M13: 2.12 | N13: 0.37 | O13: 0.15 | P13: 0.22 | Q13: 3.45 | R13: 0.30 | S13: 0.90 | T13: 0.18 | U13: 1.94 | V13: 0.08 | W13: 0.24 | X13: 0.10 | Y13: 0.41 | Z13: 0.05 | AA13: 0.12 | AB13: 0.00 | AC13: 0.19 | AD13: 0.00 | AE13: 0.00 | AF13: 0.01 | AG13: 0.02 | AH13: 0.29 | AI13: 0.64 | AJ13: 2.69 | AK13: 0.63 | AL13: 1.89
A14: 证券投资 | C14: 5.53 | D14: 0.21 | E14: 0.00 | F14: 0.00 | G14: 0.00 | H14: 0.01 | I14: 0.02 | J14: 0.00 | K14: 98.00 | L14: 0.82 | M14: 1.04 | N14: 0.01 | O14: 0.02 | P14: 0.03 | Q14: 0.29 | R14: 0.00 | S14: 0.00 | T14: 0.00 | U14: 0.70 | V14: 0.00 | W14: 0.19 | X14: 0.21 | Y14: 0.16 | Z14: 0.01 | AA14: 0.00 | AB14: 0.00 | AC14: 0.00 | AD14: 0.10 | AE14: 0.00 | AF14: 0.00 | AG14: 0.00 | AH14: 0.05 | AI14: 0.15 | AJ14: 0.03 | AK14: 0.06 | AL14: 5.72
A15: 二、售汇 | C15: 370.03 | D15: 34.45 | E15: 19.13 | F15: 6.81 | G15: 8.72 | H15: 18.37 | I15: 11.98 | J15: 5.70 | K15: 484.09 | L15: 124.39 | M15: 99.94 | N15: 34.94 | O15: 33.87 | P15: 13.21 | Q15: 53.89 | R15: 17.53 | S15: 22.03 | T15: 16.05 | U15: 110.28 | V15: 21.53 | W15: 13.60 | X15: 17.70 | Y15: 19.04 | Z15: 2.68 | AA15: 6.72 | AB15: 0.12 | AC15: 12.85 | AD15: 7.76 | AE15: 0.25 | AF15: 1.16 | AG15: 5.97 | AH15: 12.40 | AI15: 56.77 | AJ15: 60.04 | AK15: 49.92 | AL15: 128.76
A16: (一）银行自身 | C16: 5.47 | D16: 0.05 | E16: 0.00 | F16: 0.00 | G16: 0.00 | H16: 0.00 | I16: 0.00 | J16: 0.02 | K16: 29.47 | L16: 0.13 | M16: 0.73 | N16: 0.00 | O16: 0.03 | P16: 0.00 | Q16: 0.00 | R16: 0.00 | S16: 0.00 | T16: 0.00 | U16: 1.23 | V16: 0.00 | W16: 0.00 | X16: 0.00 | Y16: 0.00 | Z16: 0.00 | AA16: 0.00 | AB16: 0.00 | AC16: 0.00 | AD16: 0.00 | AE16: 0.00 | AF16: 0.00 | AG16: 0.17 | AH16: 0.00 | AI16: 11.19 | AJ16: 0.00 | AK16: 0.00 | AL16: 0.01
A17: (二）银行代客 | C17: 364.56 | D17: 34.40 | E17: 19.12 | F17: 6.81 | G17: 8.72 | H17: 18.37 | I17: 11.98 | J17: 5.68 | K17: 454.62 | L17: 124.27 | M17: 99.20 | N17: 34.94 | O17: 33.84 | P17: 13.21 | Q17: 53.89 | R17: 17.53 | S17: 22.03 | T17: 16.05 | U17: 109.05 | V17: 21.53 | W17: 13.60 | X17: 17.70 | Y17: 19.04 | Z17: 2.68 | AA17: 6.72 | AB17: 0.12 | AC17: 12.85 | AD17: 7.76 | AE17: 0.25 | AF17: 1.16 | AG17: 5.80 | AH17: 12.40 | AI17: 45.57 | AJ17: 60.04 | AK17: 49.92 | AL17: 128.75
A18: 1.经常项目 | C18: 320.07 | D18: 27.83 | E18: 18.09 | F18: 5.82 | G18: 7.52 | H18: 16.32 | I18: 11.77 | J18: 5.62 | K18: 315.76 | L18: 107.60 | M18: 91.30 | N18: 33.62 | O18: 32.14 | P18: 12.58 | Q18: 50.80 | R18: 15.81 | S18: 20.18 | T18: 14.01 | U18: 101.75 | V18: 21.07 | W18: 11.53 | X18: 16.40 | Y18: 16.73 | Z18: 2.37 | AA18: 5.52 | AB18: 0.12 | AC18: 7.05 | AD18: 4.93 | AE18: 0.22 | AF18: 0.71 | AG18: 4.95 | AH18: 11.62 | AI18: 41.67 | AJ18: 59.61 | AK18: 46.93 | AL18: 103.30
A19: 1.1货物贸易 | C19: 242.35 | D19: 20.54 | E19: 14.51 | F19: 3.90 | G19: 5.75 | H19: 13.32 | I19: 8.98 | J19: 3.53 | K19: 218.96 | L19: 87.31 | M19: 75.14 | N19: 30.41 | O19: 28.31 | P19: 10.46 | Q19: 43.62 | R19: 12.15 | S19: 15.35 | T19: 11.60 | U19: 77.70 | V19: 19.66 | W19: 8.90 | X19: 13.00 | Y19: 10.07 | Z19: 1.72 | AA19: 3.97 | AB19: 0.04 | AC19: 4.10 | AD19: 4.22 | AE19: 0.10 | AF19: 0.48 | AG19: 4.02 | AH19: 9.14 | AI19: 37.57 | AJ19: 56.62 | AK19: 43.17 | AL19: 74.99
A20: 1.2服务贸易 | C20: 45.84 | D20: 5.11 | E20: 2.78 | F20: 1.76 | G20: 1.16 | H20: 2.85 | I20: 2.38 | J20: 1.92 | K20: 69.52 | L20: 13.91 | M20: 13.63 | N20: 2.72 | O20: 2.85 | P20: 1.36 | Q20: 6.03 | R20: 3.15 | S20: 4.27 | T20: 2.19 | U20: 17.01 | V20: 1.03 | W20: 2.34 | X20: 2.59 | Y20: 6.10 | Z20: 0.59 | AA20: 1.32 | AB20: 0.08 | AC20: 2.55 | AD20: 0.52 | AE20: 0.18 | AF20: 0.23 | AG20: 0.81 | AH20: 2.16 | AI20: 2.78 | AJ20: 2.46 | AK20: 2.96 | AL20: 20.73
A21: 1.3收益和经常转移 | C21: 31.87 | D21: 2.18 | E21: 0.81 | F21: 0.16 | G21: 0.61 | H21: 0.16 | I21: 0.42 | J21: 0.16 | K21: 27.28 | L21: 6.38 | M21: 2.53 | N21: 0.49 | O21: 0.97 | P21: 0.76 | Q21: 1.15 | R21: 0.51 | S21: 0.56 | T21: 0.21 | U21: 7.04 | V21: 0.37 | W21: 0.29 | X21: 0.81 | Y21: 0.55 | Z21: 0.06 | AA21: 0.24 | AB21: 0.00 | AC21: 0.41 | AD21: 0.18 | AE21: -0.06 | AF21: 0.01 | AG21: 0.11 | AH21: 0.31 | AI21: 1.31 | AJ21: 0.53 | AK21: 0.80 | AL21: 7.58
A22: 2.资本与金融项目 | C22: 44.49 | D22: 6.57 | E22: 1.03 | F22: 0.99 | G22: 1.20 | H22: 2.04 | I22: 0.21 | J22: 0.06 | K22: 138.86 | L22: 16.67 | M22: 7.91 | N22: 1.32 | O22: 1.70 | P22: 0.63 | Q22: 3.09 | R22: 1.72 | S22: 1.85 | T22: 2.04 | U22: 7.30 | V22: 0.46 | W22: 2.07 | X22: 1.30 | Y22: 2.32 | Z22: 0.31 | AA22: 1.20 | AB22: 0.00 | AC22: 5.79 | AD22: 2.83 | AE22: 0.03 | AF22: 0.45 | AG22: 0.85 | AH22: 0.78 | AI22: 3.91 | AJ22: 0.44 | AK22: 2.99 | AL22: 25.45
A23: 其中: 直接投资 | C23: 13.35 | D23: 3.14 | E23: 0.91 | F23: 0.44 | G23: 0.64 | H23: 1.82 | I23: 0.07 | J23: 0.04 | K23: 18.41 | L23: 9.64 | M23: 4.15 | N23: 0.49 | O23: 0.61 | P23: 0.04 | Q23: 2.05 | R23: 0.65 | S23: 0.43 | T23: 0.19 | U23: 2.62 | V23: 0.17 | W23: 0.91 | X23: 0.78 | Y23: 1.26 | Z23: 0.00 | AA23: 1.50 | AB23: 0.00 | AC23: 0.06 | AD23: 2.50 | AE23: 0.01 | AF23: 0.00 | AG23: 0.52 | AH23: 0.38 | AI23: 2.53 | AJ23: 0.12 | AK23: 1.00 | AL23: 2.37
A24: 证券投资 | C24: 19.83 | D24: 1.51 | E24: 0.00 | F24: 0.00 | G24: 0.21 | H24: 0.00 | I24: 0.00 | J24: 0.00 | K24: 117.53 | L24: 1.43 | M24: 1.97 | N24: 0.38 | O24: 0.00 | P24: 0.01 | Q24: 0.10 | R24: 0.40 | S24: 0.88 | T24: 0.00 | U24: 0.90 | V24: 0.00 | W24: 1.09 | X24: 0.04 | Y24: 0.03 | Z24: 0.00 | AA24: 0.00 | AB24: 0.00 | AC24: 0.00 | AD24: 0.00 | AE24: 0.00 | AF24: 0.00 | AG24: 0.00 | AH24: 0.03 | AI24: 0.00 | AJ24: 0.16 | AK24: 0.41 | AL24: 19.78
A25: 三、差额 | C25: -268.16 | D25: -6.89 | E25: 7.51 | F25: -1.73 | G25: -5.13 | H25: -10.14 | I25: -7.28 | J25: -1.93 | K25: -140.14 | L25: 95.90 | M25: 136.89 | N25: -6.75 | O25: 5.60 | P25: 2.26 | Q25: 30.58 | R25: 7.77 | S25: -1.68 | T25: -1.80 | U25: 67.70 | V25: -15.61 | W25: -10.43 | X25: 3.67 | Y25: 2.50 | Z25: -0.15 | AA25: -2.14 | AB25: 0.51 | AC25: -0.51 | AD25: -6.54 | AE25: -0.02 | AF25: -0.24 | AG25: -1.66 | AH25: 5.53 | AI25: 25.75 | AJ25: -23.14 | AK25: -13.16 | AL25: -1.09
A26: (一）银行自身 | C26: 14.96 | D26: -0.04 | E26: 0.00 | F26: 0.00 | G26: 0.00 | H26: 0.00 | I26: 0.00 | J26: -0.02 | K26: 47.99 | L26: -0.05 | M26: 0.07 | N26: 0.00 | O26: 0.05 | P26: 0.01 | Q26: 0.00 | R26: 0.00 | S26: 0.01 | T26: 0.00 | U26: -1.18 | V26: 0.00 | W26: 0.00 | X26: 0.01 | Y26: 0.01 | Z26: 0.00 | AA26: 0.00 | AB26: 0 | AC26: 0.00 | AD26: 0.00 | AE26: 0 | AF26: 0 | AG26: -0.17 | AH26: 0.00 | AI26: -1.73 | AJ26: 0.02 | AK26: 0.01 | AL26: 0.03
A27: (二）银行代客 | C27: -283.11 | D27: -6.85 | E27: 7.50 | F27: -1.73 | G27: -5.13 | H27: -10.14 | I27: -7.28 | J27: -1.90 | K27: -188.13 | L27: 95.94 | M27: 136.82 | N27: -6.75 | O27: 5.55 | P27: 2.25 | Q27: 30.58 | R27: 7.77 | S27: -1.68 | T27: -1.80 | U27: 68.87 | V27: -15.61 | W27: -10.43 | X27: 3.67 | Y27: 2.49 | Z27: -0.15 | AA27: -2.14 | AB27: 0.51 | AC27: -0.52 | AD27: -6.54 | AE27: -0.02 | AF27: -0.24 | AG27: -1.48 | AH27: 5.53 | AI27: 27.48 | AJ27: -23.17 | AK27: -13.18 | AL27: -1.12
A28: 1.经常项目 | C28: -255.54 | D28: -1.90 | E28: 8.20 | F28: -1.06 | G28: -4.44 | H28: -8.35 | I28: -8.32 | J28: -1.96 | K28: -154.84 | L28: 106.18 | M28: 140.12 | N28: -6.07 | O28: 6.68 | P28: 2.44 | Q28: 29.26 | R28: 8.79 | S28: -1.21 | T28: -0.04 | U28: 73.38 | V28: -15.27 | W28: -8.81 | X28: 4.57 | Y28: 3.74 | Z28: 0.06 | AA28: -1.42 | AB28: 0.51 | AC28: 4.92 | AD28: -3.90 | AE28: 0.01 | AF28: 0.20 | AG28: -0.70 | AH28: 5.91 | AI28: 30.40 | AJ28: -25.55 | AK28: -10.89 | AL28: 16.56
A29: 1.1货物贸易 | C29: -204.72 | D29: 2.65 | E29: 10.57 | F29: 0.57 | G29: -3.04 | H29: -6.45 | I29: -6.16 | J29: -0.39 | K29: -95.66 | L29: 119.64 | M29: 149.55 | N29: -3.82 | O29: 8.50 | P29: 4.16 | Q29: 33.78 | R29: 11.18 | S29: 1.76 | T29: 1.03 | U29: 87.32 | V29: -14.49 | W29: -6.52 | X29: 7.07 | Y29: 8.13 | Z29: 0.46 | AA29: -0.45 | AB29: 0.57 | AC29: 6.85 | AD29: -3.43 | AE29: 0.10 | AF29: 0.39 | AG29: -0.29 | AH29: 6.53 | AI29: 32.96 | AJ29: -23.98 | AK29: -9.69 | AL29: 34.71
A30: 1.2服务贸易 | C30: -25.86 | D30: -3.14 | E30: -2.01 | F30: -1.56 | G30: -0.98 | H30: -2.31 | I30: -2.15 | J30: -1.70 | K30: -38.35 | L30: -8.94 | M30: -9.18 | N30: -2.15 | O30: -2.05 | P30: -1.16 | Q30: -4.55 | R30: -2.54 | S30: -3.11 | T30: -1.18 | U30: -9.23 | V30: -0.62 | W30: -2.06 | X30: -2.01 | Y30: -4.28 | Z30: -0.50 | AA30: -1.13 | AB30: -0.06 | AC30: -1.76 | AD30: -0.39 | AE30: -0.17 | AF30: -0.19 | AG30: -0.37 | AH30: -0.70 | AI30: -1.39 | AJ30: -1.27 | AK30: -1.07 | AL30: -11.93
A31: 1.3收益和经常转移 | C31: -24.96 | D31: -1.42 | E31: -0.36 | F31: -0.07 | G31: -0.42 | H31: 0.40 | I31: -0.00 | J31: 0.13 | K31: -20.83 | L31: -4.52 | M31: -0.25 | N31: -0.10 | O31: 0.24 | P31: -0.55 | Q31: 0.03 | R31: 0.15 | S31: 0.14 | T31: 0.11 | U31: -4.71 | V31: -0.15 | W31: -0.22 | X31: -0.49 | Y31: -0.11 | Z31: 0.09 | AA31: 0.16 | AB31: 0.00 | AC31: -0.17 | AD31: -0.08 | AE31: 0.07 | AF31: 0.01 | AG31: -0.05 | AH31: 0.08 | AI31: -1.17 | AJ31: -0.30 | AK31: -0.14 | AL31: -6.21
A32: 2.资本与金融项目 | C32: -27.57 | D32: -4.95 | E32: -0.69 | F32: -0.67 | G32: -0.69 | H32: -1.79 | I32: 1.04 | J32: 0.06 | K32: -33.29 | L32: -10.23 | M32: -3.30 | N32: -0.68 | O32: -1.14 | P32: -0.19 | Q32: 1.32 | R32: -1.02 | S32: -0.47 | T32: -1.76 | U32: -4.51 | V32: -0.34 | W32: -1.63 | X32: -0.90 | Y32: -1.25 | Z32: -0.21 | AA32: -0.72 | AB32: -0.00 | AC32: -5.44 | AD32: -2.64 | AE32: -0.03 | AF32: -0.44 | AG32: -0.78 | AH32: -0.38 | AI32: -2.92 | AJ32: 2.39 | AK32: -2.28 | AL32: -17.68
A33: 其中: 直接投资 | C33: -3.76 | D33: -1.99 | E33: -0.62 | F33: -0.19 | G33: -0.27 | H33: -1.73 | I33: 1.15 | J33: -0.01 | K33: -11.09 | L33: -5.00 | M33: -2.03 | N33: -0.11 | O33: -0.46 | P33: 0.17 | Q33: 1.40 | R33: -0.35 | S33: 0.48 | T33: -0.02 | U33: -0.68 | V33: -0.10 | W33: -0.67 | X33: -0.68 | Y33: -0.85 | Z33: 0.05 | AA33: -1.38 | AB33: 0.00 | AC33: 0.12 | AD33: -2.50 | AE33: -0.01 | AF33: 0.01 | AG33: -0.50 | AH33: -0.09 | AI33: -1.90 | AJ33: 2.57 | AK33: -0.37 | AL33: -0.48
A34: 证券投资 | C34: -14.30 | D34: -1.30 | E34: -0.00 | F34: 0 | G34: -0.21 | H34: 0.01 | I34: 0.02 | J34: -0.00 | K34: -19.54 | L34: -0.61 | M34: -0.93 | N34: -0.37 | O34: 0.02 | P34: 0.02 | Q34: 0.19 | R34: -0.40 | S34: -0.88 | T34: -0.00 | U34: -0.20 | V34: -0.00 | W34: -0.90 | X34: 0.17 | Y34: 0.13 | Z34: 0.01 | AA34: 0 | AB34: 0 | AC34: -0.00 | AD34: 0.10 | AE34: 0.00 | AF34: 0 | AG34: 0.00 | AH34: 0.03 | AI34: 0.14 | AJ34: -0.13 | AK34: -0.35 | AL34: -14.06
A35: 注： 1.分地区是指办理结售汇业务的银行所在地。其中，本表中辽宁不含大连，浙江不含宁波，福建不含厦门，山东不含青岛，广东不含深圳。

Sheet 2023年10月（按美元）
A2: 2023年10月银行结售汇数据（分地区）
A3: 单位：亿美元
A4: 项目 | C4: 北京 | D4: 天津 | E4: 河北 | F4: 山西 | G4: 内蒙古 | H4: 辽宁 | I4: 吉林 | J4: 黑龙江 | K4: 上海 | L4: 江苏 | M4: 浙江 | N4: 安徽 | O4: 福建 | P4: 江西 | Q4: 山东 | R4: 河南 | S4: 湖北 | T4: 湖南 | U4: 广东 | V4: 广西 | W4: 海南 | X4: 重庆 | Y4: 四川 | Z4: 贵州 | AA4: 云南 | AB4: 西藏 | AC4: 陕西 | AD4: 甘肃 | AE4: 青海 | AF4: 宁夏 | AG4: 新疆 | AH4: 大连 | AI4: 宁波 | AJ4: 厦门 | AK4: 青岛 | AL4: 深圳
A5: 一、结汇 | C5: 103.60 | D5: 23.98 | E5: 24.05 | F5: 3.38 | G5: 3.39 | H5: 7.99 | I5: 3.80 | J5: 3.10 | K5: 243.43 | L5: 211.39 | M5: 229.60 | N5: 25.99 | O5: 41.30 | P5: 14.90 | Q5: 77.93 | R5: 19.48 | S5: 17.74 | T5: 14.32 | U5: 177.29 | V5: 5.04 | W5: 4.39 | X5: 14.75 | Y5: 20.68 | Z5: 2.05 | AA5: 4.82 | AB5: 0.04 | AC5: 12.56 | AD5: 1.15 | AE5: 0.13 | AF5: 0.95 | AG5: 4.21 | AH5: 17.53 | AI5: 77.49 | AJ5: 33.73 | AK5: 32.97 | AL5: 125.04
A6: (一）银行自身 | C6: 24.88 | D6: 0.26 | E6: 0.00 | F6: 0.00 | G6: 0.00 | H6: 0.00 | I6: 0.00 | J6: 0.03 | K6: 5.29 | L6: 0.05 | M6: 0.01 | N6: 0.01 | O6: 0.14 | P6: 0.00 | Q6: 0.01 | R6: 0.00 | S6: 0.00 | T6: 0.00 | U6: 0.05 | V6: 0.00 | W6: 0.00 | X6: 0.01 | Y6: 0.01 | Z6: 0.00 | AA6: 0.00 | AB6: 0.00 | AC6: 0.00 | AD6: 0.00 | AE6: 0.00 | AF6: 0.00 | AG6: 0.00 | AH6: 0.00 | AI6: 7.88 | AJ6: 0.01 | AK6: 0.01 | AL6: 0.22
A7: (二）银行代客 | C7: 78.72 | D7: 23.72 | E7: 24.05 | F7: 3.38 | G7: 3.39 | H7: 7.99 | I7: 3.80 | J7: 3.07 | K7: 238.14 | L7: 211.34 | M7: 229.59 | N7: 25.98 | O7: 41.16 | P7: 14.89 | Q7: 77.92 | R7: 19.48 | S7: 17.74 | T7: 14.32 | U7: 177.24 | V7: 5.04 | W7: 4.39 | X7: 14.74 | Y7: 20.67 | Z7: 2.05 | AA7: 4.82 | AB7: 0.04 | AC7: 12.56 | AD7: 1.15 | AE7: 0.13 | AF7: 0.95 | AG7: 4.21 | AH7: 17.52 | AI7: 69.61 | AJ7: 33.71 | AK7: 32.96 | AL7: 124.82
A8: 1.经常项目 | C8: 66.35 | D8: 22.96 | E8: 23.83 | F8: 3.37 | G8: 3.36 | H8: 7.62 | I8: 3.52 | J8: 2.96 | K8: 162.88 | L8: 206.55 | M8: 224.74 | N8: 24.86 | O8: 41.01 | P8: 13.94 | Q8: 76.08 | R8: 19.11 | S8: 17.18 | T8: 13.82 | U8: 172.00 | V8: 4.77 | W8: 3.44 | X8: 14.43 | Y8: 19.12 | Z8: 2.01 | AA8: 4.77 | AB8: 0.04 | AC8: 12.20 | AD8: 0.93 | AE8: 0.13 | AF8: 0.93 | AG8: 4.02 | AH8: 17.34 | AI8: 68.68 | AJ8: 32.79 | AK8: 32.17 | AL8: 109.86
A9: 1.1货物贸易 | C9: 43.77 | D9: 20.14 | E9: 22.68 | F9: 3.08 | G9: 3.04 | H9: 6.72 | I9: 3.00 | J9: 2.47 | K9: 124.32 | L9: 200.55 | M9: 216.84 | N9: 24.18 | O9: 39.09 | P9: 13.55 | Q9: 73.76 | R9: 18.07 | S9: 15.89 | T9: 10.99 | U9: 161.65 | V9: 4.25 | W9: 3.05 | X9: 13.57 | Y9: 16.70 | Z9: 1.90 | AA9: 4.49 | AB9: 0.02 | AC9: 11.31 | AD9: 0.74 | AE9: 0.11 | AF9: 0.88 | AG9: 3.66 | AH9: 15.60 | AI9: 66.96 | AJ9: 31.43 | AK9: 29.95 | AL9: 99.69
A10: 1.2服务贸易 | C10: 18.67 | D10: 1.95 | E10: 0.69 | F10: 0.18 | G10: 0.16 | H10: 0.37 | I10: 0.17 | J10: 0.22 | K10: 31.03 | L10: 4.47 | M10: 3.15 | N10: 0.44 | O10: 0.71 | P10: 0.21 | Q10: 1.23 | R10: 0.43 | S10: 0.83 | T10: 0.80 | U10: 8.15 | V10: 0.28 | W10: 0.31 | X10: 0.69 | Y10: 1.93 | Z10: 0.07 | AA10: 0.20 | AB10: 0.01 | AC10: 0.65 | AD10: 0.05 | AE10: 0.01 | AF10: 0.03 | AG10: 0.30 | AH10: 1.33 | AI10: 1.43 | AJ10: 1.14 | AK10: 1.80 | AL10: 8.49
A11: 1.3收益和经常转移 | C11: 3.91 | D11: 0.87 | E11: 0.47 | F11: 0.11 | G11: 0.16 | H11: 0.53 | I11: 0.35 | J11: 0.28 | K11: 7.52 | L11: 1.54 | M11: 4.74 | N11: 0.24 | O11: 1.21 | P11: 0.18 | Q11: 1.09 | R11: 0.61 | S11: 0.46 | T11: 2.03 | U11: 2.21 | V11: 0.23 | W11: 0.08 | X11: 0.17 | Y11: 0.48 | Z11: 0.03 | AA11: 0.08 | AB11: 0.01 | AC11: 0.23 | AD11: 0.14 | AE11: 0.01 | AF11: 0.02 | AG11: 0.06 | AH11: 0.41 | AI11: 0.30 | AJ11: 0.22 | AK11: 0.42 | AL11: 1.68
A12: 2.资本与金融项目 | C12: 12.37 | D12: 0.76 | E12: 0.22 | F12: 0.01 | G12: 0.03 | H12: 0.38 | I12: 0.28 | J12: 0.11 | K12: 75.26 | L12: 4.78 | M12: 4.86 | N12: 1.13 | O12: 0.15 | P12: 0.95 | Q12: 1.84 | R12: 0.37 | S12: 0.56 | T12: 0.50 | U12: 5.23 | V12: 0.27 | W12: 0.95 | X12: 0.31 | Y12: 1.56 | Z12: 0.04 | AA12: 0.05 | AB12: 0.00 | AC12: 0.36 | AD12: 0.22 | AE12: 0.00 | AF12: 0.02 | AG12: 0.19 | AH12: 0.19 | AI12: 0.93 | AJ12: 0.92 | AK12: 0.79 | AL12: 14.96
A13: 其中: 直接投资 | C13: 4.86 | D13: 0.67 | E13: 0.16 | F13: 0.00 | G13: 0.00 | H13: 0.19 | I13: 0.17 | J13: 0.08 | K13: 6.26 | L13: 3.35 | M13: 3.17 | N13: 0.32 | O13: 0.11 | P13: 0.41 | Q13: 1.68 | R13: 0.10 | S13: 0.45 | T13: 0.15 | U13: 2.58 | V13: 0.22 | W13: 0.64 | X13: 0.22 | Y13: 1.15 | Z13: 0.01 | AA13: 0.04 | AB13: 0.00 | AC13: 0.07 | AD13: 0.00 | AE13: 0.00 | AF13: 0.01 | AG13: 0.13 | AH13: 0.15 | AI13: 0.67 | AJ13: 0.85 | AK13: 0.79 | AL13: 1.70
A14: 证券投资 | C14: 5.92 | D14: 0.07 | E14: 0.00 | F14: 0.00 | G14: 0.00 | H14: 0.05 | I14: 0.00 | J14: 0.00 | K14: 68.78 | L14: 1.02 | M14: 1.18 | N14: 0.78 | O14: 0.01 | P14: 0.00 | Q14: 0.10 | R14: 0.00 | S14: 0.00 | T14: 0.30 | U14: 2.42 | V14: 0.00 | W14: 0.29 | X14: 0.04 | Y14: 0.01 | Z14: 0.00 | AA14: 0.00 | AB14: 0.00 | AC14: 0.00 | AD14: 0.15 | AE14: 0.00 | AF14: 0.00 | AG14: 0.02 | AH14: 0.00 | AI14: 0.24 | AJ14: 0.02 | AK14: 0.00 | AL14: 13.23
A15: 二、售汇 | C15: 310.18 | D15: 26.14 | E15: 19.52 | F15: 5.95 | G15: 9.77 | H15: 14.06 | I15: 9.67 | J15: 4.07 | K15: 472.23 | L15: 109.15 | M15: 83.36 | N15: 32.59 | O15: 32.04 | P15: 15.32 | Q15: 39.25 | R15: 14.03 | S15: 22.07 | T15: 15.27 | U15: 91.36 | V15: 24.56 | W15: 13.99 | X15: 15.76 | Y15: 18.39 | Z15: 2.99 | AA15: 7.45 | AB15: 0.22 | AC15: 8.00 | AD15: 8.86 | AE15: 0.31 | AF15: 0.63 | AG15: 6.39 | AH15: 7.60 | AI15: 53.44 | AJ15: 49.19 | AK15: 34.24 | AL15: 101.56
A16: (一）银行自身 | C16: 3.97 | D16: 0.05 | E16: 0.00 | F16: 0.00 | G16: 0.00 | H16: 0.00 | I16: 0.00 | J16: 0.02 | K16: 21.24 | L16: 0.02 | M16: 0.01 | N16: 0.00 | O16: 0.03 | P16: 0.00 | Q16: 0.01 | R16: 0.03 | S16: 0.00 | T16: 0.00 | U16: 0.02 | V16: 0.00 | W16: 0.12 | X16: 0.00 | Y16: 0.00 | Z16: 0.00 | AA16: 0.00 | AB16: 0.00 | AC16: 0.00 | AD16: 0.00 | AE16: 0.00 | AF16: 0.00 | AG16: 0.10 | AH16: 0.00 | AI16: 8.11 | AJ16: 0.00 | AK16: 0.00 | AL16: 0.05
A17: (二）银行代客 | C17: 306.21 | D17: 26.09 | E17: 19.52 | F17: 5.95 | G17: 9.76 | H17: 14.06 | I17: 9.67 | J17: 4.05 | K17: 450.99 | L17: 109.12 | M17: 83.34 | N17: 32.59 | O17: 32.00 | P17: 15.32 | Q17: 39.23 | R17: 14.01 | S17: 22.07 | T17: 15.27 | U17: 91.34 | V17: 24.56 | W17: 13.87 | X17: 15.76 | Y17: 18.39 | Z17: 2.99 | AA17: 7.45 | AB17: 0.22 | AC17: 8.00 | AD17: 8.86 | AE17: 0.31 | AF17: 0.63 | AG17: 6.30 | AH17: 7.60 | AI17: 45.33 | AJ17: 49.18 | AK17: 34.24 | AL17: 101.51
A18: 1.经常项目 | C18: 254.57 | D18: 22.48 | E18: 17.86 | F18: 5.53 | G18: 8.20 | H18: 13.11 | I18: 9.30 | J18: 3.99 | K18: 325.12 | L18: 101.64 | M18: 77.02 | N18: 31.53 | O18: 31.21 | P18: 12.71 | Q18: 37.23 | R18: 12.24 | S18: 21.47 | T18: 14.57 | U18: 86.70 | V18: 21.59 | W18: 11.67 | X18: 15.50 | Y18: 14.31 | Z18: 1.81 | AA18: 7.13 | AB18: 0.22 | AC18: 7.71 | AD18: 5.01 | AE18: 0.19 | AF18: 0.59 | AG18: 3.39 | AH18: 7.18 | AI18: 42.62 | AJ18: 47.71 | AK18: 33.58 | AL18: 94.15
A19: 1.1货物贸易 | C19: 189.39 | D19: 18.29 | E19: 15.25 | F19: 3.97 | G19: 7.16 | H19: 10.14 | I19: 7.01 | J19: 2.26 | K19: 243.44 | L19: 85.51 | M19: 64.75 | N19: 28.51 | O19: 27.46 | P19: 10.96 | Q19: 31.03 | R19: 9.33 | S19: 17.45 | T19: 12.03 | U19: 65.33 | V19: 20.09 | W19: 9.63 | X19: 12.41 | Y19: 8.81 | Z19: 1.26 | AA19: 5.74 | AB19: 0.21 | AC19: 5.37 | AD19: 4.47 | AE19: 0.05 | AF19: 0.36 | AG19: 2.60 | AH19: 5.14 | AI19: 40.15 | AJ19: 45.04 | AK19: 30.15 | AL19: 68.06
A20: 1.2服务贸易 | C20: 43.54 | D20: 3.80 | E20: 2.34 | F20: 1.50 | G20: 0.91 | H20: 2.84 | I20: 1.93 | J20: 1.65 | K20: 67.57 | L20: 12.34 | M20: 10.72 | N20: 2.34 | O20: 2.95 | P20: 1.42 | Q20: 5.14 | R20: 2.74 | S20: 3.55 | T20: 1.89 | U20: 15.56 | V20: 0.83 | W20: 1.92 | X20: 2.22 | Y20: 4.43 | Z20: 0.49 | AA20: 1.12 | AB20: 0.01 | AC20: 2.14 | AD20: 0.48 | AE20: 0.08 | AF20: 0.21 | AG20: 0.68 | AH20: 1.89 | AI20: 2.26 | AJ20: 2.15 | AK20: 2.82 | AL20: 21.41
A21: 1.3收益和经常转移 | C21: 21.65 | D21: 0.39 | E21: 0.27 | F21: 0.06 | G21: 0.12 | H21: 0.13 | I21: 0.36 | J21: 0.08 | K21: 14.11 | L21: 3.79 | M21: 1.56 | N21: 0.68 | O21: 0.81 | P21: 0.33 | Q21: 1.06 | R21: 0.17 | S21: 0.47 | T21: 0.66 | U21: 5.81 | V21: 0.66 | W21: 0.12 | X21: 0.87 | Y21: 1.06 | Z21: 0.06 | AA21: 0.28 | AB21: 0.00 | AC21: 0.20 | AD21: 0.06 | AE21: 0.05 | AF21: 0.02 | AG21: 0.10 | AH21: 0.15 | AI21: 0.21 | AJ21: 0.53 | AK21: 0.62 | AL21: 4.69
A22: 2.资本与金融项目 | C22: 51.63 | D22: 3.62 | E22: 1.66 | F22: 0.43 | G22: 1.57 | H22: 0.95 | I22: 0.37 | J22: 0.06 | K22: 125.87 | L22: 7.48 | M22: 6.32 | N22: 1.06 | O22: 0.79 | P22: 2.61 | Q22: 2.00 | R22: 1.76 | S22: 0.61 | T22: 0.69 | U22: 4.63 | V22: 2.97 | W22: 2.20 | X22: 0.25 | Y22: 4.08 | Z22: 1.18 | AA22: 0.32 | AB22: 0.01 | AC22: 0.29 | AD22: 3.85 | AE22: 0.13 | AF22: 0.03 | AG22: 2.91 | AH22: 0.42 | AI22: 2.71 | AJ22: 1.47 | AK22: 0.66 | AL22: 7.36
A23: 其中: 直接投资 | C23: 10.87 | D23: 0.76 | E23: 0.19 | F23: 0.18 | G23: 1.15 | H23: 0.83 | I23: 0.14 | J23: 0.01 | K23: 11.35 | L23: 3.43 | M23: 2.14 | N23: 0.73 | O23: 0.44 | P23: 0.03 | Q23: 0.89 | R23: 0.86 | S23: 0.27 | T23: 0.16 | U23: 2.96 | V23: 2.62 | W23: 1.62 | X23: 0.12 | Y23: 0.95 | Z23: 0.50 | AA23: 0.04 | AB23: 0.00 | AC23: 0.08 | AD23: 0.02 | AE23: 0.07 | AF23: 0.00 | AG23: 0.01 | AH23: 0.32 | AI23: 1.54 | AJ23: 0.61 | AK23: 0.32 | AL23: 1.58
A24: 证券投资 | C24: 32.79 | D24: 0.06 | E24: 0.00 | F24: 0.00 | G24: 0.12 | H24: 0.00 | I24: 0.00 | J24: 0.00 | K24: 111.97 | L24: 0.53 | M24: 3.58 | N24: 0.11 | O24: 0.04 | P24: 1.90 | Q24: 0.37 | R24: 0.00 | S24: 0.00 | T24: 0.40 | U24: 0.95 | V24: 0.00 | W24: 0.52 | X24: 0.00 | Y24: 1.89 | Z24: 0.00 | AA24: 0.00 | AB24: 0.00 | AC24: 0.00 | AD24: 3.04 | AE24: 0.00 | AF24: 0.00 | AG24: 2.17 | AH24: 0.03 | AI24: 0.03 | AJ24: 0.79 | AK24: 0.03 | AL24: 5.14
A25: 三、差额 | C25: -206.58 | D25: -2.16 | E25: 4.53 | F25: -2.57 | G25: -6.37 | H25: -6.06 | I25: -5.88 | J25: -0.97 | K25: -228.81 | L25: 102.24 | M25: 146.25 | N25: -6.60 | O25: 9.26 | P25: -0.42 | Q25: 38.68 | R25: 5.44 | S25: -4.33 | T25: -0.94 | U25: 85.93 | V25: -19.52 | W25: -9.60 | X25: -1.01 | Y25: 2.30 | Z25: -0.94 | AA25: -2.63 | AB25: -0.18 | AC25: 4.56 | AD25: -7.71 | AE25: -0.18 | AF25: 0.32 | AG25: -2.19 | AH25: 9.92 | AI25: 24.05 | AJ25: -15.46 | AK25: -1.27 | AL25: 23.48
A26: (一）银行自身 | C26: 20.91 | D26: 0.22 | E26: -0.00 | F26: 0.00 | G26: -0.00 | H26: 0.00 | I26: 0.00 | J26: 0.01 | K26: -15.96 | L26: 0.02 | M26: -0.00 | N26: 0.01 | O26: 0.10 | P26: 0.00 | Q26: -0.01 | R26: -0.02 | S26: 0.00 | T26: 0.00 | U26: 0.03 | V26: 0.00 | W26: -0.12 | X26: 0.01 | Y26: 0.01 | Z26: 0 | AA26: 0.00 | AB26: 0 | AC26: 0.00 | AD26: 0.00 | AE26: -0.00 | AF26: 0 | AG26: -0.10 | AH26: 0.00 | AI26: -0.23 | AJ26: 0.01 | AK26: 0.01 | AL26: 0.17
A27: (二）银行代客 | C27: -227.49 | D27: -2.37 | E27: 4.53 | F27: -2.57 | G27: -6.37 | H27: -6.06 | I27: -5.88 | J27: -0.98 | K27: -212.85 | L27: 102.22 | M27: 146.25 | N27: -6.61 | O27: 9.16 | P27: -0.42 | Q27: 38.69 | R27: 5.47 | S27: -4.33 | T27: -0.94 | U27: 85.90 | V27: -19.52 | W27: -9.49 | X27: -1.02 | Y27: 2.29 | Z27: -0.94 | AA27: -2.63 | AB27: -0.18 | AC27: 4.56 | AD27: -7.71 | AE27: -0.18 | AF27: 0.32 | AG27: -2.09 | AH27: 9.92 | AI27: 24.28 | AJ27: -15.47 | AK27: -1.28 | AL27: 23.31
A28: 1.经常项目 | C28: -188.23 | D28: 0.49 | E28: 5.97 | F28: -2.16 | G28: -4.83 | H28: -5.49 | I28: -5.78 | J28: -1.03 | K28: -162.24 | L28: 104.92 | M28: 147.71 | N28: -6.67 | O28: 9.80 | P28: 1.23 | Q28: 38.85 | R28: 6.87 | S28: -4.29 | T28: -0.75 | U28: 85.30 | V28: -16.82 | W28: -8.23 | X28: -1.07 | Y28: 4.81 | Z28: 0.20 | AA28: -2.36 | AB28: -0.18 | AC28: 4.49 | AD28: -4.08 | AE28: -0.05 | AF28: 0.33 | AG28: 0.63 | AH28: 10.15 | AI28: 26.06 | AJ28: -14.92 | AK28: -1.41 | AL28: 15.71
A29: 1.1货物贸易 | C29: -145.62 | D29: 1.86 | E29: 7.43 | F29: -0.89 | G29: -4.12 | H29: -3.43 | I29: -4.01 | J29: 0.21 | K29: -119.12 | L29: 115.04 | M29: 152.10 | N29: -4.33 | O29: 11.63 | P29: 2.59 | Q29: 42.73 | R29: 8.74 | S29: -1.56 | T29: -1.04 | U29: 96.32 | V29: -15.84 | W29: -6.57 | X29: 1.16 | Y29: 7.89 | Z29: 0.64 | AA29: -1.25 | AB29: -0.19 | AC29: 5.95 | AD29: -3.74 | AE29: 0.06 | AF29: 0.52 | AG29: 1.06 | AH29: 10.45 | AI29: 26.81 | AJ29: -13.60 | AK29: -0.20 | AL29: 31.63
A30: 1.2服务贸易 | C30: -24.87 | D30: -1.85 | E30: -1.65 | F30: -1.32 | G30: -0.75 | H30: -2.47 | I30: -1.76 | J30: -1.44 | K30: -36.54 | L30: -7.87 | M30: -7.57 | N30: -1.90 | O30: -2.23 | P30: -1.21 | Q30: -3.91 | R30: -2.31 | S30: -2.72 | T30: -1.09 | U30: -7.41 | V30: -0.55 | W30: -1.61 | X30: -1.53 | Y30: -2.50 | Z30: -0.42 | AA30: -0.92 | AB30: -0.00 | AC30: -1.49 | AD30: -0.43 | AE30: -0.07 | AF30: -0.19 | AG30: -0.39 | AH30: -0.56 | AI30: -0.84 | AJ30: -1.01 | AK30: -1.01 | AL30: -12.91
A31: 1.3收益和经常转移 | C31: -17.73 | D31: 0.48 | E31: 0.19 | F31: 0.05 | G31: 0.04 | H31: 0.40 | I31: -0.01 | J31: 0.20 | K31: -6.59 | L31: -2.25 | M31: 3.18 | N31: -0.44 | O31: 0.40 | P31: -0.15 | Q31: 0.03 | R31: 0.44 | S31: -0.01 | T31: 1.37 | U31: -3.61 | V31: -0.43 | W31: -0.05 | X31: -0.70 | Y31: -0.58 | Z31: -0.03 | AA31: -0.20 | AB31: 0.01 | AC31: 0.03 | AD31: 0.08 | AE31: -0.04 | AF31: -0.00 | AG31: -0.04 | AH31: 0.26 | AI31: 0.09 | AJ31: -0.31 | AK31: -0.20 | AL31: -3.01
A32: 2.资本与金融项目 | C32: -39.26 | D32: -2.86 | E32: -1.44 | F32: -0.41 | G32: -1.54 | H32: -0.57 | I32: -0.10 | J32: 0.05 | K32: -50.61 | L32: -2.70 | M32: -1.46 | N32: 0.06 | O32: -0.64 | P32: -1.66 | Q32: -0.16 | R32: -1.40 | S32: -0.05 | T32: -0.19 | U32: 0.60 | V32: -2.70 | W32: -1.26 | X32: 0.05 | Y32: -2.53 | Z32: -1.14 | AA32: -0.27 | AB32: -0.00 | AC32: 0.07 | AD32: -3.63 | AE32: -0.13 | AF32: -0.01 | AG32: -2.72 | AH32: -0.23 | AI32: -1.78 | AJ32: -0.55 | AK32: 0.13 | AL32: 7.60
A33: 其中: 直接投资 | C33: -6.01 | D33: -0.10 | E33: -0.03 | F33: -0.18 | G33: -1.15 | H33: -0.65 | I33: 0.04 | J33: 0.07 | K33: -5.09 | L33: -0.08 | M33: 1.02 | N33: -0.40 | O33: -0.33 | P33: 0.38 | Q33: 0.79 | R33: -0.75 | S33: 0.18 | T33: -0.01 | U33: -0.39 | V33: -2.39 | W33: -0.98 | X33: 0.11 | Y33: 0.20 | Z33: -0.49 | AA33: -0.00 | AB33: 0.00 | AC33: -0.01 | AD33: -0.01 | AE33: -0.07 | AF33: 0.01 | AG33: 0.11 | AH33: -0.17 | AI33: -0.88 | AJ33: 0.24 | AK33: 0.47 | AL33: 0.11
A34: 证券投资 | C34: -26.87 | D34: 0.01 | E34: -0.00 | F34: 0 | G34: -0.12 | H34: 0.05 | I34: 0.00 | J34: 0 | K34: -43.19 | L34: 0.49 | M34: -2.39 | N34: 0.67 | O34: -0.03 | P34: -1.90 | Q34: -0.27 | R34: -0.00 | S34: 0 | T34: -0.09 | U34: 1.47 | V34: 0 | W34: -0.24 | X34: 0.04 | Y34: -1.88 | Z34: 0 | AA34: 0 | AB34: 0 | AC34: 0 | AD34: -2.89 | AE34: 0 | AF34: 0 | AG34: -2.15 | AH34: -0.03 | AI34: 0.21 | AJ34: -0.77 | AK34: -0.03 | AL34: 8.09
A35: 注： 1.分地区是指办理结售汇业务的银行所在地。其中，本表中辽宁不含大连，浙江不含宁波，福建不含厦门，山东不含青岛，广东不含深圳。

Sheet 2023年11月（按美元）
A2: 2023年11月银行结售汇数据（分地区）
A3: 单位：亿美元
A4: 项目 | C4: 北京 | D4: 天津 | E4: 河北 | F4: 山西 | G4: 内蒙古 | H4: 辽宁 | I4: 吉林 | J4: 黑龙江 | K4: 上海 | L4: 江苏 | M4: 浙江 | N4: 安徽 | O4: 福建 | P4: 江西 | Q4: 山东 | R4: 河南 | S4: 湖北 | T4: 湖南 | U4: 广东 | V4: 广西 | W4: 海南 | X4: 重庆 | Y4: 四川 | Z4: 贵州 | AA4: 云南 | AB4: 西藏 | AC4: 陕西 | AD4: 甘肃 | AE4: 青海 | AF4: 宁夏 | AG4: 新疆 | AH4: 大连 | AI4: 宁波 | AJ4: 厦门 | AK4: 青岛 | AL4: 深圳
A5: 一、结汇 | C5: 120.60 | D5: 28.10 | E5: 24.76 | F5: 3.21 | G5: 5.39 | H5: 8.20 | I5: 4.55 | J5: 2.94 | K5: 277.52 | L5: 208.55 | M5: 241.52 | N5: 29.06 | O5: 49.88 | P5: 13.76 | Q5: 82.38 | R5: 22.18 | S5: 23.16 | T5: 12.57 | U5: 189.05 | V5: 7.04 | W5: 4.73 | X5: 16.31 | Y5: 19.93 | Z5: 2.57 | AA5: 3.29 | AB5: 0.30 | AC5: 14.07 | AD5: 0.79 | AE5: 0.19 | AF5: 1.42 | AG5: 4.75 | AH5: 17.01 | AI5: 87.96 | AJ5: 36.63 | AK5: 34.43 | AL5: 136.01
A6: (一）银行自身 | C6: 31.18 | D6: 0.01 | E6: 0.00 | F6: 0.00 | G6: 0.00 | H6: 0.00 | I6: 0.00 | J6: 0.00 | K6: 3.05 | L6: 0.01 | M6: 0.14 | N6: 0.00 | O6: 6.22 | P6: 0.00 | Q6: 0.08 | R6: 0.00 | S6: 0.00 | T6: 0.00 | U6: 0.02 | V6: 0.00 | W6: 0.00 | X6: 0.01 | Y6: 0.02 | Z6: 0.00 | AA6: 0.00 | AB6: 0.00 | AC6: 0.00 | AD6: 0.00 | AE6: 0.00 | AF6: 0.00 | AG6: 0.00 | AH6: 0.00 | AI6: 12.07 | AJ6: 0.01 | AK6: 0.01 | AL6: 7.75
A7: (二）银行代客 | C7: 89.41 | D7: 28.09 | E7: 24.76 | F7: 3.21 | G7: 5.39 | H7: 8.20 | I7: 4.55 | J7: 2.93 | K7: 274.47 | L7: 208.54 | M7: 241.38 | N7: 29.06 | O7: 43.66 | P7: 13.76 | Q7: 82.30 | R7: 22.17 | S7: 23.16 | T7: 12.57 | U7: 189.02 | V7: 7.03 | W7: 4.73 | X7: 16.30 | Y7: 19.92 | Z7: 2.57 | AA7: 3.29 | AB7: 0.30 | AC7: 14.07 | AD7: 0.79 | AE7: 0.19 | AF7: 1.42 | AG7: 4.75 | AH7: 17.01 | AI7: 75.89 | AJ7: 36.62 | AK7: 34.42 | AL7: 128.25
A8: 1.经常项目 | C8: 71.77 | D8: 27.25 | E8: 24.48 | F8: 3.02 | G8: 3.59 | H8: 8.09 | I8: 4.16 | J8: 2.82 | K8: 169.48 | L8: 198.12 | M8: 236.52 | N8: 26.59 | O8: 43.41 | P8: 13.45 | Q8: 79.13 | R8: 21.17 | S8: 21.90 | T8: 11.68 | U8: 181.92 | V8: 5.78 | W8: 3.59 | X8: 15.92 | Y8: 17.60 | Z8: 2.28 | AA8: 2.49 | AB8: 0.04 | AC8: 13.82 | AD8: 0.69 | AE8: 0.13 | AF8: 1.39 | AG8: 4.66 | AH8: 16.94 | AI8: 74.61 | AJ8: 35.66 | AK8: 34.03 | AL8: 114.62
A9: 1.1货物贸易 | C9: 40.86 | D9: 24.31 | E9: 23.37 | F9: 2.66 | G9: 3.19 | H9: 7.11 | I9: 3.50 | J9: 2.30 | K9: 129.42 | L9: 191.28 | M9: 229.98 | N9: 25.74 | O9: 41.06 | P9: 12.99 | Q9: 76.87 | R9: 19.21 | S9: 20.19 | T9: 10.59 | U9: 171.42 | V9: 5.05 | W9: 3.24 | X9: 15.24 | Y9: 14.64 | Z9: 2.06 | AA9: 2.13 | AB9: 0.02 | AC9: 12.42 | AD9: 0.50 | AE9: 0.11 | AF9: 1.35 | AG9: 4.18 | AH9: 14.80 | AI9: 73.44 | AJ9: 34.02 | AK9: 31.85 | AL9: 103.23
A10: 1.2服务贸易 | C10: 20.91 | D10: 1.54 | E10: 0.68 | F10: 0.24 | G10: 0.20 | H10: 0.46 | I10: 0.23 | J10: 0.25 | K10: 32.13 | L10: 4.99 | M10: 3.61 | N10: 0.63 | O10: 1.02 | P10: 0.31 | Q10: 1.24 | R10: 0.67 | S10: 1.26 | T10: 0.77 | U10: 8.07 | V10: 0.45 | W10: 0.28 | X10: 0.51 | Y10: 2.08 | Z10: 0.18 | AA10: 0.23 | AB10: 0.01 | AC10: 1.17 | AD10: 0.08 | AE10: 0.01 | AF10: 0.02 | AG10: 0.39 | AH10: 1.76 | AI10: 1.01 | AJ10: 1.41 | AK10: 1.73 | AL10: 9.84
A11: 1.3收益和经常转移 | C11: 10.00 | D11: 1.40 | E11: 0.43 | F11: 0.12 | G11: 0.21 | H11: 0.52 | I11: 0.43 | J11: 0.27 | K11: 7.93 | L11: 1.85 | M11: 2.92 | N11: 0.22 | O11: 1.33 | P11: 0.15 | Q11: 1.01 | R11: 1.29 | S11: 0.45 | T11: 0.32 | U11: 2.43 | V11: 0.29 | W11: 0.07 | X11: 0.16 | Y11: 0.87 | Z11: 0.04 | AA11: 0.13 | AB11: 0.00 | AC11: 0.23 | AD11: 0.11 | AE11: 0.01 | AF11: 0.02 | AG11: 0.09 | AH11: 0.39 | AI11: 0.15 | AJ11: 0.22 | AK11: 0.45 | AL11: 1.54
A12: 2.资本与金融项目 | C12: 17.65 | D12: 0.85 | E12: 0.28 | F12: 0.19 | G12: 1.80 | H12: 0.11 | I12: 0.39 | J12: 0.12 | K12: 104.99 | L12: 10.42 | M12: 4.86 | N12: 2.47 | O12: 0.25 | P12: 0.31 | Q12: 3.17 | R12: 1.00 | S12: 1.26 | T12: 0.89 | U12: 7.10 | V12: 1.25 | W12: 1.14 | X12: 0.38 | Y12: 2.32 | Z12: 0.29 | AA12: 0.80 | AB12: 0.26 | AC12: 0.25 | AD12: 0.10 | AE12: 0.06 | AF12: 0.02 | AG12: 0.09 | AH12: 0.07 | AI12: 1.28 | AJ12: 0.96 | AK12: 0.38 | AL12: 13.63
A13: 其中: 直接投资 | C13: 5.55 | D13: 0.59 | E13: 0.23 | F13: 0.14 | G13: 1.74 | H13: 0.02 | I13: 0.11 | J13: 0.05 | K13: 11.39 | L13: 7.40 | M13: 2.31 | N13: 0.62 | O13: 0.19 | P13: 0.23 | Q13: 2.66 | R13: 0.30 | S13: 0.99 | T13: 0.07 | U13: 2.02 | V13: 0.18 | W13: 1.04 | X13: 0.20 | Y13: 0.83 | Z13: 0.02 | AA13: 0.39 | AB13: 0.26 | AC13: 0.18 | AD13: 0.01 | AE13: 0.00 | AF13: 0.02 | AG13: 0.04 | AH13: 0.02 | AI13: 0.83 | AJ13: 0.90 | AK13: 0.18 | AL13: 4.70
A14: 证券投资 | C14: 7.12 | D14: 0.01 | E14: 0.00 | F14: 0.00 | G14: 0.00 | H14: 0.00 | I14: 0.14 | J14: 0.00 | K14: 91.93 | L14: 1.93 | M14: 2.01 | N14: 1.54 | O14: 0.00 | P14: 0.00 | Q14: 0.00 | R14: 0.27 | S14: 0.00 | T14: 0.00 | U14: 4.99 | V14: 0.96 | W14: 0.08 | X14: 0.15 | Y14: 0.70 | Z14: 0.24 | AA14: 0.12 | AB14: 0.00 | AC14: 0.00 | AD14: 0.00 | AE14: 0.00 | AF14: 0.00 | AG14: 0.01 | AH14: 0.01 | AI14: 0.17 | AJ14: 0.01 | AK14: 0.05 | AL14: 8.91
A15: 二、售汇 | C15: 358.17 | D15: 34.81 | E15: 25.26 | F15: 7.53 | G15: 8.77 | H15: 18.36 | I15: 13.21 | J15: 6.01 | K15: 509.78 | L15: 127.02 | M15: 96.27 | N15: 32.67 | O15: 45.92 | P15: 13.36 | Q15: 45.44 | R15: 21.36 | S15: 28.46 | T15: 20.23 | U15: 118.41 | V15: 25.00 | W15: 19.74 | X15: 34.69 | Y15: 20.93 | Z15: 3.00 | AA15: 6.74 | AB15: 0.58 | AC15: 12.97 | AD15: 4.62 | AE15: 0.13 | AF15: 0.74 | AG15: 3.89 | AH15: 9.49 | AI15: 58.92 | AJ15: 55.00 | AK15: 43.68 | AL15: 149.84
A16: (一）银行自身 | C16: 19.69 | D16: 0.01 | E16: 0.00 | F16: 0.00 | G16: 0.00 | H16: 0.00 | I16: 0.00 | J16: 0.02 | K16: 15.87 | L16: 0.08 | M16: 0.01 | N16: 0.23 | O16: 12.64 | P16: 0.00 | Q16: 0.00 | R16: 0.78 | S16: 0.00 | T16: 0.00 | U16: 2.34 | V16: 0.00 | W16: 0.00 | X16: 0.00 | Y16: 0.01 | Z16: 0.00 | AA16: 0.00 | AB16: 0.00 | AC16: 0.00 | AD16: 0.00 | AE16: 0.00 | AF16: 0.00 | AG16: 0.00 | AH16: 0.00 | AI16: 11.29 | AJ16: 0.06 | AK16: 0.00 | AL16: 11.11
A17: (二）银行代客 | C17: 338.47 | D17: 34.80 | E17: 25.26 | F17: 7.53 | G17: 8.77 | H17: 18.36 | I17: 13.21 | J17: 5.98 | K17: 493.91 | L17: 126.94 | M17: 96.26 | N17: 32.44 | O17: 33.27 | P17: 13.36 | Q17: 45.44 | R17: 20.58 | S17: 28.46 | T17: 20.23 | U17: 116.07 | V17: 25.00 | W17: 19.74 | X17: 34.69 | Y17: 20.91 | Z17: 3.00 | AA17: 6.74 | AB17: 0.58 | AC17: 12.97 | AD17: 4.62 | AE17: 0.13 | AF17: 0.74 | AG17: 3.89 | AH17: 9.49 | AI17: 47.63 | AJ17: 54.93 | AK17: 43.67 | AL17: 138.73
A18: 1.经常项目 | C18: 303.41 | D18: 32.09 | E18: 20.96 | F18: 7.00 | G18: 8.47 | H18: 16.31 | I18: 13.02 | J18: 5.67 | K18: 345.59 | L18: 115.60 | M18: 92.38 | N18: 30.32 | O18: 32.34 | P18: 12.62 | Q18: 42.00 | R18: 15.85 | S18: 22.07 | T18: 18.41 | U18: 99.48 | V18: 20.70 | W18: 17.61 | X18: 31.07 | Y18: 18.96 | Z18: 2.65 | AA18: 6.44 | AB18: 0.41 | AC18: 10.42 | AD18: 3.99 | AE18: 0.12 | AF18: 0.69 | AG18: 3.73 | AH18: 9.05 | AI18: 41.23 | AJ18: 52.29 | AK18: 42.01 | AL18: 113.04
A19: 1.1货物贸易 | C19: 246.00 | D19: 25.70 | E19: 18.17 | F19: 5.47 | G19: 7.22 | H19: 13.31 | I19: 10.62 | J19: 3.72 | K19: 256.11 | L19: 99.03 | M19: 77.22 | N19: 27.57 | O19: 26.72 | P19: 11.03 | Q19: 35.07 | R19: 12.62 | S19: 17.53 | T19: 15.98 | U19: 77.73 | V19: 18.97 | W19: 15.88 | X19: 26.84 | Y19: 13.06 | Z19: 1.89 | AA19: 4.81 | AB19: 0.27 | AC19: 6.88 | AD19: 3.42 | AE19: 0.04 | AF19: 0.46 | AG19: 2.92 | AH19: 6.58 | AI19: 37.87 | AJ19: 48.00 | AK19: 38.45 | AL19: 87.98
A20: 1.2服务贸易 | C20: 46.14 | D20: 4.29 | E20: 2.43 | F20: 1.47 | G20: 0.99 | H20: 2.81 | I20: 1.96 | J20: 1.68 | K20: 68.34 | L20: 13.36 | M20: 12.37 | N20: 2.51 | O20: 3.29 | P20: 1.37 | Q20: 5.79 | R20: 2.88 | S20: 4.03 | T20: 2.06 | U20: 17.46 | V20: 1.14 | W20: 1.64 | X20: 3.02 | Y20: 5.35 | Z20: 0.58 | AA20: 1.24 | AB20: 0.07 | AC20: 3.25 | AD20: 0.49 | AE20: 0.08 | AF20: 0.20 | AG20: 0.69 | AH20: 1.99 | AI20: 2.59 | AJ20: 2.51 | AK20: 3.22 | AL20: 23.67
A21: 1.3收益和经常转移 | C21: 11.27 | D21: 2.10 | E21: 0.36 | F21: 0.06 | G21: 0.26 | H21: 0.20 | I21: 0.44 | J21: 0.27 | K21: 21.15 | L21: 3.21 | M21: 2.79 | N21: 0.23 | O21: 2.33 | P21: 0.22 | Q21: 1.14 | R21: 0.35 | S21: 0.51 | T21: 0.37 | U21: 4.29 | V21: 0.58 | W21: 0.09 | X21: 1.20 | Y21: 0.54 | Z21: 0.18 | AA21: 0.38 | AB21: 0.08 | AC21: 0.29 | AD21: 0.08 | AE21: 0.00 | AF21: 0.03 | AG21: 0.12 | AH21: 0.49 | AI21: 0.76 | AJ21: 1.78 | AK21: 0.35 | AL21: 1.39
A22: 2.资本与金融项目 | C22: 35.06 | D22: 2.71 | E22: 4.29 | F22: 0.53 | G22: 0.30 | H22: 2.05 | I22: 0.19 | J22: 0.31 | K22: 148.31 | L22: 11.34 | M22: 3.87 | N22: 2.13 | O22: 0.94 | P22: 0.74 | Q22: 3.44 | R22: 4.73 | S22: 6.39 | T22: 1.82 | U22: 16.59 | V22: 4.31 | W22: 2.13 | X22: 3.62 | Y22: 1.96 | Z22: 0.35 | AA22: 0.30 | AB22: 0.17 | AC22: 2.54 | AD22: 0.62 | AE22: 0.00 | AF22: 0.05 | AG22: 0.15 | AH22: 0.44 | AI22: 6.40 | AJ22: 2.64 | AK22: 1.66 | AL22: 25.68
A23: 其中: 直接投资 | C23: 14.15 | D23: 0.75 | E23: 1.55 | F23: 0.03 | G23: 0.20 | H23: 1.58 | I23: 0.01 | J23: 0.03 | K23: 14.82 | L23: 5.74 | M23: 2.23 | N23: 1.45 | O23: 0.45 | P23: 0.52 | Q23: 2.44 | R23: 4.22 | S23: 1.32 | T23: 1.03 | U23: 11.17 | V23: 0.03 | W23: 1.45 | X23: 0.09 | Y23: 1.02 | Z23: 0.00 | AA23: 0.13 | AB23: 0.17 | AC23: 0.09 | AD23: 0.07 | AE23: 0.00 | AF23: 0.01 | AG23: 0.04 | AH23: 0.06 | AI23: 4.59 | AJ23: 0.97 | AK23: 1.08 | AL23: 8.82
A24: 证券投资 | C24: 14.75 | D24: 0.37 | E24: 0.04 | F24: 0.00 | G24: 0.00 | H24: 0.00 | I24: 0.00 | J24: 0.00 | K24: 129.22 | L24: 1.94 | M24: 0.22 | N24: 0.23 | O24: 0.03 | P24: 0.00 | Q24: 0.65 | R24: 0.00 | S24: 3.01 | T24: 0.00 | U24: 2.20 | V24: 3.55 | W24: 0.65 | X24: 3.30 | Y24: 0.08 | Z24: 0.00 | AA24: 0.00 | AB24: 0.00 | AC24: 1.96 | AD24: 0.02 | AE24: 0.00 | AF24: 0.00 | AG24: 0.00 | AH24: 0.08 | AI24: 0.22 | AJ24: 1.52 | AK24: 0.13 | AL24: 15.07
A25: 三、差额 | C25: -237.57 | D25: -6.70 | E25: -0.50 | F25: -4.32 | G25: -3.38 | H25: -10.16 | I25: -8.66 | J25: -3.07 | K25: -232.26 | L25: 81.53 | M25: 145.26 | N25: -3.61 | O25: 3.97 | P25: 0.40 | Q25: 36.93 | R25: 0.81 | S25: -5.30 | T25: -7.66 | U25: 70.63 | V25: -17.97 | W25: -15.01 | X25: -18.39 | Y25: -0.99 | Z25: -0.42 | AA25: -3.44 | AB25: -0.29 | AC25: 1.10 | AD25: -3.83 | AE25: 0.06 | AF25: 0.68 | AG25: 0.86 | AH25: 7.52 | AI25: 29.04 | AJ25: -18.36 | AK25: -9.25 | AL25: -13.83
A26: (一）银行自身 | C26: 11.49 | D26: 0.01 | E26: 0.00 | F26: 0.00 | G26: 0 | H26: 0.00 | I26: -0.00 | J26: -0.02 | K26: -12.82 | L26: -0.07 | M26: 0.13 | N26: -0.23 | O26: -6.42 | P26: 0.00 | Q26: 0.07 | R26: -0.78 | S26: 0.00 | T26: 0.00 | U26: -2.32 | V26: 0.00 | W26: 0.00 | X26: 0.01 | Y26: 0.01 | Z26: -0.00 | AA26: 0.00 | AB26: 0 | AC26: -0.00 | AD26: 0 | AE26: 0 | AF26: 0.00 | AG26: 0 | AH26: 0.00 | AI26: 0.78 | AJ26: -0.05 | AK26: 0.00 | AL26: -3.36
A27: (二）银行代客 | C27: -249.06 | D27: -6.71 | E27: -0.50 | F27: -4.32 | G27: -3.38 | H27: -10.16 | I27: -8.66 | J27: -3.05 | K27: -219.44 | L27: 81.60 | M27: 145.12 | N27: -3.38 | O27: 10.39 | P27: 0.40 | Q27: 36.86 | R27: 1.59 | S27: -5.31 | T27: -7.66 | U27: 72.95 | V27: -17.97 | W27: -15.01 | X27: -18.39 | Y27: -1.00 | Z27: -0.42 | AA27: -3.44 | AB27: -0.29 | AC27: 1.10 | AD27: -3.83 | AE27: 0.06 | AF27: 0.68 | AG27: 0.86 | AH27: 7.52 | AI27: 28.27 | AJ27: -18.31 | AK27: -9.25 | AL27: -10.47
A28: 1.经常项目 | C28: -231.65 | D28: -4.84 | E28: 3.52 | F28: -3.99 | G28: -4.88 | H28: -8.22 | I28: -8.86 | J28: -2.86 | K28: -176.11 | L28: 82.52 | M28: 144.13 | N28: -3.73 | O28: 11.07 | P28: 0.83 | Q28: 37.13 | R28: 5.32 | S28: -0.18 | T28: -6.73 | U28: 82.44 | V28: -14.91 | W28: -14.02 | X28: -15.15 | Y28: -1.36 | Z28: -0.37 | AA28: -3.94 | AB28: -0.37 | AC28: 3.40 | AD28: -3.31 | AE28: 0.00 | AF28: 0.71 | AG28: 0.93 | AH28: 7.89 | AI28: 33.38 | AJ28: -16.63 | AK28: -7.98 | AL28: 1.58
A29: 1.1货物贸易 | C29: -205.14 | D29: -1.39 | E29: 5.20 | F29: -2.81 | G29: -4.04 | H29: -6.19 | I29: -7.12 | J29: -1.42 | K29: -126.69 | L29: 92.25 | M29: 152.76 | N29: -1.84 | O29: 14.34 | P29: 1.96 | Q29: 41.80 | R29: 6.59 | S29: 2.65 | T29: -5.38 | U29: 93.69 | V29: -13.92 | W29: -12.65 | X29: -11.60 | Y29: 1.58 | Z29: 0.17 | AA29: -2.68 | AB29: -0.24 | AC29: 5.54 | AD29: -2.93 | AE29: 0.06 | AF29: 0.89 | AG29: 1.26 | AH29: 8.22 | AI29: 35.57 | AJ29: -13.98 | AK29: -6.60 | AL29: 15.25
A30: 1.2服务贸易 | C30: -25.23 | D30: -2.75 | E30: -1.75 | F30: -1.23 | G30: -0.79 | H30: -2.35 | I30: -1.73 | J30: -1.44 | K30: -36.20 | L30: -8.37 | M30: -8.76 | N30: -1.88 | O30: -2.27 | P30: -1.06 | Q30: -4.55 | R30: -2.21 | S30: -2.77 | T30: -1.29 | U30: -9.39 | V30: -0.69 | W30: -1.36 | X30: -2.51 | Y30: -3.27 | Z30: -0.40 | AA30: -1.01 | AB30: -0.06 | AC30: -2.08 | AD30: -0.40 | AE30: -0.07 | AF30: -0.17 | AG30: -0.30 | AH30: -0.23 | AI30: -1.58 | AJ30: -1.09 | AK30: -1.48 | AL30: -13.83
A31: 1.3收益和经常转移 | C31: -1.27 | D31: -0.70 | E31: 0.06 | F31: 0.05 | G31: -0.05 | H31: 0.32 | I31: -0.01 | J31: 0.00 | K31: -13.22 | L31: -1.36 | M31: 0.13 | N31: -0.01 | O31: -1.00 | P31: -0.06 | Q31: -0.13 | R31: 0.94 | S31: -0.06 | T31: -0.05 | U31: -1.86 | V31: -0.30 | W31: -0.01 | X31: -1.04 | Y31: 0.34 | Z31: -0.14 | AA31: -0.25 | AB31: -0.07 | AC31: -0.06 | AD31: 0.03 | AE31: 0.01 | AF31: -0.02 | AG31: -0.03 | AH31: -0.10 | AI31: -0.61 | AJ31: -1.56 | AK31: 0.11 | AL31: 0.15
A32: 2.资本与金融项目 | C32: -17.41 | D32: -1.87 | E32: -4.01 | F32: -0.33 | G32: 1.49 | H32: -1.94 | I32: 0.20 | J32: -0.19 | K32: -43.33 | L32: -0.92 | M32: 0.99 | N32: 0.34 | O32: -0.68 | P32: -0.44 | Q32: -0.27 | R32: -3.72 | S32: -5.13 | T32: -0.93 | U32: -9.49 | V32: -3.06 | W32: -0.99 | X32: -3.24 | Y32: 0.36 | Z32: -0.05 | AA32: 0.50 | AB32: 0.09 | AC32: -2.29 | AD32: -0.52 | AE32: 0.06 | AF32: -0.03 | AG32: -0.06 | AH32: -0.37 | AI32: -5.12 | AJ32: -1.68 | AK32: -1.27 | AL32: -12.05
A33: 其中: 直接投资 | C33: -8.60 | D33: -0.16 | E33: -1.32 | F33: 0.11 | G33: 1.54 | H33: -1.56 | I33: 0.09 | J33: 0.02 | K33: -3.43 | L33: 1.66 | M33: 0.08 | N33: -0.83 | O33: -0.27 | P33: -0.29 | Q33: 0.22 | R33: -3.92 | S33: -0.33 | T33: -0.96 | U33: -9.14 | V33: 0.15 | W33: -0.41 | X33: 0.11 | Y33: -0.19 | Z33: 0.02 | AA33: 0.27 | AB33: 0.09 | AC33: 0.09 | AD33: -0.06 | AE33: 0 | AF33: 0.02 | AG33: -0.00 | AH33: -0.04 | AI33: -3.76 | AJ33: -0.06 | AK33: -0.90 | AL33: -4.12
A34: 证券投资 | C34: -7.63 | D34: -0.35 | E34: -0.04 | F34: 0 | G34: 0.00 | H34: 0.00 | I34: 0.14 | J34: 0 | K34: -37.29 | L34: -0.01 | M34: 1.80 | N34: 1.32 | O34: -0.02 | P34: 0.00 | Q34: -0.65 | R34: 0.27 | S34: -3.01 | T34: 0.00 | U34: 2.79 | V34: -2.59 | W34: -0.58 | X34: -3.15 | Y34: 0.62 | Z34: 0.24 | AA34: 0.12 | AB34: 0 | AC34: -1.96 | AD34: -0.02 | AE34: -0.00 | AF34: 0 | AG34: 0.01 | AH34: -0.06 | AI34: -0.05 | AJ34: -1.51 | AK34: -0.08 | AL34: -6.17
A35: 注： 1.分地区是指办理结售汇业务的银行所在地。其中，本表中辽宁不含大连，浙江不含宁波，福建不含厦门，山东不含青岛，广东不含深圳。

Sheet 2023年12月（按美元）
A2: 2023年12月银行结售汇数据（分地区）
A3: 单位：亿美元
A4: 项目 | C4: 北京 | D4: 天津 | E4: 河北 | F4: 山西 | G4: 内蒙古 | H4: 辽宁 | I4: 吉林 | J4: 黑龙江 | K4: 上海 | L4: 江苏 | M4: 浙江 | N4: 安徽 | O4: 福建 | P4: 江西 | Q4: 山东 | R4: 河南 | S4: 湖北 | T4: 湖南 | U4: 广东 | V4: 广西 | W4: 海南 | X4: 重庆 | Y4: 四川 | Z4: 贵州 | AA4: 云南 | AB4: 西藏 | AC4: 陕西 | AD4: 甘肃 | AE4: 青海 | AF4: 宁夏 | AG4: 新疆 | AH4: 大连 | AI4: 宁波 | AJ4: 厦门 | AK4: 青岛 | AL4: 深圳
A5: 一、结汇 | C5: 174.79 | D5: 28.39 | E5: 28.51 | F5: 4.37 | G5: 6.82 | H5: 9.63 | I5: 4.63 | J5: 3.88 | K5: 330.72 | L5: 241.45 | M5: 258.89 | N5: 35.49 | O5: 54.81 | P5: 18.39 | Q5: 90.03 | R5: 26.01 | S5: 21.31 | T5: 19.42 | U5: 219.49 | V5: 9.80 | W5: 4.83 | X5: 26.82 | Y5: 23.49 | Z5: 3.67 | AA5: 4.73 | AB5: 0.04 | AC5: 18.72 | AD5: 1.75 | AE5: 0.18 | AF5: 1.71 | AG5: 5.42 | AH5: 15.39 | AI5: 91.93 | AJ5: 37.39 | AK5: 40.21 | AL5: 156.65
A6: (一）银行自身 | C6: 16.82 | D6: 0.02 | E6: 0.00 | F6: 0.01 | G6: 0.00 | H6: 0.01 | I6: 0.00 | J6: 0.00 | K6: 5.34 | L6: 0.33 | M6: 0.04 | N6: 0.00 | O6: 3.52 | P6: 0.00 | Q6: 0.23 | R6: 2.78 | S6: 0.02 | T6: 0.00 | U6: 0.16 | V6: 0.00 | W6: 0.01 | X6: 0.02 | Y6: 0.01 | Z6: 0.00 | AA6: 0.01 | AB6: 0.00 | AC6: 0.00 | AD6: 0.00 | AE6: 0.00 | AF6: 0.00 | AG6: 0.00 | AH6: 0.00 | AI6: 9.92 | AJ6: 0.04 | AK6: 0.01 | AL6: 2.13
A7: (二）银行代客 | C7: 157.97 | D7: 28.37 | E7: 28.51 | F7: 4.36 | G7: 6.82 | H7: 9.62 | I7: 4.63 | J7: 3.87 | K7: 325.38 | L7: 241.11 | M7: 258.85 | N7: 35.48 | O7: 51.29 | P7: 18.39 | Q7: 89.80 | R7: 23.23 | S7: 21.29 | T7: 19.42 | U7: 219.32 | V7: 9.80 | W7: 4.82 | X7: 26.80 | Y7: 23.48 | Z7: 3.67 | AA7: 4.73 | AB7: 0.04 | AC7: 18.72 | AD7: 1.74 | AE7: 0.18 | AF7: 1.71 | AG7: 5.42 | AH7: 15.39 | AI7: 82.01 | AJ7: 37.35 | AK7: 40.20 | AL7: 154.53
A8: 1.经常项目 | C8: 119.24 | D8: 26.43 | E8: 27.25 | F8: 3.34 | G8: 5.73 | H8: 9.05 | I8: 4.32 | J8: 3.62 | K8: 201.58 | L8: 229.97 | M8: 249.83 | N8: 32.69 | O8: 50.48 | P8: 16.72 | Q8: 83.75 | R8: 21.49 | S8: 19.33 | T8: 18.57 | U8: 210.88 | V8: 7.74 | W8: 4.00 | X8: 21.35 | Y8: 22.13 | Z8: 2.94 | AA8: 4.03 | AB8: 0.03 | AC8: 17.79 | AD8: 1.09 | AE8: 0.16 | AF8: 1.70 | AG8: 4.57 | AH8: 15.20 | AI8: 80.88 | AJ8: 36.75 | AK8: 39.31 | AL8: 148.10
A9: 1.1货物贸易 | C9: 51.63 | D9: 23.36 | E9: 26.09 | F9: 3.01 | G9: 5.45 | H9: 7.88 | I9: 3.24 | J9: 3.04 | K9: 155.54 | L9: 220.93 | M9: 242.01 | N9: 31.45 | O9: 48.05 | P9: 16.31 | Q9: 80.43 | R9: 19.53 | S9: 17.09 | T9: 17.24 | U9: 199.13 | V9: 7.19 | W9: 3.07 | X9: 20.44 | Y9: 18.35 | Z9: 2.63 | AA9: 3.69 | AB9: 0.02 | AC9: 16.05 | AD9: 0.94 | AE9: 0.13 | AF9: 1.65 | AG9: 4.07 | AH9: 13.10 | AI9: 79.08 | AJ9: 35.03 | AK9: 36.48 | AL9: 133.43
A10: 1.2服务贸易 | C10: 25.84 | D10: 2.41 | E10: 0.72 | F10: 0.22 | G10: 0.18 | H10: 0.51 | I10: 0.29 | J10: 0.26 | K10: 37.42 | L10: 6.74 | M10: 4.24 | N10: 0.93 | O10: 0.55 | P10: 0.21 | Q10: 1.88 | R10: 0.94 | S10: 1.67 | T10: 0.89 | U10: 8.93 | V10: 0.26 | W10: 0.86 | X10: 0.73 | Y10: 2.38 | Z10: 0.20 | AA10: 0.23 | AB10: 0.01 | AC10: 1.53 | AD10: 0.08 | AE10: 0.01 | AF10: 0.03 | AG10: 0.42 | AH10: 1.73 | AI10: 1.52 | AJ10: 1.34 | AK10: 2.16 | AL10: 11.56
A11: 1.3收益和经常转移 | C11: 41.77 | D11: 0.66 | E11: 0.44 | F11: 0.11 | G11: 0.10 | H11: 0.65 | I11: 0.79 | J11: 0.32 | K11: 8.63 | L11: 2.31 | M11: 3.59 | N11: 0.31 | O11: 1.87 | P11: 0.21 | Q11: 1.44 | R11: 1.01 | S11: 0.57 | T11: 0.45 | U11: 2.82 | V11: 0.30 | W11: 0.08 | X11: 0.19 | Y11: 1.40 | Z11: 0.12 | AA11: 0.11 | AB11: 0.00 | AC11: 0.21 | AD11: 0.08 | AE11: 0.01 | AF11: 0.02 | AG11: 0.08 | AH11: 0.38 | AI11: 0.28 | AJ11: 0.38 | AK11: 0.67 | AL11: 3.12
A12: 2.资本与金融项目 | C12: 38.73 | D12: 1.94 | E12: 1.26 | F12: 1.02 | G12: 1.09 | H12: 0.57 | I12: 0.31 | J12: 0.25 | K12: 123.80 | L12: 11.14 | M12: 9.02 | N12: 2.79 | O12: 0.81 | P12: 1.66 | Q12: 6.05 | R12: 1.75 | S12: 1.96 | T12: 0.84 | U12: 8.45 | V12: 2.06 | W12: 0.82 | X12: 5.45 | Y12: 1.35 | Z12: 0.73 | AA12: 0.70 | AB12: 0.01 | AC12: 0.93 | AD12: 0.65 | AE12: 0.02 | AF12: 0.01 | AG12: 0.85 | AH12: 0.18 | AI12: 1.13 | AJ12: 0.60 | AK12: 0.89 | AL12: 6.42
A13: 其中: 直接投资 | C13: 10.35 | D13: 1.54 | E13: 1.07 | F13: 0.09 | G13: 0.70 | H13: 0.26 | I13: 0.15 | J13: 0.09 | K13: 14.19 | L13: 6.67 | M13: 4.43 | N13: 0.82 | O13: 0.41 | P13: 0.93 | Q13: 5.25 | R13: 0.43 | S13: 1.71 | T13: 0.52 | U13: 3.68 | V13: 1.44 | W13: 0.27 | X13: 5.28 | Y13: 0.74 | Z13: 0.06 | AA13: 0.34 | AB13: 0.01 | AC13: 0.30 | AD13: 0.06 | AE13: 0.00 | AF13: 0.01 | AG13: 0.83 | AH13: 0.08 | AI13: 0.83 | AJ13: 0.49 | AK13: 0.87 | AL13: 2.25
A14: 证券投资 | C14: 11.34 | D14: 0.09 | E14: 0.00 | F14: 0.89 | G14: 0.02 | H14: 0.01 | I14: 0.00 | J14: 0.00 | K14: 109.12 | L14: 4.02 | M14: 2.48 | N14: 1.32 | O14: 0.00 | P14: 0.00 | Q14: 0.29 | R14: 0.00 | S14: 0.02 | T14: 0.05 | U14: 4.58 | V14: 0.00 | W14: 0.53 | X14: 0.13 | Y14: 0.08 | Z14: 0.02 | AA14: 0.12 | AB14: 0.00 | AC14: 0.00 | AD14: 0.14 | AE14: 0.00 | AF14: 0.00 | AG14: 0.00 | AH14: 0.06 | AI14: 0.29 | AJ14: 0.04 | AK14: 0.02 | AL14: 4.10
A15: 二、售汇 | C15: 419.26 | D15: 38.15 | E15: 23.85 | F15: 8.46 | G15: 11.20 | H15: 12.12 | I15: 14.42 | J15: 6.23 | K15: 495.92 | L15: 137.54 | M15: 92.57 | N15: 32.05 | O15: 48.31 | P15: 13.10 | Q15: 52.65 | R15: 16.39 | S15: 31.70 | T15: 21.07 | U15: 129.03 | V15: 21.33 | W15: 18.10 | X15: 28.91 | Y15: 30.48 | Z15: 2.83 | AA15: 6.86 | AB15: 0.30 | AC15: 11.47 | AD15: 5.25 | AE15: 0.25 | AF15: 0.70 | AG15: 3.43 | AH15: 8.77 | AI15: 57.88 | AJ15: 52.99 | AK15: 50.18 | AL15: 159.63
A16: (一）银行自身 | C16: 27.07 | D16: 0.01 | E16: 0.00 | F16: 0.00 | G16: 0.00 | H16: 0.00 | I16: 0.00 | J16: 0.00 | K16: 10.54 | L16: 0.07 | M16: 0.48 | N16: 0.00 | O16: 6.96 | P16: 0.00 | Q16: 1.26 | R16: 0.00 | S16: 0.00 | T16: 0.00 | U16: 3.60 | V16: 0.00 | W16: 0.00 | X16: 0.01 | Y16: 0.08 | Z16: 0.00 | AA16: 0.00 | AB16: 0.00 | AC16: 0.00 | AD16: 0.00 | AE16: 0.00 | AF16: 0.00 | AG16: 0.00 | AH16: 0.00 | AI16: 9.17 | AJ16: 0.06 | AK16: 0.06 | AL16: 7.92
A17: (二）银行代客 | C17: 392.19 | D17: 38.15 | E17: 23.85 | F17: 8.46 | G17: 11.20 | H17: 12.12 | I17: 14.42 | J17: 6.23 | K17: 485.38 | L17: 137.47 | M17: 92.08 | N17: 32.05 | O17: 41.35 | P17: 13.10 | Q17: 51.38 | R17: 16.39 | S17: 31.70 | T17: 21.07 | U17: 125.43 | V17: 21.33 | W17: 18.10 | X17: 28.90 | Y17: 30.41 | Z17: 2.82 | AA17: 6.86 | AB17: 0.30 | AC17: 11.47 | AD17: 5.25 | AE17: 0.25 | AF17: 0.70 | AG17: 3.43 | AH17: 8.77 | AI17: 48.71 | AJ17: 52.93 | AK17: 50.12 | AL17: 151.70
A18: 1.经常项目 | C18: 342.68 | D18: 30.02 | E18: 20.90 | F18: 8.19 | G18: 10.99 | H18: 11.72 | I18: 13.90 | J18: 6.04 | K18: 332.33 | L18: 121.91 | M18: 83.28 | N18: 28.06 | O18: 40.06 | P18: 12.68 | Q18: 45.87 | R18: 14.15 | S18: 25.72 | T18: 19.22 | U18: 105.03 | V18: 18.31 | W18: 14.36 | X18: 23.32 | Y18: 20.11 | Z18: 2.01 | AA18: 6.36 | AB18: 0.29 | AC18: 10.54 | AD18: 4.37 | AE18: 0.21 | AF18: 0.69 | AG18: 3.25 | AH18: 8.36 | AI18: 41.88 | AJ18: 51.27 | AK18: 41.64 | AL18: 130.84
A19: 1.1货物贸易 | C19: 275.88 | D19: 22.78 | E19: 16.75 | F19: 6.03 | G19: 9.32 | H19: 7.80 | I19: 7.24 | J19: 3.88 | K19: 209.57 | L19: 96.34 | M19: 63.59 | N19: 23.76 | O19: 32.33 | P19: 10.29 | Q19: 37.49 | R19: 10.01 | S19: 19.50 | T19: 16.04 | U19: 71.89 | V19: 16.53 | W19: 11.22 | X19: 18.27 | Y19: 11.22 | Z19: 1.23 | AA19: 4.39 | AB19: 0.09 | AC19: 6.53 | AD19: 3.30 | AE19: 0.05 | AF19: 0.36 | AG19: 2.27 | AH19: 5.03 | AI19: 38.17 | AJ19: 47.93 | AK19: 34.95 | AL19: 99.53
A20: 1.2服务贸易 | C20: 58.40 | D20: 5.93 | E20: 3.11 | F20: 2.04 | G20: 1.62 | H20: 3.70 | I20: 6.29 | J20: 2.06 | K20: 89.06 | L20: 18.86 | M20: 16.35 | N20: 3.60 | O20: 3.67 | P20: 1.72 | Q20: 7.34 | R20: 3.92 | S20: 5.85 | T20: 2.86 | U20: 25.09 | V20: 1.45 | W20: 2.69 | X20: 3.21 | Y20: 8.00 | Z20: 0.73 | AA20: 1.65 | AB20: 0.20 | AC20: 3.42 | AD20: 1.04 | AE20: 0.14 | AF20: 0.32 | AG20: 0.88 | AH20: 2.55 | AI20: 3.23 | AJ20: 2.59 | AK20: 4.06 | AL20: 28.96
A21: 1.3收益和经常转移 | C21: 8.40 | D21: 1.31 | E21: 1.04 | F21: 0.13 | G21: 0.05 | H21: 0.21 | I21: 0.37 | J21: 0.11 | K21: 33.70 | L21: 6.70 | M21: 3.34 | N21: 0.69 | O21: 4.07 | P21: 0.66 | Q21: 1.05 | R21: 0.22 | S21: 0.38 | T21: 0.32 | U21: 8.04 | V21: 0.32 | W21: 0.45 | X21: 1.84 | Y21: 0.90 | Z21: 0.05 | AA21: 0.31 | AB21: 0.00 | AC21: 0.59 | AD21: 0.03 | AE21: 0.02 | AF21: 0.01 | AG21: 0.10 | AH21: 0.78 | AI21: 0.49 | AJ21: 0.75 | AK21: 2.63 | AL21: 2.35
A22: 2.资本与金融项目 | C22: 49.51 | D22: 8.13 | E22: 2.95 | F22: 0.27 | G22: 0.21 | H22: 0.40 | I22: 0.52 | J22: 0.19 | K22: 153.05 | L22: 15.57 | M22: 8.80 | N22: 3.99 | O22: 1.28 | P22: 0.43 | Q22: 5.51 | R22: 2.24 | S22: 5.98 | T22: 1.85 | U22: 20.41 | V22: 3.02 | W22: 3.74 | X22: 5.58 | Y22: 10.29 | Z22: 0.82 | AA22: 0.50 | AB22: 0.01 | AC22: 0.93 | AD22: 0.88 | AE22: 0.03 | AF22: 0.02 | AG22: 0.18 | AH22: 0.41 | AI22: 6.83 | AJ22: 1.66 | AK22: 8.48 | AL22: 20.86
A23: 其中: 直接投资 | C23: 21.50 | D23: 3.38 | E23: 1.48 | F23: 0.00 | G23: 0.07 | H23: 0.20 | I23: 0.33 | J23: 0.11 | K23: 13.99 | L23: 9.37 | M23: 5.73 | N23: 1.15 | O23: 0.81 | P23: 0.15 | Q23: 4.74 | R23: 1.20 | S23: 1.55 | T23: 0.34 | U23: 10.29 | V23: 0.11 | W23: 1.59 | X23: 0.21 | Y23: 0.81 | Z23: 0.57 | AA23: 0.29 | AB23: 0.00 | AC23: 0.11 | AD23: 0.01 | AE23: 0.00 | AF23: 0.00 | AG23: 0.05 | AH23: 0.24 | AI23: 4.60 | AJ23: 0.60 | AK23: 4.20 | AL23: 10.68
A24: 证券投资 | C24: 11.05 | D24: 1.13 | E24: 0.08 | F24: 0.00 | G24: 0.09 | H24: 0.00 | I24: 0.00 | J24: 0.00 | K24: 128.90 | L24: 1.17 | M24: 0.98 | N24: 1.46 | O24: 0.01 | P24: 0.00 | Q24: 0.00 | R24: 0.00 | S24: 0.00 | T24: 0.00 | U24: 5.94 | V24: 0.98 | W24: 0.92 | X24: 4.86 | Y24: 0.01 | Z24: 0.00 | AA24: 0.00 | AB24: 0.00 | AC24: 0.00 | AD24: 0.00 | AE24: 0.00 | AF24: 0.00 | AG24: 0.00 | AH24: 0.05 | AI24: 0.00 | AJ24: 0.01 | AK24: 2.85 | AL24: 8.59
A25: 三、差额 | C25: -244.48 | D25: -9.76 | E25: 4.66 | F25: -4.09 | G25: -4.39 | H25: -2.49 | I25: -9.78 | J25: -2.36 | K25: -165.21 | L25: 103.91 | M25: 166.33 | N25: 3.44 | O25: 6.51 | P25: 5.29 | Q25: 37.38 | R25: 9.62 | S25: -10.39 | T25: -1.65 | U25: 90.46 | V25: -11.52 | W25: -13.27 | X25: -2.09 | Y25: -6.99 | Z25: 0.85 | AA25: -2.13 | AB25: -0.26 | AC25: 7.25 | AD25: -3.50 | AE25: -0.07 | AF25: 1.00 | AG25: 1.99 | AH25: 6.63 | AI25: 34.05 | AJ25: -15.60 | AK25: -9.97 | AL25: -2.97
A26: (一）银行自身 | C26: -10.25 | D26: 0.02 | E26: 0.00 | F26: 0.01 | G26: 0.00 | H26: 0.01 | I26: -0.00 | J26: 0.00 | K26: -5.21 | L26: 0.26 | M26: -0.44 | N26: 0.00 | O26: -3.44 | P26: 0.00 | Q26: -1.04 | R26: 2.78 | S26: 0.02 | T26: 0.00 | U26: -3.43 | V26: 0.00 | W26: 0.01 | X26: 0.01 | Y26: -0.06 | Z26: -0.00 | AA26: 0.01 | AB26: 0 | AC26: 0.00 | AD26: -0.00 | AE26: 0.00 | AF26: 0 | AG26: 0 | AH26: 0.00 | AI26: 0.75 | AJ26: -0.02 | AK26: -0.05 | AL26: -5.80
A27: (二）银行代客 | C27: -234.22 | D27: -9.78 | E27: 4.66 | F27: -4.10 | G27: -4.39 | H27: -2.50 | I27: -9.78 | J27: -2.36 | K27: -160.00 | L27: 103.64 | M27: 166.77 | N27: 3.44 | O27: 9.95 | P27: 5.28 | Q27: 38.42 | R27: 6.84 | S27: -10.41 | T27: -1.65 | U27: 93.89 | V27: -11.53 | W27: -13.28 | X27: -2.10 | Y27: -6.93 | Z27: 0.85 | AA27: -2.14 | AB27: -0.26 | AC27: 7.25 | AD27: -3.50 | AE27: -0.07 | AF27: 1.00 | AG27: 1.99 | AH27: 6.62 | AI27: 33.30 | AJ27: -15.58 | AK27: -9.92 | AL27: 2.83
A28: 1.经常项目 | C28: -223.44 | D28: -3.59 | E28: 6.34 | F28: -4.85 | G28: -5.26 | H28: -2.67 | I28: -9.58 | J28: -2.42 | K28: -130.75 | L28: 108.07 | M28: 166.56 | N28: 4.64 | O28: 10.42 | P28: 4.04 | Q28: 37.87 | R28: 7.34 | S28: -6.39 | T28: -0.65 | U28: 105.85 | V28: -10.56 | W28: -10.36 | X28: -1.97 | Y28: 2.01 | Z28: 0.94 | AA28: -2.33 | AB28: -0.26 | AC28: 7.24 | AD28: -3.28 | AE28: -0.05 | AF28: 1.01 | AG28: 1.32 | AH28: 6.84 | AI28: 39.00 | AJ28: -14.52 | AK28: -2.33 | AL28: 17.27
A29: 1.1货物贸易 | C29: -224.25 | D29: 0.58 | E29: 9.33 | F29: -3.02 | G29: -3.88 | H29: 0.08 | I29: -4.00 | J29: -0.84 | K29: -54.04 | L29: 124.59 | M29: 178.41 | N29: 7.69 | O29: 15.73 | P29: 6.01 | Q29: 42.95 | R29: 9.52 | S29: -2.40 | T29: 1.20 | U29: 127.24 | V29: -9.34 | W29: -8.15 | X29: 2.16 | Y29: 7.13 | Z29: 1.40 | AA29: -0.70 | AB29: -0.08 | AC29: 9.52 | AD29: -2.36 | AE29: 0.09 | AF29: 1.29 | AG29: 1.80 | AH29: 8.06 | AI29: 40.91 | AJ29: -12.91 | AK29: 1.53 | AL29: 33.90
A30: 1.2服务贸易 | C30: -32.56 | D30: -3.52 | E30: -2.39 | F30: -1.82 | G30: -1.44 | H30: -3.20 | I30: -6.00 | J30: -1.80 | K30: -51.64 | L30: -12.12 | M30: -12.11 | N30: -2.67 | O30: -3.12 | P30: -1.51 | Q30: -5.46 | R30: -2.98 | S30: -4.18 | T30: -1.97 | U30: -16.16 | V30: -1.19 | W30: -1.83 | X30: -2.49 | Y30: -5.62 | Z30: -0.54 | AA30: -1.43 | AB30: -0.18 | AC30: -1.90 | AD30: -0.97 | AE30: -0.13 | AF30: -0.29 | AG30: -0.47 | AH30: -0.82 | AI30: -1.70 | AJ30: -1.25 | AK30: -1.90 | AL30: -17.40
A31: 1.3收益和经常转移 | C31: 33.37 | D31: -0.65 | E31: -0.60 | F31: -0.02 | G31: 0.05 | H31: 0.44 | I31: 0.42 | J31: 0.22 | K31: -25.07 | L31: -4.40 | M31: 0.25 | N31: -0.38 | O31: -2.19 | P31: -0.46 | Q31: 0.39 | R31: 0.80 | S31: 0.19 | T31: 0.13 | U31: -5.22 | V31: -0.02 | W31: -0.37 | X31: -1.64 | Y31: 0.50 | Z31: 0.07 | AA31: -0.20 | AB31: 0.00 | AC31: -0.38 | AD31: 0.05 | AE31: -0.02 | AF31: 0.01 | AG31: -0.02 | AH31: -0.40 | AI31: -0.21 | AJ31: -0.37 | AK31: -1.96 | AL31: 0.77
A32: 2.资本与金融项目 | C32: -10.78 | D32: -6.19 | E32: -1.69 | F32: 0.75 | G32: 0.88 | H32: 0.17 | I32: -0.21 | J32: 0.06 | K32: -29.25 | L32: -4.42 | M32: 0.21 | N32: -1.20 | O32: -0.47 | P32: 1.24 | Q32: 0.54 | R32: -0.50 | S32: -4.02 | T32: -1.01 | U32: -11.96 | V32: -0.97 | W32: -2.93 | X32: -0.13 | Y32: -8.94 | Z32: -0.09 | AA32: 0.19 | AB32: 0.00 | AC32: 0.01 | AD32: -0.23 | AE32: -0.01 | AF32: -0.01 | AG32: 0.67 | AH32: -0.22 | AI32: -5.70 | AJ32: -1.06 | AK32: -7.59 | AL32: -14.44
A33: 其中: 直接投资 | C33: -11.15 | D33: -1.84 | E33: -0.40 | F33: 0.09 | G33: 0.63 | H33: 0.06 | I33: -0.18 | J33: -0.02 | K33: 0.19 | L33: -2.70 | M33: -1.30 | N33: -0.33 | O33: -0.40 | P33: 0.78 | Q33: 0.51 | R33: -0.77 | S33: 0.16 | T33: 0.18 | U33: -6.61 | V33: 1.32 | W33: -1.32 | X33: 5.06 | Y33: -0.07 | Z33: -0.51 | AA33: 0.05 | AB33: 0.00 | AC33: 0.19 | AD33: 0.06 | AE33: -0.00 | AF33: 0.01 | AG33: 0.78 | AH33: -0.16 | AI33: -3.77 | AJ33: -0.11 | AK33: -3.32 | AL33: -8.43
A34: 证券投资 | C34: 0.29 | D34: -1.03 | E34: -0.08 | F34: 0.89 | G34: -0.07 | H34: 0.01 | I34: 0 | J34: 0.00 | K34: -19.77 | L34: 2.85 | M34: 1.50 | N34: -0.14 | O34: -0.01 | P34: 0.00 | Q34: 0.29 | R34: 0.00 | S34: 0.02 | T34: 0.05 | U34: -1.35 | V34: -0.98 | W34: -0.39 | X34: -4.73 | Y34: 0.08 | Z34: 0.02 | AA34: 0.12 | AB34: 0 | AC34: 0.00 | AD34: 0.14 | AE34: -0.00 | AF34: 0 | AG34: 0.00 | AH34: 0.01 | AI34: 0.29 | AJ34: 0.03 | AK34: -2.83 | AL34: -4.49
A35: 注： 1.分地区是指办理结售汇业务的银行所在地。其中，本表中辽宁不含大连，浙江不含宁波，福建不含厦门，山东不含青岛，广东不含深圳。

Sheet 2023年累计（按美元）
A2: 2023年1-12月银行结售汇数据（分地区）
A3: 单位：亿美元
A4: 项目 | C4: 北京 | D4: 天津 | E4: 河北 | F4: 山西 | G4: 内蒙古 | H4: 辽宁 | I4: 吉林 | J4: 黑龙江 | K4: 上海 | L4: 江苏 | M4: 浙江 | N4: 安徽 | O4: 福建 | P4: 江西 | Q4: 山东 | R4: 河南 | S4: 湖北 | T4: 湖南 | U4: 广东 | V4: 广西 | W4: 海南 | X4: 重庆 | Y4: 四川 | Z4: 贵州 | AA4: 云南 | AB4: 西藏 | AC4: 陕西 | AD4: 甘肃 | AE4: 青海 | AF4: 宁夏 | AG4: 新疆 | AH4: 大连 | AI4: 宁波 | AJ4: 厦门 | AK4: 青岛 | AL4: 深圳
A5: 一、结汇 | C5: 1,394.54 | D5: 356.19 | E5: 325.42 | F5: 45.08 | G5: 54.70 | H5: 112.43 | I5: 47.05 | J5: 40.94 | K5: 3,525.21 | L5: 2,741.10 | M5: 3,009.57 | N5: 380.11 | O5: 601.10 | P5: 198.89 | Q5: 1,062.30 | R5: 285.84 | S5: 256.18 | T5: 202.56 | U5: 2,326.14 | V5: 84.48 | W5: 51.24 | X5: 265.84 | Y5: 281.73 | Z5: 34.65 | AA5: 49.65 | AB5: 2.60 | AC5: 211.81 | AD5: 16.87 | AE5: 2.78 | AF5: 14.17 | AG5: 61.67 | AH5: 199.02 | AI5: 1,204.59 | AJ5: 436.52 | AK5: 464.58 | AL5: 1,714.05
A6: (一）银行自身 | C6: 214.98 | D6: 1.19 | E6: 0.08 | F6: 0.02 | G6: 0.00 | H6: 1.19 | I6: 0.00 | J6: 0.04 | K6: 248.95 | L6: 2.09 | M6: 28.51 | N6: 0.07 | O6: 14.29 | P6: 0.02 | Q6: 1.10 | R6: 2.84 | S6: 0.08 | T6: 0.03 | U6: 1.50 | V6: 0.21 | W6: 0.05 | X6: 0.11 | Y6: 0.59 | Z6: 0.00 | AA6: 0.02 | AB6: 0.00 | AC6: 0.10 | AD6: 0.01 | AE6: 0.00 | AF6: 0.00 | AG6: 0.11 | AH6: 0.04 | AI6: 274.42 | AJ6: 0.16 | AK6: 0.43 | AL6: 11.41
A7: (二）银行代客 | C7: 1,179.56 | D7: 354.99 | E7: 325.34 | F7: 45.06 | G7: 54.70 | H7: 111.24 | I7: 47.05 | J7: 40.90 | K7: 3,276.26 | L7: 2,739.00 | M7: 2,981.06 | N7: 380.04 | O7: 586.81 | P7: 198.87 | Q7: 1,061.21 | R7: 283.00 | S7: 256.10 | T7: 202.54 | U7: 2,324.64 | V7: 84.27 | W7: 51.19 | X7: 265.73 | Y7: 281.14 | Z7: 34.65 | AA7: 49.63 | AB7: 2.60 | AC7: 211.71 | AD7: 16.86 | AE7: 2.78 | AF7: 14.17 | AG7: 61.56 | AH7: 198.98 | AI7: 930.17 | AJ7: 436.36 | AK7: 464.14 | AL7: 1,702.64
A8: 1.经常项目 | C8: 880.88 | D8: 332.17 | E8: 316.99 | F8: 42.51 | G8: 48.07 | H8: 107.40 | I8: 42.60 | J8: 38.33 | K8: 2,217.88 | L8: 2,626.09 | M8: 2,889.80 | N8: 363.31 | O8: 580.40 | P8: 185.49 | Q8: 1,006.66 | R8: 269.73 | S8: 237.68 | T8: 195.18 | U8: 2,256.80 | V8: 76.02 | W8: 39.64 | X8: 255.14 | Y8: 257.91 | Z8: 30.70 | AA8: 45.63 | AB8: 1.78 | AC8: 204.81 | AD8: 12.56 | AE8: 2.66 | AF8: 13.99 | AG8: 52.69 | AH8: 196.06 | AI8: 914.37 | AJ8: 423.39 | AK8: 448.27 | AL8: 1,533.46
A9: 1.1货物贸易 | C9: 496.94 | D9: 294.82 | E9: 300.48 | F9: 38.14 | G9: 43.99 | H9: 93.02 | I9: 33.64 | J9: 31.06 | K9: 1,600.91 | L9: 2,529.50 | M9: 2,785.76 | N9: 351.51 | O9: 546.17 | P9: 179.91 | Q9: 968.58 | R9: 250.40 | S9: 214.48 | T9: 178.72 | U9: 2,115.00 | V9: 68.96 | W9: 34.05 | X9: 243.01 | Y9: 209.87 | Z9: 27.84 | AA9: 40.56 | AB9: 1.62 | AC9: 189.77 | AD9: 10.15 | AE9: 2.27 | AF9: 13.32 | AG9: 47.29 | AH9: 169.88 | AI9: 891.57 | AJ9: 401.58 | AK9: 410.23 | AL9: 1,373.54
A10: 1.2服务贸易 | C10: 270.46 | D10: 26.29 | E10: 9.14 | F10: 2.87 | G10: 2.43 | H10: 5.69 | I10: 2.67 | J10: 3.04 | K10: 530.19 | L10: 71.42 | M10: 51.90 | N10: 7.99 | O10: 12.80 | P10: 2.64 | Q10: 20.00 | R10: 8.82 | S10: 14.64 | T10: 9.65 | U10: 106.81 | V10: 3.76 | W10: 4.63 | X10: 8.98 | Y10: 31.40 | Z10: 1.85 | AA10: 2.69 | AB10: 0.11 | AC10: 11.66 | AD10: 1.00 | AE10: 0.27 | AF10: 0.37 | AG10: 4.33 | AH10: 20.59 | AI10: 19.25 | AJ10: 18.11 | AK10: 26.85 | AL10: 129.16
A11: 1.3收益和经常转移 | C11: 113.48 | D11: 11.07 | E11: 7.37 | F11: 1.51 | G11: 1.65 | H11: 8.69 | I11: 6.30 | J11: 4.23 | K11: 86.78 | L11: 25.16 | M11: 52.14 | N11: 3.81 | O11: 21.43 | P11: 2.94 | Q11: 18.09 | R11: 10.51 | S11: 8.55 | T11: 6.81 | U11: 34.99 | V11: 3.30 | W11: 0.95 | X11: 3.15 | Y11: 16.64 | Z11: 1.01 | AA11: 2.38 | AB11: 0.05 | AC11: 3.38 | AD11: 1.40 | AE11: 0.12 | AF11: 0.30 | AG11: 1.08 | AH11: 5.59 | AI11: 3.55 | AJ11: 3.71 | AK11: 11.19 | AL11: 30.76
A12: 2.资本与金融项目 | C12: 298.68 | D12: 22.82 | E12: 8.35 | F12: 2.55 | G12: 6.63 | H12: 3.83 | I12: 4.44 | J12: 2.57 | K12: 1,058.38 | L12: 112.91 | M12: 91.26 | N12: 16.74 | O12: 6.41 | P12: 13.38 | Q12: 54.54 | R12: 13.28 | S12: 18.42 | T12: 7.36 | U12: 67.84 | V12: 8.24 | W12: 11.55 | X12: 10.58 | Y12: 23.22 | Z12: 3.94 | AA12: 4.00 | AB12: 0.82 | AC12: 6.90 | AD12: 4.30 | AE12: 0.12 | AF12: 0.18 | AG12: 8.87 | AH12: 2.93 | AI12: 15.80 | AJ12: 12.96 | AK12: 15.88 | AL12: 169.18
A13: 其中: 直接投资 | C13: 101.13 | D13: 15.17 | E13: 6.32 | F13: 1.15 | G13: 5.36 | H13: 1.28 | I13: 3.67 | J13: 1.79 | K13: 117.63 | L13: 78.97 | M13: 47.69 | N13: 6.81 | O13: 4.37 | P13: 5.61 | Q13: 49.55 | R13: 4.26 | S13: 13.38 | T13: 3.47 | U13: 35.52 | V13: 3.47 | W13: 7.67 | X13: 8.28 | Y13: 13.06 | Z13: 0.44 | AA13: 1.73 | AB13: 0.71 | AC13: 2.72 | AD13: 0.08 | AE13: 0.00 | AF13: 0.16 | AG13: 7.06 | AH13: 1.78 | AI13: 8.33 | AJ13: 12.15 | AK13: 13.90 | AL13: 63.56
A14: 证券投资 | C14: 117.29 | D14: 2.00 | E14: 0.10 | F14: 0.89 | G14: 0.21 | H14: 0.26 | I14: 0.16 | J14: 0.00 | K14: 924.18 | L14: 22.58 | M14: 32.65 | N14: 5.97 | O14: 0.11 | P14: 4.46 | Q14: 2.03 | R14: 3.60 | S14: 2.10 | T14: 1.21 | U14: 27.93 | V14: 1.01 | W14: 3.30 | X14: 1.76 | Y14: 6.41 | Z14: 1.88 | AA14: 0.45 | AB14: 0.00 | AC14: 0.85 | AD14: 2.92 | AE14: 0.00 | AF14: 0.00 | AG14: 0.70 | AH14: 0.50 | AI14: 5.88 | AJ14: 0.31 | AK14: 1.13 | AL14: 101.98
A15: 二、售汇 | C15: 4,448.01 | D15: 385.58 | E15: 257.63 | F15: 96.58 | G15: 110.32 | H15: 179.82 | I15: 122.77 | J15: 73.99 | K15: 5,562.43 | L15: 1,555.50 | M15: 1,172.12 | N15: 376.36 | O15: 424.65 | P15: 161.96 | Q15: 648.64 | R15: 199.25 | S15: 286.91 | T15: 212.05 | U15: 1,346.33 | V15: 264.68 | W15: 189.66 | X15: 315.21 | Y15: 307.63 | Z15: 35.79 | AA15: 99.96 | AB15: 3.57 | AC15: 158.60 | AD15: 76.08 | AE15: 3.90 | AF15: 12.96 | AG15: 52.76 | AH15: 128.04 | AI15: 842.29 | AJ15: 689.99 | AK15: 493.68 | AL15: 1,499.05
A16: (一）银行自身 | C16: 242.56 | D16: 0.19 | E16: 0.02 | F16: 0.01 | G16: 0.00 | H16: 0.01 | I16: 0.01 | J16: 0.12 | K16: 325.82 | L16: 1.83 | M16: 29.88 | N16: 0.78 | O16: 25.24 | P16: 0.00 | Q16: 2.14 | R16: 0.90 | S16: 0.16 | T16: 0.00 | U16: 16.22 | V16: 0.00 | W16: 0.49 | X16: 1.32 | Y16: 0.09 | Z16: 0.00 | AA16: 0.01 | AB16: 0.00 | AC16: 0.17 | AD16: 0.01 | AE16: 0.00 | AF16: 0.00 | AG16: 0.65 | AH16: 0.06 | AI16: 285.10 | AJ16: 1.00 | AK16: 0.92 | AL16: 39.18
A17: (二）银行代客 | C17: 4,205.45 | D17: 385.39 | E17: 257.61 | F17: 96.57 | G17: 110.31 | H17: 179.82 | I17: 122.76 | J17: 73.87 | K17: 5,236.61 | L17: 1,553.67 | M17: 1,142.24 | N17: 375.58 | O17: 399.41 | P17: 161.96 | Q17: 646.49 | R17: 198.35 | S17: 286.75 | T17: 212.05 | U17: 1,330.11 | V17: 264.68 | W17: 189.18 | X17: 313.89 | Y17: 307.55 | Z17: 35.79 | AA17: 99.95 | AB17: 3.57 | AC17: 158.43 | AD17: 76.07 | AE17: 3.90 | AF17: 12.96 | AG17: 52.11 | AH17: 127.98 | AI17: 557.19 | AJ17: 688.99 | AK17: 492.76 | AL17: 1,459.88
A18: 1.经常项目 | C18: 3,700.82 | D18: 341.20 | E18: 221.40 | F18: 88.03 | G18: 90.91 | H18: 164.39 | I18: 119.15 | J18: 71.69 | K18: 3,749.21 | L18: 1,381.34 | M18: 1,030.42 | N18: 354.40 | O18: 374.31 | P18: 144.03 | Q18: 595.22 | R18: 165.28 | S18: 254.34 | T18: 189.08 | U18: 1,197.49 | V18: 241.33 | W18: 160.48 | X18: 297.20 | Y18: 260.43 | Z18: 27.52 | AA18: 70.16 | AB18: 3.37 | AC18: 116.47 | AD18: 56.19 | AE18: 2.26 | AF18: 8.78 | AG18: 42.36 | AH18: 122.68 | AI18: 496.52 | AJ18: 672.67 | AK18: 461.50 | AL18: 1,212.84
A19: 1.1货物贸易 | C19: 2,940.21 | D19: 263.58 | E19: 187.13 | F19: 69.98 | G19: 76.18 | H19: 129.43 | I19: 85.74 | J19: 50.73 | K19: 2,668.39 | L19: 1,156.49 | M19: 841.69 | N19: 314.11 | O19: 324.48 | P19: 123.02 | Q19: 512.04 | R19: 127.13 | S19: 199.94 | T19: 161.43 | U19: 925.17 | V19: 225.22 | W19: 133.76 | X19: 255.71 | Y19: 193.09 | Z19: 19.71 | AA19: 53.24 | AB19: 2.42 | AC19: 83.77 | AD19: 48.90 | AE19: 0.91 | AF19: 5.46 | AG19: 32.60 | AH19: 95.66 | AI19: 456.13 | AJ19: 638.06 | AK19: 414.73 | AL19: 887.41
A20: 1.2服务贸易 | C20: 522.19 | D20: 49.65 | E20: 27.97 | F20: 17.17 | G20: 11.79 | H20: 32.66 | I20: 28.41 | J20: 19.59 | K20: 815.28 | L20: 158.31 | M20: 137.42 | N20: 32.07 | O20: 33.13 | P20: 15.19 | Q20: 66.19 | R20: 33.08 | S20: 44.90 | T20: 23.54 | U20: 195.33 | V20: 11.17 | W20: 24.81 | X20: 28.71 | Y20: 58.62 | Z20: 6.79 | AA20: 14.00 | AB20: 0.86 | AC20: 28.06 | AD20: 6.56 | AE20: 1.03 | AF20: 2.95 | AG20: 8.47 | AH20: 22.97 | AI20: 29.93 | AJ20: 27.25 | AK20: 34.37 | AL20: 252.26
A21: 1.3收益和经常转移 | C21: 238.43 | D21: 27.97 | E21: 6.30 | F21: 0.88 | G21: 2.94 | H21: 2.30 | I21: 5.00 | J21: 1.36 | K21: 265.55 | L21: 66.54 | M21: 51.31 | N21: 8.22 | O21: 16.70 | P21: 5.82 | Q21: 16.99 | R21: 5.07 | S21: 9.49 | T21: 4.11 | U21: 76.99 | V21: 4.94 | W21: 1.91 | X21: 12.77 | Y21: 8.72 | Z21: 1.02 | AA21: 2.92 | AB21: 0.09 | AC21: 4.64 | AD21: 0.73 | AE21: 0.32 | AF21: 0.36 | AG21: 1.29 | AH21: 4.05 | AI21: 10.47 | AJ21: 7.36 | AK21: 12.40 | AL21: 73.17
A22: 2.资本与金融项目 | C22: 504.63 | D22: 44.19 | E22: 36.22 | F22: 8.53 | G22: 19.41 | H22: 15.43 | I22: 3.60 | J22: 2.19 | K22: 1,487.39 | L22: 172.33 | M22: 111.83 | N22: 21.17 | O22: 25.10 | P22: 17.93 | Q22: 51.27 | R22: 33.07 | S22: 32.41 | T22: 22.96 | U22: 132.62 | V22: 23.35 | W22: 28.70 | X22: 16.69 | Y22: 47.12 | Z22: 8.27 | AA22: 29.79 | AB22: 0.21 | AC22: 41.96 | AD22: 19.87 | AE22: 1.64 | AF22: 4.18 | AG22: 9.75 | AH22: 5.31 | AI22: 60.67 | AJ22: 16.32 | AK22: 31.27 | AL22: 247.04
A23: 其中: 直接投资 | C23: 219.04 | D23: 15.59 | E23: 10.61 | F23: 1.41 | G23: 8.77 | H23: 9.33 | I23: 0.91 | J23: 0.57 | K23: 188.28 | L23: 80.52 | M23: 52.29 | N23: 9.48 | O23: 8.37 | P23: 7.88 | Q23: 24.25 | R23: 16.57 | S23: 8.42 | T23: 3.92 | U23: 55.91 | V23: 3.55 | W23: 20.21 | X23: 3.42 | Y23: 14.80 | Z23: 1.36 | AA23: 13.68 | AB23: 0.19 | AC23: 0.93 | AD23: 8.32 | AE23: 0.15 | AF23: 0.06 | AG23: 2.60 | AH23: 2.48 | AI23: 35.58 | AJ23: 7.51 | AK23: 14.11 | AL23: 96.31
A24: 证券投资 | C24: 167.03 | D24: 5.78 | E24: 2.82 | F24: 2.60 | G24: 8.13 | H24: 1.05 | I24: 0.02 | J24: 0.00 | K24: 1,221.26 | L24: 16.82 | M24: 13.99 | N24: 3.25 | O24: 0.16 | P24: 4.08 | Q24: 7.22 | R24: 2.90 | S24: 6.55 | T24: 3.76 | U24: 22.84 | V24: 6.11 | W24: 4.79 | X24: 8.42 | Y24: 7.93 | Z24: 0.30 | AA24: 3.25 | AB24: 0.00 | AC24: 8.02 | AD24: 4.18 | AE24: 1.04 | AF24: 3.00 | AG24: 2.77 | AH24: 0.72 | AI24: 1.42 | AJ24: 5.27 | AK24: 6.45 | AL24: 121.66
A25: 三、差额 | C25: -3,053.47 | D25: -29.39 | E25: 67.79 | F25: -51.49 | G25: -55.62 | H25: -67.39 | I25: -75.72 | J25: -33.05 | K25: -2,037.21 | L25: 1,185.60 | M25: 1,837.45 | N25: 3.75 | O25: 176.45 | P25: 36.93 | Q25: 413.67 | R25: 86.59 | S25: -30.74 | T25: -9.49 | U25: 979.81 | V25: -180.20 | W25: -138.42 | X25: -49.37 | Y25: -25.90 | Z25: -1.14 | AA25: -50.32 | AB25: -0.97 | AC25: 53.21 | AD25: -59.21 | AE25: -1.12 | AF25: 1.21 | AG25: 8.91 | AH25: 70.98 | AI25: 362.31 | AJ25: -253.47 | AK25: -29.10 | AL25: 215.00
A26: (一）银行自身 | C26: -27.58 | D26: 1.00 | E26: 0.06 | F26: 0.01 | G26: -0.00 | H26: 1.18 | I26: -0.01 | J26: -0.08 | K26: -76.86 | L26: 0.26 | M26: -1.37 | N26: -0.71 | O26: -10.95 | P26: 0.02 | Q26: -1.04 | R26: 1.94 | S26: -0.08 | T26: 0.02 | U26: -14.72 | V26: 0.21 | W26: -0.43 | X26: -1.20 | Y26: 0.51 | Z26: -0.00 | AA26: 0.01 | AB26: 0.00 | AC26: -0.07 | AD26: -0.00 | AE26: -0.00 | AF26: 0.00 | AG26: -0.54 | AH26: -0.02 | AI26: -10.68 | AJ26: -0.84 | AK26: -0.49 | AL26: -27.76
A27: (二）银行代客 | C27: -3,025.89 | D27: -30.39 | E27: 67.73 | F27: -51.50 | G27: -55.62 | H27: -68.58 | I27: -75.71 | J27: -32.98 | K27: -1,960.35 | L27: 1,185.34 | M27: 1,838.82 | N27: 4.47 | O27: 187.40 | P27: 36.91 | Q27: 414.71 | R27: 84.66 | S27: -30.66 | T27: -9.51 | U27: 994.52 | V27: -180.41 | W27: -137.99 | X27: -48.16 | Y27: -26.41 | Z27: -1.14 | AA27: -50.33 | AB27: -0.97 | AC27: 53.28 | AD27: -59.21 | AE27: -1.12 | AF27: 1.21 | AG27: 9.45 | AH27: 71.00 | AI27: 372.98 | AJ27: -252.63 | AK27: -28.62 | AL27: 242.77
A28: 1.经常项目 | C28: -2,819.94 | D28: -9.03 | E28: 95.60 | F28: -45.52 | G28: -42.84 | H28: -56.98 | I28: -76.55 | J28: -33.36 | K28: -1,531.33 | L28: 1,244.75 | M28: 1,859.38 | N28: 8.90 | O28: 206.09 | P28: 41.46 | Q28: 411.44 | R28: 104.44 | S28: -16.66 | T28: 6.10 | U28: 1,059.31 | V28: -165.31 | W28: -120.84 | X28: -42.05 | Y28: -2.52 | Z28: 3.19 | AA28: -24.53 | AB28: -1.59 | AC28: 88.34 | AD28: -43.64 | AE28: 0.40 | AF28: 5.21 | AG28: 10.33 | AH28: 73.38 | AI28: 417.85 | AJ28: -249.28 | AK28: -13.23 | AL28: 320.63
A29: 1.1货物贸易 | C29: -2,443.26 | D29: 31.24 | E29: 113.35 | F29: -31.84 | G29: -32.19 | H29: -36.41 | I29: -52.10 | J29: -19.67 | K29: -1,067.48 | L29: 1,373.01 | M29: 1,944.07 | N29: 37.39 | O29: 221.69 | P29: 56.88 | Q29: 456.53 | R29: 123.27 | S29: 14.54 | T29: 17.29 | U29: 1,189.83 | V29: -156.26 | W29: -99.70 | X29: -12.70 | Y29: 16.79 | Z29: 8.13 | AA29: -12.68 | AB29: -0.80 | AC29: 106.00 | AD29: -38.75 | AE29: 1.36 | AF29: 7.86 | AG29: 14.69 | AH29: 74.22 | AI29: 435.44 | AJ29: -236.48 | AK29: -4.51 | AL29: 486.13
A30: 1.2服务贸易 | C30: -251.73 | D30: -23.36 | E30: -18.83 | F30: -14.30 | G30: -9.36 | H30: -26.97 | I30: -25.75 | J30: -16.56 | K30: -285.09 | L30: -86.89 | M30: -85.52 | N30: -24.08 | O30: -20.33 | P30: -12.55 | Q30: -46.19 | R30: -24.26 | S30: -30.26 | T30: -13.89 | U30: -88.52 | V30: -7.41 | W30: -20.17 | X30: -19.74 | Y30: -27.23 | Z30: -4.94 | AA30: -11.32 | AB30: -0.75 | AC30: -16.41 | AD30: -5.56 | AE30: -0.76 | AF30: -2.59 | AG30: -4.14 | AH30: -2.38 | AI30: -10.68 | AJ30: -9.15 | AK30: -7.52 | AL30: -123.09
A31: 1.3收益和经常转移 | C31: -124.95 | D31: -16.90 | E31: 1.07 | F31: 0.63 | G31: -1.29 | H31: 6.39 | I31: 1.30 | J31: 2.86 | K31: -178.77 | L31: -41.37 | M31: 0.84 | N31: -4.41 | O31: 4.73 | P31: -2.87 | Q31: 1.10 | R31: 5.44 | S31: -0.94 | T31: 2.70 | U31: -42.00 | V31: -1.64 | W31: -0.97 | X31: -9.62 | Y31: 7.92 | Z31: -0.01 | AA31: -0.54 | AB31: -0.04 | AC31: -1.26 | AD31: 0.67 | AE31: -0.20 | AF31: -0.06 | AG31: -0.21 | AH31: 1.54 | AI31: -6.91 | AJ31: -3.65 | AK31: -1.21 | AL31: -42.41
A32: 2.资本与金融项目 | C32: -205.96 | D32: -21.37 | E32: -27.87 | F32: -5.98 | G32: -12.78 | H32: -11.59 | I32: 0.84 | J32: 0.38 | K32: -429.02 | L32: -59.42 | M32: -20.56 | N32: -4.44 | O32: -18.69 | P32: -4.54 | Q32: 3.27 | R32: -19.79 | S32: -13.99 | T32: -15.61 | U32: -64.79 | V32: -15.10 | W32: -17.15 | X32: -6.11 | Y32: -23.89 | Z32: -4.33 | AA32: -25.79 | AB32: 0.62 | AC32: -35.06 | AD32: -15.57 | AE32: -1.52 | AF32: -4.00 | AG32: -0.88 | AH32: -2.38 | AI32: -44.86 | AJ32: -3.36 | AK32: -15.39 | AL32: -77.86
A33: 其中: 直接投资 | C33: -117.91 | D33: -0.42 | E33: -4.29 | F33: -0.26 | G33: -3.41 | H33: -8.05 | I33: 2.76 | J33: 1.22 | K33: -70.65 | L33: -1.54 | M33: -4.60 | N33: -2.67 | O33: -4.00 | P33: -2.27 | Q33: 25.30 | R33: -12.30 | S33: 4.96 | T33: -0.45 | U33: -20.39 | V33: -0.08 | W33: -12.54 | X33: 4.86 | Y33: -1.74 | Z33: -0.93 | AA33: -11.95 | AB33: 0.53 | AC33: 1.79 | AD33: -8.24 | AE33: -0.14 | AF33: 0.11 | AG33: 4.46 | AH33: -0.70 | AI33: -27.25 | AJ33: 4.65 | AK33: -0.21 | AL33: -32.76
A34: 证券投资 | C34: -49.74 | D34: -3.79 | E34: -2.72 | F34: -1.71 | G34: -7.92 | H34: -0.79 | I34: 0.14 | J34: -0.00 | K34: -297.09 | L34: 5.76 | M34: 18.66 | N34: 2.72 | O34: -0.05 | P34: 0.37 | Q34: -5.19 | R34: 0.69 | S34: -4.45 | T34: -2.55 | U34: 5.09 | V34: -5.10 | W34: -1.49 | X34: -6.66 | Y34: -1.52 | Z34: 1.58 | AA34: -2.81 | AB34: 0.00 | AC34: -7.17 | AD34: -1.26 | AE34: -1.03 | AF34: -3.00 | AG34: -2.07 | AH34: -0.22 | AI34: 4.46 | AJ34: -4.96 | AK34: -5.33 | AL34: -19.69
A35: 注： 1.分地区是指办理结售汇业务的银行所在地。其中，本表中辽宁不含大连，浙江不含宁波，福建不含厦门，山东不含青岛，广东不含深圳。
